Workbook

Sheet الشهادة1
A2: المملكة الأردنية الهاشمية
A3: وزارة التربية والتعليم
A4: مديرية التربية والتعليم | C4: =CONCATENATE('[1]البيانات الاساسية'!B2) -> ماركا
C6: مدرسة | D6: =CONCATENATE('[1]البيانات الاساسية'!E2) -> الشنقيطي
A8: النتيجة المدرسية للفصل الدراسي الأول لعام | H8: =CONCATENATE('[1]البيانات الاساسية'!A2) -> 2020
A11: اسم الطالب :
A12: الصف والشعبة: | C12: =CONCATENATE('[1]البيانات الاساسية'!AE3) -> الثاني ج | F12: الجنسية: | G12: =CONCATENATE('[1]جدول EMIS'!C4) -> أردني
A13: تاريخ ومكان الولادة:
A15: المبحث | E15: النهايات | G15: العلامة
E17: النهاية | F17: النهاية | G17: بالأرقام | H17: بالكلمات
E18: العظمى | F18: الصغرى
A19: التربية الإسلامية | G19: 97
A21: اللغة العربية | G21: 94
A23: اللغة الإنجليزية | G23: 80
A25: الرياضيات | G25: 84
A27: التربية الاجتماعية والوطنية | G27: 95
A29: العلوم | G29: 96
A31: التربية الفنية - الموسيقى والأناشيد
A33: التربية الرياضية
A35: التربية المهنية | G35: 95
A37: الحاسوب | G37: 50
A39: الثقافة المالية | G39: 60
A41: اللغة الفرنسية | G41: 40
A43: الدين المسيحي | G43: 21
A46: عدد أيام غياب الطالب: | E46: ملاحظات مربي الصف
A47: المعدل :
A51: مربي الصف | E51: الخاتم الرسمي | H51: مدير المدرسة
A52: =CONCATENATE('[1]البيانات الاساسية'!K2) -> ثائر | H52: =CONCATENATE('[1]البيانات الاساسية'!J2) -> فخري

Sheet MAR1
E1: دين | F1: عربي | G1: انجليزي | H1: رياضيات | I1: اجتماعيات | J1: علوم | K1: مهني | L1: حاسوب | M1: مالية | N1: رياضة | O1: فنية موسقى
B3: الأول والثاني والثالث | E3: الفصل الأول | F3: الفصل الأول | G3: الفصل الأول | H3: الفصل الأول | I3: الفصل الأول | J3: الفصل الأول | K3: الفصل الأول | L3: الفصل الأول | M3: الفصل الأول | N3: الفصل الأول | O3: الفصل الأول
A4: الرقم | B4: اسم الطالب | C4: الجنسية | D4: تاريخ الولادة | E4: =CONCATENATE('[1]جدول EMIS'!G99) -> 200 | F4: =CONCATENATE('[1]جدول EMIS'!M99) -> 300 | G4: =CONCATENATE('[1]جدول EMIS'!S99) -> 200 | H4: =CONCATENATE('[1]جدول EMIS'!Y99) -> 200 | I4: =CONCATENATE('[1]جدول EMIS'!AE99) -> 300 | J4: =CONCATENATE('[1]جدول EMIS'!AK99) -> 400 | K4: =CONCATENATE('[1]جدول EMIS'!BC99) -> 100 | L4: =CONCATENATE('[1]جدول EMIS'!BI99) -> 100 | M4: =CONCATENATE('[1]جدول EMIS'!BO99) -> 100 | N4: =CONCATENATE('[1]جدول EMIS'!AW99) -> 100 | O4: =CONCATENATE('[1]جدول EMIS'!AQ99) -> 100 | P4: معدل ف1 | R4: الغياب
A5: =CONCATENATE('[1]جدول EMIS'!A100) -> 1 | B5: =CONCATENATE('[1]جدول EMIS'!B100) -> ابراهيم اسحق مصطفى اعبيدو | C5: =CONCATENATE('[1]جدول EMIS'!C100) -> أردني | D5: =CONCATENATE('[1]جدول EMIS'!D100) -> ماركا 21 / 2 / 2004 | E5: ='[1]جدول EMIS'!G100 -> 190 | F5: ='[1]جدول EMIS'!M100 -> 300 | G5: ='[1]جدول EMIS'!S100 -> 200 | H5: ='[1]جدول EMIS'!Y100 -> 200 | I5: ='[1]جدول EMIS'!AE100 -> 200 | J5: ='[1]جدول EMIS'!AK100 -> 400 | K5: =CONCATENATE('[1]جدول EMIS'!BC100) -> 100 | L5: =CONCATENATE('[1]جدول EMIS'!BI100) -> 100 | M5: =CONCATENATE('[1]جدول EMIS'!BO100) -> 100 | N5: =CONCATENATE('[1]جدول EMIS'!AW100) -> 100 | O5: =CONCATENATE('[1]جدول EMIS'!AQ100) -> 100 | P5: =IF(MATCH($B$3,{"الأول والثاني والثالث"},0)>6,"",CHOOSE((MATCH($B$3,$Q$5:$Q$9,0)<=6)+1,ROUND(AVERAGE(E5:J5),2),ROUND(AVERAGE(E5:J5),2))) -> 238 | Q5: الأول والثاني والثالث | R5: ='[1]جدول EMIS'!AU4 -> 200
A6: =CONCATENATE('[1]جدول EMIS'!A101) -> 2 | B6: =CONCATENATE('[1]جدول EMIS'!B101) -> ابراهيم محمد عبد المجيد خلاوي | C6: =CONCATENATE('[1]جدول EMIS'!C101) -> أردني | D6: =CONCATENATE('[1]جدول EMIS'!D101) -> لواء ماركا 29 / 6 / 2004 | E6: ='[1]جدول EMIS'!G101 -> 200 | F6: ='[1]جدول EMIS'!M101 -> 235 | G6: ='[1]جدول EMIS'!S101 -> 123 | H6: ='[1]جدول EMIS'!Y101 -> 153 | I6: ='[1]جدول EMIS'!AE101 -> 105 | J6: ='[1]جدول EMIS'!AK101 -> 224 | K6: =CONCATENATE('[1]جدول EMIS'!BC101) ->  | L6: =CONCATENATE('[1]جدول EMIS'!BI101) -> 62 | M6: =CONCATENATE('[1]جدول EMIS'!BO101) -> 90 | N6: =CONCATENATE('[1]جدول EMIS'!AW101) -> 90 | O6: =CONCATENATE('[1]جدول EMIS'!AQ101) -> 60 | P6: =IF(MATCH($B$3,{"الأول والثاني والثالث"},0)>6,"",CHOOSE((MATCH($B$3,$Q$5:$Q$9,0)<=6)+1,ROUND(AVERAGE(E6:J6),2),ROUND(AVERAGE(E6:J6),2))) -> 161 | Q6: الرابع والخامس والسادس | R6: ='[1]جدول EMIS'!AU5 -> 0
A7: =CONCATENATE('[1]جدول EMIS'!A102) -> 3 | B7: =CONCATENATE('[1]جدول EMIS'!B102) -> ابراهيم صلاح ابراهيم شمعون | C7: =CONCATENATE('[1]جدول EMIS'!C102) -> أردني | D7: =CONCATENATE('[1]جدول EMIS'!D102) -> ماركا 10 / 7 / 2004 | E7: ='[1]جدول EMIS'!G102 -> 189 | F7: ='[1]جدول EMIS'!M102 -> 220 | G7: ='[1]جدول EMIS'!S102 -> 105 | H7: ='[1]جدول EMIS'!Y102 -> 112 | I7: ='[1]جدول EMIS'!AE102 -> 75 | J7: ='[1]جدول EMIS'!AK102 -> 218 | K7: =CONCATENATE('[1]جدول EMIS'!BC102) ->  | L7: =CONCATENATE('[1]جدول EMIS'!BI102) -> 52 | M7: =CONCATENATE('[1]جدول EMIS'!BO102) -> 60 | N7: =CONCATENATE('[1]جدول EMIS'!AW102) -> 90 | O7: =CONCATENATE('[1]جدول EMIS'!AQ102) -> 44 | P7: =IF(MATCH($B$3,{"الأول والثاني والثالث"},0)>6,"",CHOOSE((MATCH($B$3,$Q$5:$Q$9,0)<=6)+1,ROUND(AVERAGE(E7:J7),2),ROUND(AVERAGE(E7:J7),2))) -> 139.8 | Q7: السابع | R7: ='[1]جدول EMIS'!AU6 -> 0
A8: =CONCATENATE('[1]جدول EMIS'!A103) -> 4 | B8: =CONCATENATE('[1]جدول EMIS'!B103) -> ابراهيم محمد ابراهيم عوده الله | C8: =CONCATENATE('[1]جدول EMIS'!C103) -> أردني | D8: =CONCATENATE('[1]جدول EMIS'!D103) -> ماركا 3 / 5 / 2004 | E8: ='[1]جدول EMIS'!G103 -> 192 | F8: ='[1]جدول EMIS'!M103 -> 234 | G8: ='[1]جدول EMIS'!S103 -> 147 | H8: ='[1]جدول EMIS'!Y103 -> 139 | I8: ='[1]جدول EMIS'!AE103 -> 84 | J8: ='[1]جدول EMIS'!AK103 -> 241 | K8: =CONCATENATE('[1]جدول EMIS'!BC103) ->  | L8: =CONCATENATE('[1]جدول EMIS'!BI103) -> 92 | M8: =CONCATENATE('[1]جدول EMIS'!BO103) -> 90 | N8: =CONCATENATE('[1]جدول EMIS'!AW103) -> 90 | O8: =CONCATENATE('[1]جدول EMIS'!AQ103) -> 59 | P8: =IF(MATCH($B$3,{"الأول والثاني والثالث"},0)>6,"",CHOOSE((MATCH($B$3,$Q$5:$Q$9,0)<=6)+1,ROUND(AVERAGE(E8:J8),2),ROUND(AVERAGE(E8:J8),2))) -> 160.6 | Q8: الثامن | R8: ='[1]جدول EMIS'!AU7 -> 0
A9: =CONCATENATE('[1]جدول EMIS'!A104) -> 5 | B9: =CONCATENATE('[1]جدول EMIS'!B104) -> احمد عبد الله عثمان سعاده | C9: =CONCATENATE('[1]جدول EMIS'!C104) -> أردني | D9: =CONCATENATE('[1]جدول EMIS'!D104) -> ماركا 2 / 11 / 2004 | E9: ='[1]جدول EMIS'!G104 -> 190 | F9: ='[1]جدول EMIS'!M104 -> 288 | G9: ='[1]جدول EMIS'!S104 -> 149 | H9: ='[1]جدول EMIS'!Y104 -> 162 | I9: ='[1]جدول EMIS'!AE104 -> 108 | J9: ='[1]جدول EMIS'!AK104 -> 236 | K9: =CONCATENATE('[1]جدول EMIS'!BC104) ->  | L9: =CONCATENATE('[1]جدول EMIS'!BI104) -> 97 | M9: =CONCATENATE('[1]جدول EMIS'!BO104) -> 95 | N9: =CONCATENATE('[1]جدول EMIS'!AW104) -> 90 | O9: =CONCATENATE('[1]جدول EMIS'!AQ104) -> 59 | P9: =IF(MATCH($B$3,{"الأول والثاني والثالث"},0)>6,"",CHOOSE((MATCH($B$3,$Q$5:$Q$9,0)<=6)+1,ROUND(AVERAGE(E9:J9),2),ROUND(AVERAGE(E9:J9),2))) -> 169 | Q9: التاسع والعاشر | R9: ='[1]جدول EMIS'!AU8 -> 0
A10: =CONCATENATE('[1]جدول EMIS'!A105) -> 6 | B10: =CONCATENATE('[1]جدول EMIS'!B105) -> احمد اسامه خليل عكه | C10: =CONCATENATE('[1]جدول EMIS'!C105) -> أردني | D10: =CONCATENATE('[1]جدول EMIS'!D105) -> ماركا 3 / 9 / 2004 | E10: ='[1]جدول EMIS'!G105 -> 197 | F10: ='[1]جدول EMIS'!M105 -> 140 | G10: ='[1]جدول EMIS'!S105 -> 84 | H10: ='[1]جدول EMIS'!Y105 -> 68 | I10: ='[1]جدول EMIS'!AE105 -> 12 | J10: ='[1]جدول EMIS'!AK105 -> 114 | K10: =CONCATENATE('[1]جدول EMIS'!BC105) ->  | L10: =CONCATENATE('[1]جدول EMIS'!BI105) -> 28 | M10: =CONCATENATE('[1]جدول EMIS'!BO105) -> 55 | N10: =CONCATENATE('[1]جدول EMIS'!AW105) -> 90 | O10: =CONCATENATE('[1]جدول EMIS'!AQ105) -> 49 | P10: =IF(MATCH($B$3,{"الأول والثاني والثالث"},0)>6,"",CHOOSE((MATCH($B$3,$Q$5:$Q$9,0)<=6)+1,ROUND(AVERAGE(E10:J10),2),ROUND(AVERAGE(E10:J10),2))) -> 95 | R10: ='[1]جدول EMIS'!AU9 -> 0
A11: =CONCATENATE('[1]جدول EMIS'!A106) -> 7 | B11: =CONCATENATE('[1]جدول EMIS'!B106) -> امير رمضان يوسف قمر | C11: =CONCATENATE('[1]جدول EMIS'!C106) -> أردني | D11: =CONCATENATE('[1]جدول EMIS'!D106) -> ماركا 23 / 6 / 2003 | E11: ='[1]جدول EMIS'!G106 -> 100 | F11: ='[1]جدول EMIS'!M106 ->  | G11: ='[1]جدول EMIS'!S106 -> 0 | H11: ='[1]جدول EMIS'!Y106 -> 0 | I11: ='[1]جدول EMIS'!AE106 -> 0 | J11: ='[1]جدول EMIS'!AK106 -> 0 | K11: =CONCATENATE('[1]جدول EMIS'!BC106) ->  | L11: =CONCATENATE('[1]جدول EMIS'!BI106) ->  | M11: =CONCATENATE('[1]جدول EMIS'!BO106) ->  | N11: =CONCATENATE('[1]جدول EMIS'!AW106) -> 90 | O11: =CONCATENATE('[1]جدول EMIS'!AQ106) ->  | P11: =IF(MATCH($B$3,{"الأول والثاني والثالث"},0)>6,"",CHOOSE((MATCH($B$3,$Q$5:$Q$9,0)<=6)+1,ROUND(AVERAGE(E11:J11),2),ROUND(AVERAGE(E11:J11),2))) -> 20 | R11: ='[1]جدول EMIS'!AU10 -> 0
A12: =CONCATENATE('[1]جدول EMIS'!A107) -> 8 | B12: =CONCATENATE('[1]جدول EMIS'!B107) -> بشار اياد مصطفى مزيد | C12: =CONCATENATE('[1]جدول EMIS'!C107) -> أردني | D12: =CONCATENATE('[1]جدول EMIS'!D107) -> ماركا 23 / 12 / 2004 | E12: ='[1]جدول EMIS'!G107 -> 0 | F12: ='[1]جدول EMIS'!M107 -> 300 | G12: ='[1]جدول EMIS'!S107 -> 189 | H12: ='[1]جدول EMIS'!Y107 -> 167 | I12: ='[1]جدول EMIS'!AE107 -> 105 | J12: ='[1]جدول EMIS'!AK107 -> 255 | K12: =CONCATENATE('[1]جدول EMIS'!BC107) ->  | L12: =CONCATENATE('[1]جدول EMIS'!BI107) -> 90 | M12: =CONCATENATE('[1]جدول EMIS'!BO107) -> 95 | N12: =CONCATENATE('[1]جدول EMIS'!AW107) -> 90 | O12: =CONCATENATE('[1]جدول EMIS'!AQ107) -> 59 | P12: =IF(MATCH($B$3,{"الأول والثاني والثالث"},0)>6,"",CHOOSE((MATCH($B$3,$Q$5:$Q$9,0)<=6)+1,ROUND(AVERAGE(E12:J12),2),ROUND(AVERAGE(E12:J12),2))) -> 143.2 | R12: ='[1]جدول EMIS'!AU11 -> 0
A13: =CONCATENATE('[1]جدول EMIS'!A108) -> 9 | B13: =CONCATENATE('[1]جدول EMIS'!B108) -> بلال عمران محارب الغوله | C13: =CONCATENATE('[1]جدول EMIS'!C108) -> فلسطيني | D13: =CONCATENATE('[1]جدول EMIS'!D108) -> ماركا 10 / 6 / 2002 | E13: ='[1]جدول EMIS'!G108 -> 200 | F13: ='[1]جدول EMIS'!M108 ->  | G13: ='[1]جدول EMIS'!S108 -> 0 | H13: ='[1]جدول EMIS'!Y108 -> 53 | I13: ='[1]جدول EMIS'!AE108 -> 0 | J13: ='[1]جدول EMIS'!AK108 -> 0 | K13: =CONCATENATE('[1]جدول EMIS'!BC108) ->  | L13: =CONCATENATE('[1]جدول EMIS'!BI108) -> 23 | M13: =CONCATENATE('[1]جدول EMIS'!BO108) -> 10 | N13: =CONCATENATE('[1]جدول EMIS'!AW108) -> 90 | O13: =CONCATENATE('[1]جدول EMIS'!AQ108) -> 10 | P13: =IF(MATCH($B$3,{"الأول والثاني والثالث"},0)>6,"",CHOOSE((MATCH($B$3,$Q$5:$Q$9,0)<=6)+1,ROUND(AVERAGE(E13:J13),2),ROUND(AVERAGE(E13:J13),2))) -> 50.6 | R13: ='[1]جدول EMIS'!AU12 -> 0
A14: =CONCATENATE('[1]جدول EMIS'!A109) -> 10 | B14: =CONCATENATE('[1]جدول EMIS'!B109) -> حازم احمد عبد الله ضمره | C14: =CONCATENATE('[1]جدول EMIS'!C109) -> أردني | D14: =CONCATENATE('[1]جدول EMIS'!D109) -> ماركا 10 / 10 / 2004 | E14: ='[1]جدول EMIS'!G109 -> 0 | F14: ='[1]جدول EMIS'!M109 -> 130 | G14: ='[1]جدول EMIS'!S109 -> 101 | H14: ='[1]جدول EMIS'!Y109 -> 100 | I14: ='[1]جدول EMIS'!AE109 -> 33 | J14: ='[1]جدول EMIS'!AK109 -> 111 | K14: =CONCATENATE('[1]جدول EMIS'!BC109) ->  | L14: =CONCATENATE('[1]جدول EMIS'!BI109) -> 24 | M14: =CONCATENATE('[1]جدول EMIS'!BO109) -> 56 | N14: =CONCATENATE('[1]جدول EMIS'!AW109) -> 90 | O14: =CONCATENATE('[1]جدول EMIS'!AQ109) -> 46 | P14: =IF(MATCH($B$3,{"الأول والثاني والثالث"},0)>6,"",CHOOSE((MATCH($B$3,$Q$5:$Q$9,0)<=6)+1,ROUND(AVERAGE(E14:J14),2),ROUND(AVERAGE(E14:J14),2))) -> 69 | R14: ='[1]جدول EMIS'!AU13 -> 0
A15: =CONCATENATE('[1]جدول EMIS'!A110) -> 11 | B15: =CONCATENATE('[1]جدول EMIS'!B110) -> حمزة علي محمود نصر الله | C15: =CONCATENATE('[1]جدول EMIS'!C110) -> أردني | D15: =CONCATENATE('[1]جدول EMIS'!D110) -> ماركا 6 / 9 / 2004 | E15: ='[1]جدول EMIS'!G110 -> 100 | F15: ='[1]جدول EMIS'!M110 -> 247 | G15: ='[1]جدول EMIS'!S110 -> 170 | H15: ='[1]جدول EMIS'!Y110 -> 110 | I15: ='[1]جدول EMIS'!AE110 -> 93 | J15: ='[1]جدول EMIS'!AK110 -> 202 | K15: =CONCATENATE('[1]جدول EMIS'!BC110) ->  | L15: =CONCATENATE('[1]جدول EMIS'!BI110) -> 64 | M15: =CONCATENATE('[1]جدول EMIS'!BO110) -> 74 | N15: =CONCATENATE('[1]جدول EMIS'!AW110) -> 90 | O15: =CONCATENATE('[1]جدول EMIS'!AQ110) -> 59 | P15: =IF(MATCH($B$3,{"الأول والثاني والثالث"},0)>6,"",CHOOSE((MATCH($B$3,$Q$5:$Q$9,0)<=6)+1,ROUND(AVERAGE(E15:J15),2),ROUND(AVERAGE(E15:J15),2))) -> 135 | R15: ='[1]جدول EMIS'!AU14 -> 0
A16: =CONCATENATE('[1]جدول EMIS'!A111) -> 12 | B16: =CONCATENATE('[1]جدول EMIS'!B111) -> حمزه محمود عبد الكريم ابو ادعيج | C16: =CONCATENATE('[1]جدول EMIS'!C111) -> أردني | D16: =CONCATENATE('[1]جدول EMIS'!D111) -> ماركا 29 / 8 / 2004 | E16: ='[1]جدول EMIS'!G111 -> 189 | F16: ='[1]جدول EMIS'!M111 -> 120 | G16: ='[1]جدول EMIS'!S111 -> 99 | H16: ='[1]جدول EMIS'!Y111 -> 64 | I16: ='[1]جدول EMIS'!AE111 -> 27 | J16: ='[1]جدول EMIS'!AK111 -> 122 | K16: =CONCATENATE('[1]جدول EMIS'!BC111) ->  | L16: =CONCATENATE('[1]جدول EMIS'!BI111) -> 51 | M16: =CONCATENATE('[1]جدول EMIS'!BO111) -> 66 | N16: =CONCATENATE('[1]جدول EMIS'!AW111) -> 90 | O16: =CONCATENATE('[1]جدول EMIS'!AQ111) -> 51 | P16: =IF(MATCH($B$3,{"الأول والثاني والثالث"},0)>6,"",CHOOSE((MATCH($B$3,$Q$5:$Q$9,0)<=6)+1,ROUND(AVERAGE(E16:J16),2),ROUND(AVERAGE(E16:J16),2))) -> 100.2 | R16: ='[1]جدول EMIS'!AU15 -> 0
A17: =CONCATENATE('[1]جدول EMIS'!A112) -> 13 | B17: =CONCATENATE('[1]جدول EMIS'!B112) -> خلدون محمد محمود اسماعيل | C17: =CONCATENATE('[1]جدول EMIS'!C112) -> أردني | D17: =CONCATENATE('[1]جدول EMIS'!D112) -> ماركا 8 / 11 / 2004 | E17: ='[1]جدول EMIS'!G112 -> 100 | F17: ='[1]جدول EMIS'!M112 -> 220 | G17: ='[1]جدول EMIS'!S112 -> 143 | H17: ='[1]جدول EMIS'!Y112 -> 126 | I17: ='[1]جدول EMIS'!AE112 -> 78 | J17: ='[1]جدول EMIS'!AK112 -> 208 | K17: =CONCATENATE('[1]جدول EMIS'!BC112) ->  | L17: =CONCATENATE('[1]جدول EMIS'!BI112) -> 75 | M17: =CONCATENATE('[1]جدول EMIS'!BO112) -> 79 | N17: =CONCATENATE('[1]جدول EMIS'!AW112) -> 90 | O17: =CONCATENATE('[1]جدول EMIS'!AQ112) -> 59 | P17: =IF(MATCH($B$3,{"الأول والثاني والثالث"},0)>6,"",CHOOSE((MATCH($B$3,$Q$5:$Q$9,0)<=6)+1,ROUND(AVERAGE(E17:J17),2),ROUND(AVERAGE(E17:J17),2))) -> 131 | R17: ='[1]جدول EMIS'!AU16 -> 0
A18: =CONCATENATE('[1]جدول EMIS'!A113) -> 14 | B18: =CONCATENATE('[1]جدول EMIS'!B113) -> زياد خالد محمود النادى | C18: =CONCATENATE('[1]جدول EMIS'!C113) -> أردني | D18: =CONCATENATE('[1]جدول EMIS'!D113) -> ماركا 2 / 2 / 2004 | E18: ='[1]جدول EMIS'!G113 -> 193 | F18: ='[1]جدول EMIS'!M113 -> 115 | G18: ='[1]جدول EMIS'!S113 -> 111 | H18: ='[1]جدول EMIS'!Y113 -> 81 | I18: ='[1]جدول EMIS'!AE113 -> 30 | J18: ='[1]جدول EMIS'!AK113 -> 111 | K18: =CONCATENATE('[1]جدول EMIS'!BC113) ->  | L18: =CONCATENATE('[1]جدول EMIS'!BI113) -> 38 | M18: =CONCATENATE('[1]جدول EMIS'!BO113) -> 45 | N18: =CONCATENATE('[1]جدول EMIS'!AW113) -> 90 | O18: =CONCATENATE('[1]جدول EMIS'!AQ113) -> 38 | P18: =IF(MATCH($B$3,{"الأول والثاني والثالث"},0)>6,"",CHOOSE((MATCH($B$3,$Q$5:$Q$9,0)<=6)+1,ROUND(AVERAGE(E18:J18),2),ROUND(AVERAGE(E18:J18),2))) -> 105.2 | R18: ='[1]جدول EMIS'!AU17 -> 0
A19: =CONCATENATE('[1]جدول EMIS'!A114) -> 15 | B19: =CONCATENATE('[1]جدول EMIS'!B114) -> سليم صالح سليم الشلبي | C19: =CONCATENATE('[1]جدول EMIS'!C114) -> أردني | D19: =CONCATENATE('[1]جدول EMIS'!D114) -> ماركا 24 / 10 / 2004 | E19: ='[1]جدول EMIS'!G114 -> 100 | F19: ='[1]جدول EMIS'!M114 -> 98 | G19: ='[1]جدول EMIS'!S114 -> 97 | H19: ='[1]جدول EMIS'!Y114 -> 90 | I19: ='[1]جدول EMIS'!AE114 -> 21 | J19: ='[1]جدول EMIS'!AK114 -> 126 | K19: =CONCATENATE('[1]جدول EMIS'!BC114) ->  | L19: =CONCATENATE('[1]جدول EMIS'!BI114) -> 24 | M19: =CONCATENATE('[1]جدول EMIS'!BO114) -> 48 | N19: =CONCATENATE('[1]جدول EMIS'!AW114) -> 90 | O19: =CONCATENATE('[1]جدول EMIS'!AQ114) -> 39 | P19: =IF(MATCH($B$3,{"الأول والثاني والثالث"},0)>6,"",CHOOSE((MATCH($B$3,$Q$5:$Q$9,0)<=6)+1,ROUND(AVERAGE(E19:J19),2),ROUND(AVERAGE(E19:J19),2))) -> 86.8 | R19: ='[1]جدول EMIS'!AU18 -> 0
A20: =CONCATENATE('[1]جدول EMIS'!A115) -> 16 | B20: =CONCATENATE('[1]جدول EMIS'!B115) -> طارق امجد عاصم الكرمي | C20: =CONCATENATE('[1]جدول EMIS'!C115) -> أردني | D20: =CONCATENATE('[1]جدول EMIS'!D115) -> قصبة عمان 8 / 7 / 2004 | E20: ='[1]جدول EMIS'!G115 -> 100 | F20: ='[1]جدول EMIS'!M115 -> 199 | G20: ='[1]جدول EMIS'!S115 -> 146 | H20: ='[1]جدول EMIS'!Y115 -> 112 | I20: ='[1]جدول EMIS'!AE115 -> 48 | J20: ='[1]جدول EMIS'!AK115 -> 180 | K20: =CONCATENATE('[1]جدول EMIS'!BC115) ->  | L20: =CONCATENATE('[1]جدول EMIS'!BI115) -> 59 | M20: =CONCATENATE('[1]جدول EMIS'!BO115) -> 65 | N20: =CONCATENATE('[1]جدول EMIS'!AW115) -> 90 | O20: =CONCATENATE('[1]جدول EMIS'!AQ115) -> 55 | P20: =IF(MATCH($B$3,{"الأول والثاني والثالث"},0)>6,"",CHOOSE((MATCH($B$3,$Q$5:$Q$9,0)<=6)+1,ROUND(AVERAGE(E20:J20),2),ROUND(AVERAGE(E20:J20),2))) -> 117.2 | R20: ='[1]جدول EMIS'!AU19 -> 0
A21: =CONCATENATE('[1]جدول EMIS'!A116) -> 17 | B21: =CONCATENATE('[1]جدول EMIS'!B116) -> عباده مناضل غالب الريماوي | C21: =CONCATENATE('[1]جدول EMIS'!C116) -> أردني | D21: =CONCATENATE('[1]جدول EMIS'!D116) -> ماركا 4 / 12 / 2004 | E21: ='[1]جدول EMIS'!G116 -> 160 | F21: ='[1]جدول EMIS'!M116 -> 273 | G21: ='[1]جدول EMIS'!S116 -> 156 | H21: ='[1]جدول EMIS'!Y116 -> 187 | I21: ='[1]جدول EMIS'!AE116 -> 99 | J21: ='[1]جدول EMIS'!AK116 -> 248 | K21: =CONCATENATE('[1]جدول EMIS'!BC116) ->  | L21: =CONCATENATE('[1]جدول EMIS'!BI116) -> 94 | M21: =CONCATENATE('[1]جدول EMIS'!BO116) -> 80 | N21: =CONCATENATE('[1]جدول EMIS'!AW116) -> 90 | O21: =CONCATENATE('[1]جدول EMIS'!AQ116) -> 57 | P21: =IF(MATCH($B$3,{"الأول والثاني والثالث"},0)>6,"",CHOOSE((MATCH($B$3,$Q$5:$Q$9,0)<=6)+1,ROUND(AVERAGE(E21:J21),2),ROUND(AVERAGE(E21:J21),2))) -> 170 | R21: ='[1]جدول EMIS'!AU20 -> 0
A22: =CONCATENATE('[1]جدول EMIS'!A117) -> 18 | B22: =CONCATENATE('[1]جدول EMIS'!B117) -> عبد الرحمن يوسف محمد ابو قدوم | C22: =CONCATENATE('[1]جدول EMIS'!C117) -> أردني | D22: =CONCATENATE('[1]جدول EMIS'!D117) -> ماركا 20 / 9 / 2004 | E22: ='[1]جدول EMIS'!G117 -> 193 | F22: ='[1]جدول EMIS'!M117 -> 183 | G22: ='[1]جدول EMIS'!S117 -> 118 | H22: ='[1]جدول EMIS'!Y117 -> 90 | I22: ='[1]جدول EMIS'!AE117 -> 54 | J22: ='[1]جدول EMIS'!AK117 -> 199 | K22: =CONCATENATE('[1]جدول EMIS'!BC117) ->  | L22: =CONCATENATE('[1]جدول EMIS'!BI117) -> 60 | M22: =CONCATENATE('[1]جدول EMIS'!BO117) -> 77 | N22: =CONCATENATE('[1]جدول EMIS'!AW117) -> 90 | O22: =CONCATENATE('[1]جدول EMIS'!AQ117) -> 53 | P22: =IF(MATCH($B$3,{"الأول والثاني والثالث"},0)>6,"",CHOOSE((MATCH($B$3,$Q$5:$Q$9,0)<=6)+1,ROUND(AVERAGE(E22:J22),2),ROUND(AVERAGE(E22:J22),2))) -> 130.8 | R22: ='[1]جدول EMIS'!AU21 -> 0
A23: =CONCATENATE('[1]جدول EMIS'!A118) -> 19 | B23: =CONCATENATE('[1]جدول EMIS'!B118) -> عبد الرحيم ابراهيم عبد الرحيم حزين | C23: =CONCATENATE('[1]جدول EMIS'!C118) -> أردني | D23: =CONCATENATE('[1]جدول EMIS'!D118) -> ماركا 21 / 6 / 2004 | E23: ='[1]جدول EMIS'!G118 -> 134 | F23: ='[1]جدول EMIS'!M118 ->  | G23: ='[1]جدول EMIS'!S118 -> 0 | H23: ='[1]جدول EMIS'!Y118 -> 0 | I23: ='[1]جدول EMIS'!AE118 -> 0 | J23: ='[1]جدول EMIS'!AK118 -> 0 | K23: =CONCATENATE('[1]جدول EMIS'!BC118) ->  | L23: =CONCATENATE('[1]جدول EMIS'!BI118) ->  | M23: =CONCATENATE('[1]جدول EMIS'!BO118) ->  | N23: =CONCATENATE('[1]جدول EMIS'!AW118) -> 90 | O23: =CONCATENATE('[1]جدول EMIS'!AQ118) ->  | P23: =IF(MATCH($B$3,{"الأول والثاني والثالث"},0)>6,"",CHOOSE((MATCH($B$3,$Q$5:$Q$9,0)<=6)+1,ROUND(AVERAGE(E23:J23),2),ROUND(AVERAGE(E23:J23),2))) -> 26.8 | R23: ='[1]جدول EMIS'!AU22 -> 0
A24: =CONCATENATE('[1]جدول EMIS'!A119) -> 20 | B24: =CONCATENATE('[1]جدول EMIS'!B119) -> عبد الله غسان يوسف ابو اسنينه | C24: =CONCATENATE('[1]جدول EMIS'!C119) -> أردني | D24: =CONCATENATE('[1]جدول EMIS'!D119) -> القويسمة 25 / 12 / 2002 | E24: ='[1]جدول EMIS'!G119 -> 0 | F24: ='[1]جدول EMIS'!M119 -> 80 | G24: ='[1]جدول EMIS'!S119 -> 110 | H24: ='[1]جدول EMIS'!Y119 -> 78 | I24: ='[1]جدول EMIS'!AE119 -> 33 | J24: ='[1]جدول EMIS'!AK119 -> 118 | K24: =CONCATENATE('[1]جدول EMIS'!BC119) ->  | L24: =CONCATENATE('[1]جدول EMIS'!BI119) -> 26 | M24: =CONCATENATE('[1]جدول EMIS'!BO119) -> 53 | N24: =CONCATENATE('[1]جدول EMIS'!AW119) -> 90 | O24: =CONCATENATE('[1]جدول EMIS'!AQ119) -> 43 | P24: =IF(MATCH($B$3,{"الأول والثاني والثالث"},0)>6,"",CHOOSE((MATCH($B$3,$Q$5:$Q$9,0)<=6)+1,ROUND(AVERAGE(E24:J24),2),ROUND(AVERAGE(E24:J24),2))) -> 67.8 | R24: ='[1]جدول EMIS'!AU23 -> 0
A25: =CONCATENATE('[1]جدول EMIS'!A120) -> 21 | B25: =CONCATENATE('[1]جدول EMIS'!B120) -> عبد الله نبيل مصطفى بدير | C25: =CONCATENATE('[1]جدول EMIS'!C120) -> أردني | D25: =CONCATENATE('[1]جدول EMIS'!D120) -> العاصمة عمان 9 / 4 / 2004 | E25: ='[1]جدول EMIS'!G120 -> 120 | F25: ='[1]جدول EMIS'!M120 -> 126 | G25: ='[1]جدول EMIS'!S120 -> 114 | H25: ='[1]جدول EMIS'!Y120 -> 88 | I25: ='[1]جدول EMIS'!AE120 -> 15 | J25: ='[1]جدول EMIS'!AK120 -> 111 | K25: =CONCATENATE('[1]جدول EMIS'!BC120) ->  | L25: =CONCATENATE('[1]جدول EMIS'!BI120) -> 35 | M25: =CONCATENATE('[1]جدول EMIS'!BO120) -> 44 | N25: =CONCATENATE('[1]جدول EMIS'!AW120) -> 90 | O25: =CONCATENATE('[1]جدول EMIS'!AQ120) -> 34 | P25: =IF(MATCH($B$3,{"الأول والثاني والثالث"},0)>6,"",CHOOSE((MATCH($B$3,$Q$5:$Q$9,0)<=6)+1,ROUND(AVERAGE(E25:J25),2),ROUND(AVERAGE(E25:J25),2))) -> 89.6 | R25: ='[1]جدول EMIS'!AU24 -> 0
A26: =CONCATENATE('[1]جدول EMIS'!A121) -> 22 | B26: =CONCATENATE('[1]جدول EMIS'!B121) -> عبد الله اسامه وهيب حسين | C26: =CONCATENATE('[1]جدول EMIS'!C121) -> أردني | D26: =CONCATENATE('[1]جدول EMIS'!D121) -> ماركا 11 / 10 / 2004 | E26: ='[1]جدول EMIS'!G121 -> 102 | F26: ='[1]جدول EMIS'!M121 -> 160 | G26: ='[1]جدول EMIS'!S121 -> 131 | H26: ='[1]جدول EMIS'!Y121 -> 90 | I26: ='[1]جدول EMIS'!AE121 -> 69 | J26: ='[1]جدول EMIS'!AK121 -> 183 | K26: =CONCATENATE('[1]جدول EMIS'!BC121) ->  | L26: =CONCATENATE('[1]جدول EMIS'!BI121) -> 50 | M26: =CONCATENATE('[1]جدول EMIS'!BO121) -> 71 | N26: =CONCATENATE('[1]جدول EMIS'!AW121) -> 90 | O26: =CONCATENATE('[1]جدول EMIS'!AQ121) -> 51 | P26: =IF(MATCH($B$3,{"الأول والثاني والثالث"},0)>6,"",CHOOSE((MATCH($B$3,$Q$5:$Q$9,0)<=6)+1,ROUND(AVERAGE(E26:J26),2),ROUND(AVERAGE(E26:J26),2))) -> 115 | R26: ='[1]جدول EMIS'!AU25 -> 0
A27: =CONCATENATE('[1]جدول EMIS'!A122) -> 23 | B27: =CONCATENATE('[1]جدول EMIS'!B122) -> عبدالله اسعد نعيم عواد | C27: =CONCATENATE('[1]جدول EMIS'!C122) -> أردني | D27: =CONCATENATE('[1]جدول EMIS'!D122) -> ماركا 26 / 8 / 2005 | E27: ='[1]جدول EMIS'!G122 -> 186 | F27: ='[1]جدول EMIS'!M122 -> 165 | G27: ='[1]جدول EMIS'!S122 -> 145 | H27: ='[1]جدول EMIS'!Y122 -> 101 | I27: ='[1]جدول EMIS'!AE122 -> 51 | J27: ='[1]جدول EMIS'!AK122 -> 165 | K27: =CONCATENATE('[1]جدول EMIS'!BC122) ->  | L27: =CONCATENATE('[1]جدول EMIS'!BI122) -> 61 | M27: =CONCATENATE('[1]جدول EMIS'!BO122) -> 82 | N27: =CONCATENATE('[1]جدول EMIS'!AW122) -> 90 | O27: =CONCATENATE('[1]جدول EMIS'!AQ122) -> 54 | P27: =IF(MATCH($B$3,{"الأول والثاني والثالث"},0)>6,"",CHOOSE((MATCH($B$3,$Q$5:$Q$9,0)<=6)+1,ROUND(AVERAGE(E27:J27),2),ROUND(AVERAGE(E27:J27),2))) -> 129.6 | R27: ='[1]جدول EMIS'!AU26 -> 0
A28: =CONCATENATE('[1]جدول EMIS'!A123) -> 24 | B28: =CONCATENATE('[1]جدول EMIS'!B123) -> علي كمال محمد ابو جراده | C28: =CONCATENATE('[1]جدول EMIS'!C123) -> أردني | D28: =CONCATENATE('[1]جدول EMIS'!D123) -> العاصمة عمان 21 / 11 / 2004 | E28: ='[1]جدول EMIS'!G123 -> 151 | F28: ='[1]جدول EMIS'!M123 -> 152 | G28: ='[1]جدول EMIS'!S123 -> 110 | H28: ='[1]جدول EMIS'!Y123 -> 63 | I28: ='[1]جدول EMIS'!AE123 -> 42 | J28: ='[1]جدول EMIS'!AK123 -> 131 | K28: =CONCATENATE('[1]جدول EMIS'!BC123) ->  | L28: =CONCATENATE('[1]جدول EMIS'!BI123) -> 68 | M28: =CONCATENATE('[1]جدول EMIS'!BO123) -> 71 | N28: =CONCATENATE('[1]جدول EMIS'!AW123) -> 90 | O28: =CONCATENATE('[1]جدول EMIS'!AQ123) -> 49 | P28: =IF(MATCH($B$3,{"الأول والثاني والثالث"},0)>6,"",CHOOSE((MATCH($B$3,$Q$5:$Q$9,0)<=6)+1,ROUND(AVERAGE(E28:J28),2),ROUND(AVERAGE(E28:J28),2))) -> 99.4 | R28: ='[1]جدول EMIS'!AU27 -> 0
A29: =CONCATENATE('[1]جدول EMIS'!A124) -> 25 | B29: =CONCATENATE('[1]جدول EMIS'!B124) -> غيث اسامه راشد ابومطر | C29: =CONCATENATE('[1]جدول EMIS'!C124) -> أردني | D29: =CONCATENATE('[1]جدول EMIS'!D124) -> ماركا 23 / 6 / 2004 | E29: ='[1]جدول EMIS'!G124 -> 124 | F29: ='[1]جدول EMIS'!M124 -> 140 | G29: ='[1]جدول EMIS'!S124 -> 91 | H29: ='[1]جدول EMIS'!Y124 -> 86 | I29: ='[1]جدول EMIS'!AE124 -> 45 | J29: ='[1]جدول EMIS'!AK124 -> 117 | K29: =CONCATENATE('[1]جدول EMIS'!BC124) ->  | L29: =CONCATENATE('[1]جدول EMIS'!BI124) -> 30 | M29: =CONCATENATE('[1]جدول EMIS'!BO124) -> 47 | N29: =CONCATENATE('[1]جدول EMIS'!AW124) -> 90 | O29: =CONCATENATE('[1]جدول EMIS'!AQ124) -> 35 | P29: =IF(MATCH($B$3,{"الأول والثاني والثالث"},0)>6,"",CHOOSE((MATCH($B$3,$Q$5:$Q$9,0)<=6)+1,ROUND(AVERAGE(E29:J29),2),ROUND(AVERAGE(E29:J29),2))) -> 92.6 | R29: ='[1]جدول EMIS'!AU28 -> 0
A30: =CONCATENATE('[1]جدول EMIS'!A125) -> 26 | B30: =CONCATENATE('[1]جدول EMIS'!B125) -> فراس شادي عزت محمود صالح | C30: =CONCATENATE('[1]جدول EMIS'!C125) -> أردني | D30: =CONCATENATE('[1]جدول EMIS'!D125) -> ماركا 29 / 12 / 2004 | E30: ='[1]جدول EMIS'!G125 -> 100 | F30: ='[1]جدول EMIS'!M125 -> 250 | G30: ='[1]جدول EMIS'!S125 -> 198 | H30: ='[1]جدول EMIS'!Y125 -> 140 | I30: ='[1]جدول EMIS'!AE125 -> 90 | J30: ='[1]جدول EMIS'!AK125 -> 236 | K30: =CONCATENATE('[1]جدول EMIS'!BC125) ->  | L30: =CONCATENATE('[1]جدول EMIS'!BI125) -> 78 | M30: =CONCATENATE('[1]جدول EMIS'!BO125) -> 91 | N30: =CONCATENATE('[1]جدول EMIS'!AW125) -> 90 | O30: =CONCATENATE('[1]جدول EMIS'!AQ125) -> 59 | P30: =IF(MATCH($B$3,{"الأول والثاني والثالث"},0)>6,"",CHOOSE((MATCH($B$3,$Q$5:$Q$9,0)<=6)+1,ROUND(AVERAGE(E30:J30),2),ROUND(AVERAGE(E30:J30),2))) -> 152.8 | R30: ='[1]جدول EMIS'!AU29 -> 0
A31: =CONCATENATE('[1]جدول EMIS'!A126) -> 27 | B31: =CONCATENATE('[1]جدول EMIS'!B126) -> كمال احمد كمال عمرو | C31: =CONCATENATE('[1]جدول EMIS'!C126) -> أردني | D31: =CONCATENATE('[1]جدول EMIS'!D126) -> ماركا 14 / 8 / 2004 | E31: ='[1]جدول EMIS'!G126 -> 179 | F31: ='[1]جدول EMIS'!M126 -> 230 | G31: ='[1]جدول EMIS'!S126 -> 146 | H31: ='[1]جدول EMIS'!Y126 -> 151 | I31: ='[1]جدول EMIS'!AE126 -> 96 | J31: ='[1]جدول EMIS'!AK126 -> 233 | K31: =CONCATENATE('[1]جدول EMIS'!BC126) ->  | L31: =CONCATENATE('[1]جدول EMIS'!BI126) -> 76 | M31: =CONCATENATE('[1]جدول EMIS'!BO126) -> 92 | N31: =CONCATENATE('[1]جدول EMIS'!AW126) -> 90 | O31: =CONCATENATE('[1]جدول EMIS'!AQ126) -> 59 | P31: =IF(MATCH($B$3,{"الأول والثاني والثالث"},0)>6,"",CHOOSE((MATCH($B$3,$Q$5:$Q$9,0)<=6)+1,ROUND(AVERAGE(E31:J31),2),ROUND(AVERAGE(E31:J31),2))) -> 161 | R31: ='[1]جدول EMIS'!AU30 -> 0
A32: =CONCATENATE('[1]جدول EMIS'!A127) -> 28 | B32: =CONCATENATE('[1]جدول EMIS'!B127) -> ليث عدنان اسماعيل عكه | C32: =CONCATENATE('[1]جدول EMIS'!C127) -> أردني | D32: =CONCATENATE('[1]جدول EMIS'!D127) -> ماركا 21 / 12 / 2003 | E32: ='[1]جدول EMIS'!G127 -> 188 | F32: ='[1]جدول EMIS'!M127 ->  | G32: ='[1]جدول EMIS'!S127 -> 0 | H32: ='[1]جدول EMIS'!Y127 -> 0 | I32: ='[1]جدول EMIS'!AE127 -> 0 | J32: ='[1]جدول EMIS'!AK127 -> 0 | K32: =CONCATENATE('[1]جدول EMIS'!BC127) ->  | L32: =CONCATENATE('[1]جدول EMIS'!BI127) ->  | M32: =CONCATENATE('[1]جدول EMIS'!BO127) ->  | N32: =CONCATENATE('[1]جدول EMIS'!AW127) -> 90 | O32: =CONCATENATE('[1]جدول EMIS'!AQ127) ->  | P32: =IF(MATCH($B$3,{"الأول والثاني والثالث"},0)>6,"",CHOOSE((MATCH($B$3,$Q$5:$Q$9,0)<=6)+1,ROUND(AVERAGE(E32:J32),2),ROUND(AVERAGE(E32:J32),2))) -> 37.6 | R32: ='[1]جدول EMIS'!AU31 -> 0
A33: =CONCATENATE('[1]جدول EMIS'!A128) -> 29 | B33: =CONCATENATE('[1]جدول EMIS'!B128) -> مؤيد منير عثمان صالح | C33: =CONCATENATE('[1]جدول EMIS'!C128) -> أردني | D33: =CONCATENATE('[1]جدول EMIS'!D128) -> ماركا 2 / 2 / 2004 | E33: ='[1]جدول EMIS'!G128 -> 32 | F33: ='[1]جدول EMIS'!M128 -> 125 | G33: ='[1]جدول EMIS'!S128 -> 93 | H33: ='[1]جدول EMIS'!Y128 -> 74 | I33: ='[1]جدول EMIS'!AE128 -> 39 | J33: ='[1]جدول EMIS'!AK128 -> 120 | K33: =CONCATENATE('[1]جدول EMIS'!BC128) ->  | L33: =CONCATENATE('[1]جدول EMIS'!BI128) -> 29 | M33: =CONCATENATE('[1]جدول EMIS'!BO128) -> 43 | N33: =CONCATENATE('[1]جدول EMIS'!AW128) -> 90 | O33: =CONCATENATE('[1]جدول EMIS'!AQ128) -> 33 | P33: =IF(MATCH($B$3,{"الأول والثاني والثالث"},0)>6,"",CHOOSE((MATCH($B$3,$Q$5:$Q$9,0)<=6)+1,ROUND(AVERAGE(E33:J33),2),ROUND(AVERAGE(E33:J33),2))) -> 71.6 | R33: ='[1]جدول EMIS'!AU32 -> 0
A34: =CONCATENATE('[1]جدول EMIS'!A129) -> 30 | B34: =CONCATENATE('[1]جدول EMIS'!B129) -> مالك علاء محمد خليل | C34: =CONCATENATE('[1]جدول EMIS'!C129) -> أردني | D34: =CONCATENATE('[1]جدول EMIS'!D129) -> ماركا 14 / 9 / 2004 | E34: ='[1]جدول EMIS'!G129 -> 100 | F34: ='[1]جدول EMIS'!M129 -> 245 | G34: ='[1]جدول EMIS'!S129 -> 89 | H34: ='[1]جدول EMIS'!Y129 -> 136 | I34: ='[1]جدول EMIS'!AE129 -> 51 | J34: ='[1]جدول EMIS'!AK129 -> 229 | K34: =CONCATENATE('[1]جدول EMIS'!BC129) ->  | L34: =CONCATENATE('[1]جدول EMIS'!BI129) -> 79 | M34: =CONCATENATE('[1]جدول EMIS'!BO129) -> 89 | N34: =CONCATENATE('[1]جدول EMIS'!AW129) -> 90 | O34: =CONCATENATE('[1]جدول EMIS'!AQ129) -> 59 | P34: =IF(MATCH($B$3,{"الأول والثاني والثالث"},0)>6,"",CHOOSE((MATCH($B$3,$Q$5:$Q$9,0)<=6)+1,ROUND(AVERAGE(E34:J34),2),ROUND(AVERAGE(E34:J34),2))) -> 121 | R34: ='[1]جدول EMIS'!AU33 -> 0
A35: =CONCATENATE('[1]جدول EMIS'!A130) -> 31 | B35: =CONCATENATE('[1]جدول EMIS'!B130) -> مامون مصطفى مصلح ابو العيش | C35: =CONCATENATE('[1]جدول EMIS'!C130) -> فلسطيني | D35: =CONCATENATE('[1]جدول EMIS'!D130) -> ماركا 17 / 3 / 2004 | E35: ='[1]جدول EMIS'!G130 -> 198 | F35: ='[1]جدول EMIS'!M130 ->  | G35: ='[1]جدول EMIS'!S130 -> 0 | H35: ='[1]جدول EMIS'!Y130 -> 0 | I35: ='[1]جدول EMIS'!AE130 -> 0 | J35: ='[1]جدول EMIS'!AK130 -> 0 | K35: =CONCATENATE('[1]جدول EMIS'!BC130) ->  | L35: =CONCATENATE('[1]جدول EMIS'!BI130) ->  | M35: =CONCATENATE('[1]جدول EMIS'!BO130) ->  | N35: =CONCATENATE('[1]جدول EMIS'!AW130) -> 90 | O35: =CONCATENATE('[1]جدول EMIS'!AQ130) ->  | P35: =IF(MATCH($B$3,{"الأول والثاني والثالث"},0)>6,"",CHOOSE((MATCH($B$3,$Q$5:$Q$9,0)<=6)+1,ROUND(AVERAGE(E35:J35),2),ROUND(AVERAGE(E35:J35),2))) -> 39.6 | R35: ='[1]جدول EMIS'!AU34 -> 0
A36: =CONCATENATE('[1]جدول EMIS'!A131) -> 32 | B36: =CONCATENATE('[1]جدول EMIS'!B131) -> محمد محمد جعفر عبد الكريم ابو درعان النتشه | C36: =CONCATENATE('[1]جدول EMIS'!C131) -> أردني | D36: =CONCATENATE('[1]جدول EMIS'!D131) -> ماركا 3 / 3 / 2004 | E36: ='[1]جدول EMIS'!G131 -> 0 | F36: ='[1]جدول EMIS'!M131 -> 106 | G36: ='[1]جدول EMIS'!S131 -> 88 | H36: ='[1]جدول EMIS'!Y131 -> 67 | I36: ='[1]جدول EMIS'!AE131 -> 60 | J36: ='[1]جدول EMIS'!AK131 -> 126 | K36: =CONCATENATE('[1]جدول EMIS'!BC131) ->  | L36: =CONCATENATE('[1]جدول EMIS'!BI131) -> 37 | M36: =CONCATENATE('[1]جدول EMIS'!BO131) -> 43 | N36: =CONCATENATE('[1]جدول EMIS'!AW131) -> 90 | O36: =CONCATENATE('[1]جدول EMIS'!AQ131) -> 33 | P36: =IF(MATCH($B$3,{"الأول والثاني والثالث"},0)>6,"",CHOOSE((MATCH($B$3,$Q$5:$Q$9,0)<=6)+1,ROUND(AVERAGE(E36:J36),2),ROUND(AVERAGE(E36:J36),2))) -> 68.2 | R36: ='[1]جدول EMIS'!AU35 -> 0
A37: =CONCATENATE('[1]جدول EMIS'!A132) -> 33 | B37: =CONCATENATE('[1]جدول EMIS'!B132) -> محمد عطا الله عبد الله الرياحي | C37: =CONCATENATE('[1]جدول EMIS'!C132) -> أردني | D37: =CONCATENATE('[1]جدول EMIS'!D132) -> ماركا 13 / 2 / 2004 | E37: ='[1]جدول EMIS'!G132 -> 100 | F37: ='[1]جدول EMIS'!M132 -> 120 | G37: ='[1]جدول EMIS'!S132 -> 89 | H37: ='[1]جدول EMIS'!Y132 -> 100 | I37: ='[1]جدول EMIS'!AE132 -> 54 | J37: ='[1]جدول EMIS'!AK132 -> 108 | K37: =CONCATENATE('[1]جدول EMIS'!BC132) ->  | L37: =CONCATENATE('[1]جدول EMIS'!BI132) -> 38 | M37: =CONCATENATE('[1]جدول EMIS'!BO132) -> 43 | N37: =CONCATENATE('[1]جدول EMIS'!AW132) -> 90 | O37: =CONCATENATE('[1]جدول EMIS'!AQ132) -> 33 | P37: =IF(MATCH($B$3,{"الأول والثاني والثالث"},0)>6,"",CHOOSE((MATCH($B$3,$Q$5:$Q$9,0)<=6)+1,ROUND(AVERAGE(E37:J37),2),ROUND(AVERAGE(E37:J37),2))) -> 90.2 | R37: ='[1]جدول EMIS'!AU36 -> 0
A38: =CONCATENATE('[1]جدول EMIS'!A133) -> 34 | B38: =CONCATENATE('[1]جدول EMIS'!B133) -> محمد عبد الرحمن محمد القرنه | C38: =CONCATENATE('[1]جدول EMIS'!C133) -> أردني | D38: =CONCATENATE('[1]جدول EMIS'!D133) -> ماركا 18 / 8 / 2004 | E38: ='[1]جدول EMIS'!G133 -> 101 | F38: ='[1]جدول EMIS'!M133 -> 262 | G38: ='[1]جدول EMIS'!S133 -> 161 | H38: ='[1]جدول EMIS'!Y133 -> 114 | I38: ='[1]جدول EMIS'!AE133 -> 87 | J38: ='[1]جدول EMIS'!AK133 -> 228 | K38: =CONCATENATE('[1]جدول EMIS'!BC133) ->  | L38: =CONCATENATE('[1]جدول EMIS'!BI133) -> 80 | M38: =CONCATENATE('[1]جدول EMIS'!BO133) -> 77 | N38: =CONCATENATE('[1]جدول EMIS'!AW133) -> 90 | O38: =CONCATENATE('[1]جدول EMIS'!AQ133) -> 57 | P38: =IF(MATCH($B$3,{"الأول والثاني والثالث"},0)>6,"",CHOOSE((MATCH($B$3,$Q$5:$Q$9,0)<=6)+1,ROUND(AVERAGE(E38:J38),2),ROUND(AVERAGE(E38:J38),2))) -> 138.2 | R38: ='[1]جدول EMIS'!AU37 -> 0
A39: =CONCATENATE('[1]جدول EMIS'!A134) -> 35 | B39: =CONCATENATE('[1]جدول EMIS'!B134) -> محمد منيب جودى الهيموني | C39: =CONCATENATE('[1]جدول EMIS'!C134) -> أردني | D39: =CONCATENATE('[1]جدول EMIS'!D134) -> ماركا 14 / 2 / 2004 | E39: ='[1]جدول EMIS'!G134 -> 184 | F39: ='[1]جدول EMIS'!M134 -> 135 | G39: ='[1]جدول EMIS'!S134 -> 99 | H39: ='[1]جدول EMIS'!Y134 -> 48 | I39: ='[1]جدول EMIS'!AE134 -> 33 | J39: ='[1]جدول EMIS'!AK134 -> 106 | K39: =CONCATENATE('[1]جدول EMIS'!BC134) ->  | L39: =CONCATENATE('[1]جدول EMIS'!BI134) -> 44 | M39: =CONCATENATE('[1]جدول EMIS'!BO134) -> 58 | N39: =CONCATENATE('[1]جدول EMIS'!AW134) -> 90 | O39: =CONCATENATE('[1]جدول EMIS'!AQ134) -> 49 | P39: =IF(MATCH($B$3,{"الأول والثاني والثالث"},0)>6,"",CHOOSE((MATCH($B$3,$Q$5:$Q$9,0)<=6)+1,ROUND(AVERAGE(E39:J39),2),ROUND(AVERAGE(E39:J39),2))) -> 94 | R39: ='[1]جدول EMIS'!AU38 -> 0
A40: =CONCATENATE('[1]جدول EMIS'!A135) -> 36 | B40: =CONCATENATE('[1]جدول EMIS'!B135) -> محمد سميح حسين حسان | C40: =CONCATENATE('[1]جدول EMIS'!C135) -> أردني | D40: =CONCATENATE('[1]جدول EMIS'!D135) -> ماركا 28 / 12 / 2004 | E40: ='[1]جدول EMIS'!G135 -> 100 | F40: ='[1]جدول EMIS'!M135 -> 114 | G40: ='[1]جدول EMIS'!S135 -> 56 | H40: ='[1]جدول EMIS'!Y135 -> 71 | I40: ='[1]جدول EMIS'!AE135 -> 0 | J40: ='[1]جدول EMIS'!AK135 -> 100 | K40: =CONCATENATE('[1]جدول EMIS'!BC135) ->  | L40: =CONCATENATE('[1]جدول EMIS'!BI135) -> 22 | M40: =CONCATENATE('[1]جدول EMIS'!BO135) -> 38 | N40: =CONCATENATE('[1]جدول EMIS'!AW135) -> 90 | O40: =CONCATENATE('[1]جدول EMIS'!AQ135) -> 38 | P40: =IF(MATCH($B$3,{"الأول والثاني والثالث"},0)>6,"",CHOOSE((MATCH($B$3,$Q$5:$Q$9,0)<=6)+1,ROUND(AVERAGE(E40:J40),2),ROUND(AVERAGE(E40:J40),2))) -> 65.4 | R40: ='[1]جدول EMIS'!AU39 -> 0
A41: =CONCATENATE('[1]جدول EMIS'!A136) -> 37 | B41: =CONCATENATE('[1]جدول EMIS'!B136) -> محمود حموده طه الصوري | C41: =CONCATENATE('[1]جدول EMIS'!C136) -> أردني | D41: =CONCATENATE('[1]جدول EMIS'!D136) -> ماركا 25 / 11 / 2004 | E41: ='[1]جدول EMIS'!G136 -> 0 | F41: ='[1]جدول EMIS'!M136 -> 265 | G41: ='[1]جدول EMIS'!S136 -> 119 | H41: ='[1]جدول EMIS'!Y136 -> 135 | I41: ='[1]جدول EMIS'!AE136 -> 99 | J41: ='[1]جدول EMIS'!AK136 -> 241 | K41: =CONCATENATE('[1]جدول EMIS'!BC136) ->  | L41: =CONCATENATE('[1]جدول EMIS'!BI136) -> 70 | M41: =CONCATENATE('[1]جدول EMIS'!BO136) -> 93 | N41: =CONCATENATE('[1]جدول EMIS'!AW136) -> 90 | O41: =CONCATENATE('[1]جدول EMIS'!AQ136) -> 59 | P41: =IF(MATCH($B$3,{"الأول والثاني والثالث"},0)>6,"",CHOOSE((MATCH($B$3,$Q$5:$Q$9,0)<=6)+1,ROUND(AVERAGE(E41:J41),2),ROUND(AVERAGE(E41:J41),2))) -> 118.8 | R41: ='[1]جدول EMIS'!AU40 -> 0
A42: =CONCATENATE('[1]جدول EMIS'!A137) -> 38 | B42: =CONCATENATE('[1]جدول EMIS'!B137) -> معتصم مهنا مصباح غيث | C42: =CONCATENATE('[1]جدول EMIS'!C137) -> أردني | D42: =CONCATENATE('[1]جدول EMIS'!D137) -> ماركا 14 / 12 / 2004 | E42: ='[1]جدول EMIS'!G137 -> 184 | F42: ='[1]جدول EMIS'!M137 -> 131 | G42: ='[1]جدول EMIS'!S137 -> 100 | H42: ='[1]جدول EMIS'!Y137 -> 84 | I42: ='[1]جدول EMIS'!AE137 -> 60 | J42: ='[1]جدول EMIS'!AK137 -> 146 | K42: =CONCATENATE('[1]جدول EMIS'!BC137) ->  | L42: =CONCATENATE('[1]جدول EMIS'!BI137) -> 29 | M42: =CONCATENATE('[1]جدول EMIS'!BO137) -> 53 | N42: =CONCATENATE('[1]جدول EMIS'!AW137) -> 90 | O42: =CONCATENATE('[1]جدول EMIS'!AQ137) -> 43 | P42: =IF(MATCH($B$3,{"الأول والثاني والثالث"},0)>6,"",CHOOSE((MATCH($B$3,$Q$5:$Q$9,0)<=6)+1,ROUND(AVERAGE(E42:J42),2),ROUND(AVERAGE(E42:J42),2))) -> 114.8 | R42: ='[1]جدول EMIS'!AU41 -> 0
A43: =CONCATENATE('[1]جدول EMIS'!A138) -> 39 | B43: =CONCATENATE('[1]جدول EMIS'!B138) -> منتصر انور عبدالله القواسمه | C43: =CONCATENATE('[1]جدول EMIS'!C138) -> أردني | D43: =CONCATENATE('[1]جدول EMIS'!D138) -> ماركا 12 / 5 / 2004 | E43: ='[1]جدول EMIS'!G138 -> 100 | F43: ='[1]جدول EMIS'!M138 -> 93 | G43: ='[1]جدول EMIS'!S138 -> 87 | H43: ='[1]جدول EMIS'!Y138 -> 64 | I43: ='[1]جدول EMIS'!AE138 -> 42 | J43: ='[1]جدول EMIS'!AK138 -> 131 | K43: =CONCATENATE('[1]جدول EMIS'!BC138) ->  | L43: =CONCATENATE('[1]جدول EMIS'!BI138) -> 35 | M43: =CONCATENATE('[1]جدول EMIS'!BO138) -> 42 | N43: =CONCATENATE('[1]جدول EMIS'!AW138) -> 90 | O43: =CONCATENATE('[1]جدول EMIS'!AQ138) -> 33 | P43: =IF(MATCH($B$3,{"الأول والثاني والثالث"},0)>6,"",CHOOSE((MATCH($B$3,$Q$5:$Q$9,0)<=6)+1,ROUND(AVERAGE(E43:J43),2),ROUND(AVERAGE(E43:J43),2))) -> 84.8 | R43: ='[1]جدول EMIS'!AU42 -> 0
A44: =CONCATENATE('[1]جدول EMIS'!A139) -> 40 | B44: =CONCATENATE('[1]جدول EMIS'!B139) -> موسى محمود موسى ابو عيده | C44: =CONCATENATE('[1]جدول EMIS'!C139) -> أردني | D44: =CONCATENATE('[1]جدول EMIS'!D139) -> ماركا 26 / 3 / 2004 | E44: ='[1]جدول EMIS'!G139 -> 100 | F44: ='[1]جدول EMIS'!M139 -> 294 | G44: ='[1]جدول EMIS'!S139 -> 148 | H44: ='[1]جدول EMIS'!Y139 -> 172 | I44: ='[1]جدول EMIS'!AE139 -> 72 | J44: ='[1]جدول EMIS'!AK139 -> 235 | K44: =CONCATENATE('[1]جدول EMIS'!BC139) ->  | L44: =CONCATENATE('[1]جدول EMIS'!BI139) -> 94 | M44: =CONCATENATE('[1]جدول EMIS'!BO139) -> 92 | N44: =CONCATENATE('[1]جدول EMIS'!AW139) -> 90 | O44: =CONCATENATE('[1]جدول EMIS'!AQ139) -> 60 | P44: =IF(MATCH($B$3,{"الأول والثاني والثالث"},0)>6,"",CHOOSE((MATCH($B$3,$Q$5:$Q$9,0)<=6)+1,ROUND(AVERAGE(E44:J44),2),ROUND(AVERAGE(E44:J44),2))) -> 145.4 | R44: ='[1]جدول EMIS'!AU43 -> 0
A45: =CONCATENATE('[1]جدول EMIS'!A140) -> 41 | B45: =CONCATENATE('[1]جدول EMIS'!B140) -> موسى نايف موسى منصور | C45: =CONCATENATE('[1]جدول EMIS'!C140) -> أردني | D45: =CONCATENATE('[1]جدول EMIS'!D140) -> قصبة عمان 4 / 2 / 2004 | E45: ='[1]جدول EMIS'!G140 -> 198 | F45: ='[1]جدول EMIS'!M140 -> 279 | G45: ='[1]جدول EMIS'!S140 -> 142 | H45: ='[1]جدول EMIS'!Y140 -> 179 | I45: ='[1]جدول EMIS'!AE140 -> 96 | J45: ='[1]جدول EMIS'!AK140 -> 248 | K45: =CONCATENATE('[1]جدول EMIS'!BC140) ->  | L45: =CONCATENATE('[1]جدول EMIS'!BI140) -> 92 | M45: =CONCATENATE('[1]جدول EMIS'!BO140) -> 93 | N45: =CONCATENATE('[1]جدول EMIS'!AW140) -> 90 | O45: =CONCATENATE('[1]جدول EMIS'!AQ140) -> 59 | P45: =IF(MATCH($B$3,{"الأول والثاني والثالث"},0)>6,"",CHOOSE((MATCH($B$3,$Q$5:$Q$9,0)<=6)+1,ROUND(AVERAGE(E45:J45),2),ROUND(AVERAGE(E45:J45),2))) -> 172.6 | R45: ='[1]جدول EMIS'!AU44 -> 0
A46: =CONCATENATE('[1]جدول EMIS'!A141) -> 42 | B46: =CONCATENATE('[1]جدول EMIS'!B141) -> يوسف شادي محمود الاخرس | C46: =CONCATENATE('[1]جدول EMIS'!C141) -> أردني | D46: =CONCATENATE('[1]جدول EMIS'!D141) -> ماركا 8 / 5 / 2004 | E46: ='[1]جدول EMIS'!G141 -> 191 | F46: ='[1]جدول EMIS'!M141 -> 215 | G46: ='[1]جدول EMIS'!S141 -> 135 | H46: ='[1]جدول EMIS'!Y141 -> 145 | I46: ='[1]جدول EMIS'!AE141 -> 111 | J46: ='[1]جدول EMIS'!AK141 -> 241 | K46: =CONCATENATE('[1]جدول EMIS'!BC141) ->  | L46: =CONCATENATE('[1]جدول EMIS'!BI141) -> 85 | M46: =CONCATENATE('[1]جدول EMIS'!BO141) -> 79 | N46: =CONCATENATE('[1]جدول EMIS'!AW141) -> 90 | O46: =CONCATENATE('[1]جدول EMIS'!AQ141) -> 53 | P46: =IF(MATCH($B$3,{"الأول والثاني والثالث"},0)>6,"",CHOOSE((MATCH($B$3,$Q$5:$Q$9,0)<=6)+1,ROUND(AVERAGE(E46:J46),2),ROUND(AVERAGE(E46:J46),2))) -> 164.6 | R46: ='[1]جدول EMIS'!AU45 -> 0
A47: =CONCATENATE('[1]جدول EMIS'!A142) ->  | B47: =CONCATENATE('[1]جدول EMIS'!B142) ->  | C47: =CONCATENATE('[1]جدول EMIS'!C142) ->  | D47: =CONCATENATE('[1]جدول EMIS'!D142) -> / / | E47: ='[1]جدول EMIS'!G142 -> 189 | F47: ='[1]جدول EMIS'!M142 ->  | G47: ='[1]جدول EMIS'!S142 -> 0 | H47: ='[1]جدول EMIS'!Y142 -> 0 | I47: ='[1]جدول EMIS'!AE142 -> 0 | J47: ='[1]جدول EMIS'!AK142 -> 0 | K47: =CONCATENATE('[1]جدول EMIS'!BC142) ->  | L47: =CONCATENATE('[1]جدول EMIS'!BI142) ->  | M47: =CONCATENATE('[1]جدول EMIS'!BO142) ->  | N47: =CONCATENATE('[1]جدول EMIS'!AW142) ->  | O47: =CONCATENATE('[1]جدول EMIS'!AQ142) ->  | P47: =IF(MATCH($B$3,{"الأول والثاني والثالث"},0)>6,"",CHOOSE((MATCH($B$3,$Q$5:$Q$9,0)<=6)+1,ROUND(AVERAGE(E47:J47),2),ROUND(AVERAGE(E47:J47),2))) -> 37.8 | R47: ='[1]جدول EMIS'!AU46 -> 0
A48: =CONCATENATE('[1]جدول EMIS'!A143) ->  | B48: =CONCATENATE('[1]جدول EMIS'!B143) ->  | C48: =CONCATENATE('[1]جدول EMIS'!C143) ->  | D48: =CONCATENATE('[1]جدول EMIS'!D143) -> / / | E48: ='[1]جدول EMIS'!G143 -> 0 | F48: ='[1]جدول EMIS'!M143 ->  | G48: ='[1]جدول EMIS'!S143 -> 0 | H48: ='[1]جدول EMIS'!Y143 -> 0 | I48: ='[1]جدول EMIS'!AE143 -> 0 | J48: ='[1]جدول EMIS'!AK143 -> 0 | K48: =CONCATENATE('[1]جدول EMIS'!BC143) ->  | L48: =CONCATENATE('[1]جدول EMIS'!BI143) ->  | M48: =CONCATENATE('[1]جدول EMIS'!BO143) ->  | N48: =CONCATENATE('[1]جدول EMIS'!AW143) ->  | O48: =CONCATENATE('[1]جدول EMIS'!AQ143) ->  | P48: =IF(MATCH($B$3,{"الأول والثاني والثالث"},0)>6,"",CHOOSE((MATCH($B$3,$Q$5:$Q$9,0)<=6)+1,ROUND(AVERAGE(E48:J48),2),ROUND(AVERAGE(E48:J48),2))) -> 0 | R48: ='[1]جدول EMIS'!AU47 -> 0
A49: =CONCATENATE('[1]جدول EMIS'!A144) ->  | B49: =CONCATENATE('[1]جدول EMIS'!B144) ->  | C49: =CONCATENATE('[1]جدول EMIS'!C144) ->  | D49: =CONCATENATE('[1]جدول EMIS'!D144) -> / / | E49: ='[1]جدول EMIS'!G144 -> 0 | F49: ='[1]جدول EMIS'!M144 ->  | G49: ='[1]جدول EMIS'!S144 -> 0 | H49: ='[1]جدول EMIS'!Y144 -> 0 | I49: ='[1]جدول EMIS'!AE144 -> 0 | J49: ='[1]جدول EMIS'!AK144 -> 0 | K49: =CONCATENATE('[1]جدول EMIS'!BC144) ->  | L49: =CONCATENATE('[1]جدول EMIS'!BI144) ->  | M49: =CONCATENATE('[1]جدول EMIS'!BO144) ->  | N49: =CONCATENATE('[1]جدول EMIS'!AW144) ->  | O49: =CONCATENATE('[1]جدول EMIS'!AQ144) ->  | P49: =IF(MATCH($B$3,{"الأول والثاني والثالث"},0)>6,"",CHOOSE((MATCH($B$3,$Q$5:$Q$9,0)<=6)+1,ROUND(AVERAGE(E49:J49),2),ROUND(AVERAGE(E49:J49),2))) -> 0 | R49: ='[1]جدول EMIS'!AU48 -> 0
A50: =CONCATENATE('[1]جدول EMIS'!A145) ->  | B50: =CONCATENATE('[1]جدول EMIS'!B145) ->  | C50: =CONCATENATE('[1]جدول EMIS'!C145) ->  | D50: =CONCATENATE('[1]جدول EMIS'!D145) -> / / | E50: ='[1]جدول EMIS'!G145 -> 0 | F50: ='[1]جدول EMIS'!M145 ->  | G50: ='[1]جدول EMIS'!S145 -> 0 | H50: ='[1]جدول EMIS'!Y145 -> 0 | I50: ='[1]جدول EMIS'!AE145 -> 0 | J50: ='[1]جدول EMIS'!AK145 -> 0 | K50: =CONCATENATE('[1]جدول EMIS'!BC145) ->  | L50: =CONCATENATE('[1]جدول EMIS'!BI145) ->  | M50: =CONCATENATE('[1]جدول EMIS'!BO145) ->  | N50: =CONCATENATE('[1]جدول EMIS'!AW145) ->  | O50: =CONCATENATE('[1]جدول EMIS'!AQ145) ->  | P50: =IF(MATCH($B$3,{"الأول والثاني والثالث"},0)>6,"",CHOOSE((MATCH($B$3,$Q$5:$Q$9,0)<=6)+1,ROUND(AVERAGE(E50:J50),2),ROUND(AVERAGE(E50:J50),2))) -> 0 | R50: ='[1]جدول EMIS'!AU49 -> 0
A51: =CONCATENATE('[1]جدول EMIS'!A146) ->  | B51: =CONCATENATE('[1]جدول EMIS'!B146) ->  | C51: =CONCATENATE('[1]جدول EMIS'!C146) ->  | D51: =CONCATENATE('[1]جدول EMIS'!D146) -> / / | E51: ='[1]جدول EMIS'!G146 -> 0 | F51: ='[1]جدول EMIS'!M146 ->  | G51: ='[1]جدول EMIS'!S146 -> 0 | H51: ='[1]جدول EMIS'!Y146 -> 0 | I51: ='[1]جدول EMIS'!AE146 -> 0 | J51: ='[1]جدول EMIS'!AK146 -> 0 | K51: =CONCATENATE('[1]جدول EMIS'!BC146) ->  | L51: =CONCATENATE('[1]جدول EMIS'!BI146) ->  | M51: =CONCATENATE('[1]جدول EMIS'!BO146) ->  | N51: =CONCATENATE('[1]جدول EMIS'!AW146) ->  | O51: =CONCATENATE('[1]جدول EMIS'!AQ146) ->  | P51: =IF(MATCH($B$3,{"الأول والثاني والثالث"},0)>6,"",CHOOSE((MATCH($B$3,$Q$5:$Q$9,0)<=6)+1,ROUND(AVERAGE(E51:J51),2),ROUND(AVERAGE(E51:J51),2))) -> 0 | R51: ='[1]جدول EMIS'!AU50 -> 0
A52: =CONCATENATE('[1]جدول EMIS'!A147) ->  | B52: =CONCATENATE('[1]جدول EMIS'!B147) ->  | C52: =CONCATENATE('[1]جدول EMIS'!C147) ->  | D52: =CONCATENATE('[1]جدول EMIS'!D147) -> / / | E52: ='[1]جدول EMIS'!G147 -> 0 | F52: ='[1]جدول EMIS'!M147 ->  | G52: ='[1]جدول EMIS'!S147 -> 0 | H52: ='[1]جدول EMIS'!Y147 -> 0 | I52: ='[1]جدول EMIS'!AE147 -> 0 | J52: ='[1]جدول EMIS'!AK147 -> 0 | K52: =CONCATENATE('[1]جدول EMIS'!BC147) ->  | L52: =CONCATENATE('[1]جدول EMIS'!BI147) ->  | M52: =CONCATENATE('[1]جدول EMIS'!BO147) ->  | N52: =CONCATENATE('[1]جدول EMIS'!AW147) ->  | O52: =CONCATENATE('[1]جدول EMIS'!AQ147) ->  | P52: =IF(MATCH($B$3,{"الأول والثاني والثالث"},0)>6,"",CHOOSE((MATCH($B$3,$Q$5:$Q$9,0)<=6)+1,ROUND(AVERAGE(E52:J52),2),ROUND(AVERAGE(E52:J52),2))) -> 0 | R52: ='[1]جدول EMIS'!AU51 -> 0
A53: =CONCATENATE('[1]جدول EMIS'!A148) ->  | B53: =CONCATENATE('[1]جدول EMIS'!B148) ->  | C53: =CONCATENATE('[1]جدول EMIS'!C148) ->  | D53: =CONCATENATE('[1]جدول EMIS'!D148) -> / / | E53: ='[1]جدول EMIS'!G148 -> 0 | F53: ='[1]جدول EMIS'!M148 ->  | G53: ='[1]جدول EMIS'!S148 -> 0 | H53: ='[1]جدول EMIS'!Y148 -> 0 | I53: ='[1]جدول EMIS'!AE148 -> 0 | J53: ='[1]جدول EMIS'!AK148 -> 0 | K53: =CONCATENATE('[1]جدول EMIS'!BC148) ->  | L53: =CONCATENATE('[1]جدول EMIS'!BI148) ->  | M53: =CONCATENATE('[1]جدول EMIS'!BO148) ->  | N53: =CONCATENATE('[1]جدول EMIS'!AW148) ->  | O53: =CONCATENATE('[1]جدول EMIS'!AQ148) ->  | P53: =IF(MATCH($B$3,{"الأول والثاني والثالث"},0)>6,"",CHOOSE((MATCH($B$3,$Q$5:$Q$9,0)<=6)+1,ROUND(AVERAGE(E53:J53),2),ROUND(AVERAGE(E53:J53),2))) -> 0 | R53: ='[1]جدول EMIS'!AU52 -> 0
A54: =CONCATENATE('[1]جدول EMIS'!A149) ->  | B54: =CONCATENATE('[1]جدول EMIS'!B149) ->  | C54: =CONCATENATE('[1]جدول EMIS'!C149) ->  | D54: =CONCATENATE('[1]جدول EMIS'!D149) -> / / | E54: ='[1]جدول EMIS'!G149 -> 0 | F54: ='[1]جدول EMIS'!M149 ->  | G54: ='[1]جدول EMIS'!S149 -> 0 | H54: ='[1]جدول EMIS'!Y149 -> 0 | I54: ='[1]جدول EMIS'!AE149 -> 0 | J54: ='[1]جدول EMIS'!AK149 -> 0 | K54: =CONCATENATE('[1]جدول EMIS'!BC149) ->  | L54: =CONCATENATE('[1]جدول EMIS'!BI149) ->  | M54: =CONCATENATE('[1]جدول EMIS'!BO149) ->  | N54: =CONCATENATE('[1]جدول EMIS'!AW149) ->  | O54: =CONCATENATE('[1]جدول EMIS'!AQ149) ->  | P54: =IF(MATCH($B$3,{"الأول والثاني والثالث"},0)>6,"",CHOOSE((MATCH($B$3,$Q$5:$Q$9,0)<=6)+1,ROUND(AVERAGE(E54:J54),2),ROUND(AVERAGE(E54:J54),2))) -> 0 | R54: ='[1]جدول EMIS'!AU53 -> 0
A55: =CONCATENATE('[1]جدول EMIS'!A150) ->  | B55: =CONCATENATE('[1]جدول EMIS'!B150) ->  | C55: =CONCATENATE('[1]جدول EMIS'!C150) ->  | D55: =CONCATENATE('[1]جدول EMIS'!D150) -> / / | E55: ='[1]جدول EMIS'!G150 -> 0 | F55: ='[1]جدول EMIS'!M150 ->  | G55: ='[1]جدول EMIS'!S150 -> 0 | H55: ='[1]جدول EMIS'!Y150 -> 0 | I55: ='[1]جدول EMIS'!AE150 -> 0 | J55: ='[1]جدول EMIS'!AK150 -> 0 | K55: =CONCATENATE('[1]جدول EMIS'!BC150) ->  | L55: =CONCATENATE('[1]جدول EMIS'!BI150) ->  | M55: =CONCATENATE('[1]جدول EMIS'!BO150) ->  | N55: =CONCATENATE('[1]جدول EMIS'!AW150) ->  | O55: =CONCATENATE('[1]جدول EMIS'!AQ150) ->  | P55: =IF(MATCH($B$3,{"الأول والثاني والثالث"},0)>6,"",CHOOSE((MATCH($B$3,$Q$5:$Q$9,0)<=6)+1,ROUND(AVERAGE(E55:J55),2),ROUND(AVERAGE(E55:J55),2))) -> 0 | R55: ='[1]جدول EMIS'!AU54 -> 0
A56: =CONCATENATE('[1]جدول EMIS'!A151) ->  | B56: =CONCATENATE('[1]جدول EMIS'!B151) ->  | C56: =CONCATENATE('[1]جدول EMIS'!C151) ->  | D56: =CONCATENATE('[1]جدول EMIS'!D151) -> / / | E56: ='[1]جدول EMIS'!G151 -> 0 | F56: ='[1]جدول EMIS'!M151 ->  | G56: ='[1]جدول EMIS'!S151 -> 0 | H56: ='[1]جدول EMIS'!Y151 -> 0 | I56: ='[1]جدول EMIS'!AE151 -> 0 | J56: ='[1]جدول EMIS'!AK151 -> 0 | K56: =CONCATENATE('[1]جدول EMIS'!BC151) ->  | L56: =CONCATENATE('[1]جدول EMIS'!BI151) ->  | M56: =CONCATENATE('[1]جدول EMIS'!BO151) ->  | N56: =CONCATENATE('[1]جدول EMIS'!AW151) ->  | O56: =CONCATENATE('[1]جدول EMIS'!AQ151) ->  | P56: =IF(MATCH($B$3,{"الأول والثاني والثالث"},0)>6,"",CHOOSE((MATCH($B$3,$Q$5:$Q$9,0)<=6)+1,ROUND(AVERAGE(E56:J56),2),ROUND(AVERAGE(E56:J56),2))) -> 0 | R56: ='[1]جدول EMIS'!AU55 -> 0
A57: =CONCATENATE('[1]جدول EMIS'!A152) ->  | B57: =CONCATENATE('[1]جدول EMIS'!B152) ->  | C57: =CONCATENATE('[1]جدول EMIS'!C152) ->  | D57: =CONCATENATE('[1]جدول EMIS'!D152) -> / / | E57: ='[1]جدول EMIS'!G152 -> 0 | F57: ='[1]جدول EMIS'!M152 ->  | G57: ='[1]جدول EMIS'!S152 -> 0 | H57: ='[1]جدول EMIS'!Y152 -> 0 | I57: ='[1]جدول EMIS'!AE152 -> 0 | J57: ='[1]جدول EMIS'!AK152 -> 0 | K57: =CONCATENATE('[1]جدول EMIS'!BC152) ->  | L57: =CONCATENATE('[1]جدول EMIS'!BI152) ->  | M57: =CONCATENATE('[1]جدول EMIS'!BO152) ->  | N57: =CONCATENATE('[1]جدول EMIS'!AW152) ->  | O57: =CONCATENATE('[1]جدول EMIS'!AQ152) ->  | P57: =IF(MATCH($B$3,{"الأول والثاني والثالث"},0)>6,"",CHOOSE((MATCH($B$3,$Q$5:$Q$9,0)<=6)+1,ROUND(AVERAGE(E57:J57),2),ROUND(AVERAGE(E57:J57),2))) -> 0 | R57: ='[1]جدول EMIS'!AU56 -> 0
A58: =CONCATENATE('[1]جدول EMIS'!A153) ->  | B58: =CONCATENATE('[1]جدول EMIS'!B153) ->  | C58: =CONCATENATE('[1]جدول EMIS'!C153) ->  | D58: =CONCATENATE('[1]جدول EMIS'!D153) -> / / | E58: ='[1]جدول EMIS'!G153 -> 0 | F58: ='[1]جدول EMIS'!M153 ->  | G58: ='[1]جدول EMIS'!S153 -> 0 | H58: ='[1]جدول EMIS'!Y153 -> 0 | I58: ='[1]جدول EMIS'!AE153 -> 0 | J58: ='[1]جدول EMIS'!AK153 -> 0 | K58: =CONCATENATE('[1]جدول EMIS'!BC153) ->  | L58: =CONCATENATE('[1]جدول EMIS'!BI153) ->  | M58: =CONCATENATE('[1]جدول EMIS'!BO153) ->  | N58: =CONCATENATE('[1]جدول EMIS'!AW153) ->  | O58: =CONCATENATE('[1]جدول EMIS'!AQ153) ->  | P58: =IF(MATCH($B$3,{"الأول والثاني والثالث"},0)>6,"",CHOOSE((MATCH($B$3,$Q$5:$Q$9,0)<=6)+1,ROUND(AVERAGE(E58:J58),2),ROUND(AVERAGE(E58:J58),2))) -> 0 | R58: ='[1]جدول EMIS'!AU57 -> 0
A59: =CONCATENATE('[1]جدول EMIS'!A154) ->  | B59: =CONCATENATE('[1]جدول EMIS'!B154) ->  | C59: =CONCATENATE('[1]جدول EMIS'!C154) ->  | D59: =CONCATENATE('[1]جدول EMIS'!D154) -> / / | E59: ='[1]جدول EMIS'!G154 -> 0 | F59: ='[1]جدول EMIS'!M154 ->  | G59: ='[1]جدول EMIS'!S154 -> 0 | H59: ='[1]جدول EMIS'!Y154 -> 0 | I59: ='[1]جدول EMIS'!AE154 -> 0 | J59: ='[1]جدول EMIS'!AK154 -> 0 | K59: =CONCATENATE('[1]جدول EMIS'!BC154) ->  | L59: =CONCATENATE('[1]جدول EMIS'!BI154) ->  | M59: =CONCATENATE('[1]جدول EMIS'!BO154) ->  | N59: =CONCATENATE('[1]جدول EMIS'!AW154) ->  | O59: =CONCATENATE('[1]جدول EMIS'!AQ154) ->  | P59: =IF(MATCH($B$3,{"الأول والثاني والثالث"},0)>6,"",CHOOSE((MATCH($B$3,$Q$5:$Q$9,0)<=6)+1,ROUND(AVERAGE(E59:J59),2),ROUND(AVERAGE(E59:J59),2))) -> 0 | R59: ='[1]جدول EMIS'!AU58 -> 0
A60: =CONCATENATE('[1]جدول EMIS'!A155) ->  | B60: =CONCATENATE('[1]جدول EMIS'!B155) ->  | C60: =CONCATENATE('[1]جدول EMIS'!C155) ->  | D60: =CONCATENATE('[1]جدول EMIS'!D155) -> / / | E60: ='[1]جدول EMIS'!G155 -> 0 | F60: ='[1]جدول EMIS'!M155 ->  | G60: ='[1]جدول EMIS'!S155 -> 0 | H60: ='[1]جدول EMIS'!Y155 -> 0 | I60: ='[1]جدول EMIS'!AE155 -> 0 | J60: ='[1]جدول EMIS'!AK155 -> 0 | K60: =CONCATENATE('[1]جدول EMIS'!BC155) ->  | L60: =CONCATENATE('[1]جدول EMIS'!BI155) ->  | M60: =CONCATENATE('[1]جدول EMIS'!BO155) ->  | N60: =CONCATENATE('[1]جدول EMIS'!AW155) ->  | O60: =CONCATENATE('[1]جدول EMIS'!AQ155) ->  | P60: =IF(MATCH($B$3,{"الأول والثاني والثالث"},0)>6,"",CHOOSE((MATCH($B$3,$Q$5:$Q$9,0)<=6)+1,ROUND(AVERAGE(E60:J60),2),ROUND(AVERAGE(E60:J60),2))) -> 0 | R60: ='[1]جدول EMIS'!AU59 -> 0
A61: =CONCATENATE('[1]جدول EMIS'!A156) ->  | B61: =CONCATENATE('[1]جدول EMIS'!B156) ->  | C61: =CONCATENATE('[1]جدول EMIS'!C156) ->  | D61: =CONCATENATE('[1]جدول EMIS'!D156) -> / / | E61: ='[1]جدول EMIS'!G156 -> 0 | F61: ='[1]جدول EMIS'!M156 ->  | G61: ='[1]جدول EMIS'!S156 -> 0 | H61: ='[1]جدول EMIS'!Y156 -> 0 | I61: ='[1]جدول EMIS'!AE156 -> 0 | J61: ='[1]جدول EMIS'!AK156 -> 0 | K61: =CONCATENATE('[1]جدول EMIS'!BC156) ->  | L61: =CONCATENATE('[1]جدول EMIS'!BI156) ->  | M61: =CONCATENATE('[1]جدول EMIS'!BO156) ->  | N61: =CONCATENATE('[1]جدول EMIS'!AW156) ->  | O61: =CONCATENATE('[1]جدول EMIS'!AQ156) ->  | P61: =IF(MATCH($B$3,{"الأول والثاني والثالث"},0)>6,"",CHOOSE((MATCH($B$3,$Q$5:$Q$9,0)<=6)+1,ROUND(AVERAGE(E61:J61),2),ROUND(AVERAGE(E61:J61),2))) -> 0 | R61: ='[1]جدول EMIS'!AU60 -> 0
A62: =CONCATENATE('[1]جدول EMIS'!A157) ->  | B62: =CONCATENATE('[1]جدول EMIS'!B157) ->  | C62: =CONCATENATE('[1]جدول EMIS'!C157) ->  | D62: =CONCATENATE('[1]جدول EMIS'!D157) -> / / | E62: ='[1]جدول EMIS'!G157 -> 0 | F62: ='[1]جدول EMIS'!M157 ->  | G62: ='[1]جدول EMIS'!S157 -> 0 | H62: ='[1]جدول EMIS'!Y157 -> 0 | I62: ='[1]جدول EMIS'!AE157 -> 0 | J62: ='[1]جدول EMIS'!AK157 -> 0 | K62: =CONCATENATE('[1]جدول EMIS'!BC157) ->  | L62: =CONCATENATE('[1]جدول EMIS'!BI157) ->  | M62: =CONCATENATE('[1]جدول EMIS'!BO157) ->  | N62: =CONCATENATE('[1]جدول EMIS'!AW157) ->  | O62: =CONCATENATE('[1]جدول EMIS'!AQ157) ->  | P62: =IF(MATCH($B$3,{"الأول والثاني والثالث"},0)>6,"",CHOOSE((MATCH($B$3,$Q$5:$Q$9,0)<=6)+1,ROUND(AVERAGE(E62:J62),2),ROUND(AVERAGE(E62:J62),2))) -> 0 | R62: ='[1]جدول EMIS'!AU61 -> 0
A63: =CONCATENATE('[1]جدول EMIS'!A158) ->  | B63: =CONCATENATE('[1]جدول EMIS'!B158) ->  | C63: =CONCATENATE('[1]جدول EMIS'!C158) ->  | D63: =CONCATENATE('[1]جدول EMIS'!D158) -> / / | E63: ='[1]جدول EMIS'!G158 -> 0 | F63: ='[1]جدول EMIS'!M158 ->  | G63: ='[1]جدول EMIS'!S158 -> 0 | H63: ='[1]جدول EMIS'!Y158 -> 0 | I63: ='[1]جدول EMIS'!AE158 -> 0 | J63: ='[1]جدول EMIS'!AK158 -> 0 | K63: =CONCATENATE('[1]جدول EMIS'!BC158) ->  | L63: =CONCATENATE('[1]جدول EMIS'!BI158) ->  | M63: =CONCATENATE('[1]جدول EMIS'!BO158) ->  | N63: =CONCATENATE('[1]جدول EMIS'!AW158) ->  | O63: =CONCATENATE('[1]جدول EMIS'!AQ158) ->  | P63: =IF(MATCH($B$3,{"الأول والثاني والثالث"},0)>6,"",CHOOSE((MATCH($B$3,$Q$5:$Q$9,0)<=6)+1,ROUND(AVERAGE(E63:J63),2),ROUND(AVERAGE(E63:J63),2))) -> 0 | R63: ='[1]جدول EMIS'!AU62 -> 0
A64: =CONCATENATE('[1]جدول EMIS'!A159) ->  | B64: =CONCATENATE('[1]جدول EMIS'!B159) ->  | C64: =CONCATENATE('[1]جدول EMIS'!C159) ->  | D64: =CONCATENATE('[1]جدول EMIS'!D159) -> / / | E64: ='[1]جدول EMIS'!G159 -> 0 | F64: ='[1]جدول EMIS'!M159 ->  | G64: ='[1]جدول EMIS'!S159 -> 0 | H64: ='[1]جدول EMIS'!Y159 -> 0 | I64: ='[1]جدول EMIS'!AE159 -> 0 | J64: ='[1]جدول EMIS'!AK159 -> 0 | K64: =CONCATENATE('[1]جدول EMIS'!BC159) ->  | L64: =CONCATENATE('[1]جدول EMIS'!BI159) ->  | M64: =CONCATENATE('[1]جدول EMIS'!BO159) ->  | N64: =CONCATENATE('[1]جدول EMIS'!AW159) ->  | O64: =CONCATENATE('[1]جدول EMIS'!AQ159) ->  | P64: =IF(MATCH($B$3,{"الأول والثاني والثالث"},0)>6,"",CHOOSE((MATCH($B$3,$Q$5:$Q$9,0)<=6)+1,ROUND(AVERAGE(E64:J64),2),ROUND(AVERAGE(E64:J64),2))) -> 0 | R64: ='[1]جدول EMIS'!AU63 -> 0
A65: =CONCATENATE('[1]جدول EMIS'!A160) ->  | B65: =CONCATENATE('[1]جدول EMIS'!B160) ->  | C65: =CONCATENATE('[1]جدول EMIS'!C160) ->  | D65: =CONCATENATE('[1]جدول EMIS'!D160) -> / / | E65: ='[1]جدول EMIS'!G160 -> 0 | F65: ='[1]جدول EMIS'!M160 ->  | G65: ='[1]جدول EMIS'!S160 -> 0 | H65: ='[1]جدول EMIS'!Y160 -> 0 | I65: ='[1]جدول EMIS'!AE160 -> 0 | J65: ='[1]جدول EMIS'!AK160 -> 0 | K65: =CONCATENATE('[1]جدول EMIS'!BC160) ->  | L65: =CONCATENATE('[1]جدول EMIS'!BI160) ->  | M65: =CONCATENATE('[1]جدول EMIS'!BO160) ->  | N65: =CONCATENATE('[1]جدول EMIS'!AW160) ->  | O65: =CONCATENATE('[1]جدول EMIS'!AQ160) ->  | P65: =IF(MATCH($B$3,{"الأول والثاني والثالث"},0)>6,"",CHOOSE((MATCH($B$3,$Q$5:$Q$9,0)<=6)+1,ROUND(AVERAGE(E65:J65),2),ROUND(AVERAGE(E65:J65),2))) -> 0 | R65: ='[1]جدول EMIS'!AU64 -> 0
A66: =CONCATENATE('[1]جدول EMIS'!A161) ->  | B66: =CONCATENATE('[1]جدول EMIS'!B161) ->  | C66: =CONCATENATE('[1]جدول EMIS'!C161) ->  | D66: =CONCATENATE('[1]جدول EMIS'!D161) -> / / | E66: ='[1]جدول EMIS'!G161 -> 0 | F66: ='[1]جدول EMIS'!M161 ->  | G66: ='[1]جدول EMIS'!S161 -> 0 | H66: ='[1]جدول EMIS'!Y161 -> 0 | I66: ='[1]جدول EMIS'!AE161 -> 0 | J66: ='[1]جدول EMIS'!AK161 -> 0 | K66: =CONCATENATE('[1]جدول EMIS'!BC161) ->  | L66: =CONCATENATE('[1]جدول EMIS'!BI161) ->  | M66: =CONCATENATE('[1]جدول EMIS'!BO161) ->  | N66: =CONCATENATE('[1]جدول EMIS'!AW161) ->  | O66: =CONCATENATE('[1]جدول EMIS'!AQ161) ->  | P66: =IF(MATCH($B$3,{"الأول والثاني والثالث"},0)>6,"",CHOOSE((MATCH($B$3,$Q$5:$Q$9,0)<=6)+1,ROUND(AVERAGE(E66:J66),2),ROUND(AVERAGE(E66:J66),2))) -> 0 | R66: ='[1]جدول EMIS'!AU65 -> 0
A67: =CONCATENATE('[1]جدول EMIS'!A162) ->  | B67: =CONCATENATE('[1]جدول EMIS'!B162) ->  | C67: =CONCATENATE('[1]جدول EMIS'!C162) ->  | D67: =CONCATENATE('[1]جدول EMIS'!D162) -> / / | E67: ='[1]جدول EMIS'!G162 -> 0 | F67: ='[1]جدول EMIS'!M162 ->  | G67: ='[1]جدول EMIS'!S162 -> 0 | H67: ='[1]جدول EMIS'!Y162 -> 0 | I67: ='[1]جدول EMIS'!AE162 -> 0 | J67: ='[1]جدول EMIS'!AK162 -> 0 | K67: =CONCATENATE('[1]جدول EMIS'!BC162) ->  | L67: =CONCATENATE('[1]جدول EMIS'!BI162) ->  | M67: =CONCATENATE('[1]جدول EMIS'!BO162) ->  | N67: =CONCATENATE('[1]جدول EMIS'!AW162) ->  | O67: =CONCATENATE('[1]جدول EMIS'!AQ162) ->  | P67: =IF(MATCH($B$3,{"الأول والثاني والثالث"},0)>6,"",CHOOSE((MATCH($B$3,$Q$5:$Q$9,0)<=6)+1,ROUND(AVERAGE(E67:J67),2),ROUND(AVERAGE(E67:J67),2))) -> 0 | R67: ='[1]جدول EMIS'!AU66 -> 0
A68: =CONCATENATE('[1]جدول EMIS'!A163) ->  | B68: =CONCATENATE('[1]جدول EMIS'!B163) ->  | C68: =CONCATENATE('[1]جدول EMIS'!C163) ->  | D68: =CONCATENATE('[1]جدول EMIS'!D163) -> / / | E68: ='[1]جدول EMIS'!G163 -> 0 | F68: ='[1]جدول EMIS'!M163 ->  | G68: ='[1]جدول EMIS'!S163 -> 0 | H68: ='[1]جدول EMIS'!Y163 -> 0 | I68: ='[1]جدول EMIS'!AE163 -> 0 | J68: ='[1]جدول EMIS'!AK163 -> 0 | K68: =CONCATENATE('[1]جدول EMIS'!BC163) ->  | L68: =CONCATENATE('[1]جدول EMIS'!BI163) ->  | M68: =CONCATENATE('[1]جدول EMIS'!BO163) ->  | N68: =CONCATENATE('[1]جدول EMIS'!AW163) ->  | O68: =CONCATENATE('[1]جدول EMIS'!AQ163) ->  | P68: =IF(MATCH($B$3,{"الأول والثاني والثالث"},0)>6,"",CHOOSE((MATCH($B$3,$Q$5:$Q$9,0)<=6)+1,ROUND(AVERAGE(E68:J68),2),ROUND(AVERAGE(E68:J68),2))) -> 0 | R68: ='[1]جدول EMIS'!AU67 -> 0
A69: =CONCATENATE('[1]جدول EMIS'!A164) ->  | B69: =CONCATENATE('[1]جدول EMIS'!B164) ->  | C69: =CONCATENATE('[1]جدول EMIS'!C164) ->  | D69: =CONCATENATE('[1]جدول EMIS'!D164) -> / / | E69: ='[1]جدول EMIS'!G164 -> 0 | F69: ='[1]جدول EMIS'!M164 ->  | G69: ='[1]جدول EMIS'!S164 -> 0 | H69: ='[1]جدول EMIS'!Y164 -> 0 | I69: ='[1]جدول EMIS'!AE164 -> 0 | J69: ='[1]جدول EMIS'!AK164 -> 0 | K69: =CONCATENATE('[1]جدول EMIS'!BC164) ->  | L69: =CONCATENATE('[1]جدول EMIS'!BI164) ->  | M69: =CONCATENATE('[1]جدول EMIS'!BO164) ->  | N69: =CONCATENATE('[1]جدول EMIS'!AW164) ->  | O69: =CONCATENATE('[1]جدول EMIS'!AQ164) ->  | P69: =IF(MATCH($B$3,{"الأول والثاني والثالث"},0)>6,"",CHOOSE((MATCH($B$3,$Q$5:$Q$9,0)<=6)+1,ROUND(AVERAGE(E69:J69),2),ROUND(AVERAGE(E69:J69),2))) -> 0 | R69: ='[1]جدول EMIS'!AU68 -> 0
A70: =CONCATENATE('[1]جدول EMIS'!A165) ->  | B70: =CONCATENATE('[1]جدول EMIS'!B165) ->  | C70: =CONCATENATE('[1]جدول EMIS'!C165) ->  | D70: =CONCATENATE('[1]جدول EMIS'!D165) -> / / | E70: ='[1]جدول EMIS'!G165 -> 0 | F70: ='[1]جدول EMIS'!M165 ->  | G70: ='[1]جدول EMIS'!S165 -> 0 | H70: ='[1]جدول EMIS'!Y165 -> 0 | I70: ='[1]جدول EMIS'!AE165 -> 0 | J70: ='[1]جدول EMIS'!AK165 -> 0 | K70: =CONCATENATE('[1]جدول EMIS'!BC165) ->  | L70: =CONCATENATE('[1]جدول EMIS'!BI165) ->  | M70: =CONCATENATE('[1]جدول EMIS'!BO165) ->  | N70: =CONCATENATE('[1]جدول EMIS'!AW165) ->  | O70: =CONCATENATE('[1]جدول EMIS'!AQ165) ->  | P70: =IF(MATCH($B$3,{"الأول والثاني والثالث"},0)>6,"",CHOOSE((MATCH($B$3,$Q$5:$Q$9,0)<=6)+1,ROUND(AVERAGE(E70:J70),2),ROUND(AVERAGE(E70:J70),2))) -> 0 | R70: ='[1]جدول EMIS'!AU69 -> 0
E71: دين | F71: عربي | G71: انجليزي | H71: رياضيات | I71: اجتماعيات | J71: علوم | K71: مهني | L71: حاسوب | M71: مالية | N71: رياضة | O71: فنية موسقى | P71: معدل ف1
B73: الرابع والخامس والسادس | E73: الفصل الأول | F73: الفصل الأول | G73: الفصل الأول | H73: الفصل الأول | I73: الفصل الأول | J73: الفصل الأول | K73: الفصل الأول | L73: الفصل الأول | M73: الفصل الأول | N73: الفصل الأول | O73: الفصل الأول
A74: الرقم | B74: اسم الطالب | C74: الجنسية | D74: تاريخ الولادة | E74: =CONCATENATE(E4) -> 200 | F74: 300 | G74: 200 | H74: 200 | I74: 300 | J74: 400 | K74: 100 | L74: 100 | M74: 100 | N74: 100 | O74: 100 | R74: الغياب
A75: =CONCATENATE(A5) -> 1 | B75: =CONCATENATE(B5) -> ابراهيم اسحق مصطفى اعبيدو | C75: =CONCATENATE(C5) -> أردني | D75: =CONCATENATE(D5) -> ماركا 21 / 2 / 2004 | E75: ='[1]جدول EMIS'!G100 -> 190 | F75: ='[1]جدول EMIS'!M100 -> 300 | G75: ='[1]جدول EMIS'!S100 -> 200 | H75: ='[1]جدول EMIS'!Y100 -> 200 | I75: ='[1]جدول EMIS'!AE100 -> 200 | J75: ='[1]جدول EMIS'!AK100 -> 400 | K75: =CONCATENATE('[1]جدول EMIS'!BC100) -> 100 | L75: =CONCATENATE('[1]جدول EMIS'!BI100) -> 100 | M75: =CONCATENATE('[1]جدول EMIS'!BO100) -> 100 | N75: =CONCATENATE('[1]جدول EMIS'!AW100) -> 100 | O75: =CONCATENATE('[1]جدول EMIS'!AQ100) -> 100 | P75: =IF(MATCH($B$73,{"الرابع والخامس والسادس"},0)>6,"",CHOOSE((MATCH($B$73,$Q$5:$Q$14,0)<=6)+1,ROUND(AVERAGE(E75:K75),2),ROUND(AVERAGE(E75:K75),2))) -> 238 | R75: ='[1]جدول EMIS'!AU4 -> 200
A76: =CONCATENATE(A6) -> 2 | B76: ابراهيم محمد عبد المجيد خلاوي | C76: أردني | D76: لواء ماركا 29 / 6 / 2004 | E76: ='[1]جدول EMIS'!G101 -> 200 | F76: ='[1]جدول EMIS'!M101 -> 235 | G76: ='[1]جدول EMIS'!S101 -> 123 | H76: ='[1]جدول EMIS'!Y101 -> 153 | I76: ='[1]جدول EMIS'!AE101 -> 105 | J76: ='[1]جدول EMIS'!AK101 -> 224 | K76: =CONCATENATE('[1]جدول EMIS'!BC101) ->  | L76: =CONCATENATE('[1]جدول EMIS'!BI101) -> 62 | M76: =CONCATENATE('[1]جدول EMIS'!BO101) -> 90 | N76: =CONCATENATE('[1]جدول EMIS'!AW101) -> 90 | O76: =CONCATENATE('[1]جدول EMIS'!AQ101) -> 60 | P76: =IF(MATCH($B$73,{"الرابع والخامس والسادس"},0)>6,"",CHOOSE((MATCH($B$73,$Q$5:$Q$14,0)<=6)+1,ROUND(AVERAGE(E76:K76),2),ROUND(AVERAGE(E76:K76),2))) -> 161 | R76: ='[1]جدول EMIS'!AU5 -> 0
A77: 3 | B77: ابراهيم صلاح ابراهيم شمعون | C77: أردني | D77: ماركا 10 / 7 / 2004 | E77: ='[1]جدول EMIS'!G102 -> 189 | F77: ='[1]جدول EMIS'!M102 -> 220 | G77: ='[1]جدول EMIS'!S102 -> 105 | H77: ='[1]جدول EMIS'!Y102 -> 112 | I77: ='[1]جدول EMIS'!AE102 -> 75 | J77: ='[1]جدول EMIS'!AK102 -> 218 | K77: =CONCATENATE('[1]جدول EMIS'!BC102) ->  | L77: =CONCATENATE('[1]جدول EMIS'!BI102) -> 52 | M77: =CONCATENATE('[1]جدول EMIS'!BO102) -> 60 | N77: =CONCATENATE('[1]جدول EMIS'!AW102) -> 90 | O77: =CONCATENATE('[1]جدول EMIS'!AQ102) -> 44 | P77: =IF(MATCH($B$73,{"الرابع والخامس والسادس"},0)>6,"",CHOOSE((MATCH($B$73,$Q$5:$Q$14,0)<=6)+1,ROUND(AVERAGE(E77:K77),2),ROUND(AVERAGE(E77:K77),2))) -> 139.8 | R77: ='[1]جدول EMIS'!AU6 -> 0
A78: 4 | B78: ابراهيم محمد ابراهيم عوده الله | C78: أردني | D78: ماركا 3 / 5 / 2004 | E78: ='[1]جدول EMIS'!G103 -> 192 | F78: ='[1]جدول EMIS'!M103 -> 234 | G78: ='[1]جدول EMIS'!S103 -> 147 | H78: ='[1]جدول EMIS'!Y103 -> 139 | I78: ='[1]جدول EMIS'!AE103 -> 84 | J78: ='[1]جدول EMIS'!AK103 -> 241 | K78: =CONCATENATE('[1]جدول EMIS'!BC103) ->  | L78: =CONCATENATE('[1]جدول EMIS'!BI103) -> 92 | M78: =CONCATENATE('[1]جدول EMIS'!BO103) -> 90 | N78: =CONCATENATE('[1]جدول EMIS'!AW103) -> 90 | O78: =CONCATENATE('[1]جدول EMIS'!AQ103) -> 59 | P78: =IF(MATCH($B$73,{"الرابع والخامس والسادس"},0)>6,"",CHOOSE((MATCH($B$73,$Q$5:$Q$14,0)<=6)+1,ROUND(AVERAGE(E78:K78),2),ROUND(AVERAGE(E78:K78),2))) -> 160.6 | R78: ='[1]جدول EMIS'!AU7 -> 0
A79: 5 | B79: احمد عبد الله عثمان سعاده | C79: أردني | D79: ماركا 2 / 11 / 2004 | E79: ='[1]جدول EMIS'!G104 -> 190 | F79: ='[1]جدول EMIS'!M104 -> 288 | G79: ='[1]جدول EMIS'!S104 -> 149 | H79: ='[1]جدول EMIS'!Y104 -> 162 | I79: ='[1]جدول EMIS'!AE104 -> 108 | J79: ='[1]جدول EMIS'!AK104 -> 236 | K79: =CONCATENATE('[1]جدول EMIS'!BC104) ->  | L79: =CONCATENATE('[1]جدول EMIS'!BI104) -> 97 | M79: =CONCATENATE('[1]جدول EMIS'!BO104) -> 95 | N79: =CONCATENATE('[1]جدول EMIS'!AW104) -> 90 | O79: =CONCATENATE('[1]جدول EMIS'!AQ104) -> 59 | P79: =IF(MATCH($B$73,{"الرابع والخامس والسادس"},0)>6,"",CHOOSE((MATCH($B$73,$Q$5:$Q$14,0)<=6)+1,ROUND(AVERAGE(E79:K79),2),ROUND(AVERAGE(E79:K79),2))) -> 169 | R79: ='[1]جدول EMIS'!AU8 -> 0
A80: 6 | B80: احمد اسامه خليل عكه | C80: أردني | D80: ماركا 3 / 9 / 2004 | E80: ='[1]جدول EMIS'!G105 -> 197 | F80: ='[1]جدول EMIS'!M105 -> 140 | G80: ='[1]جدول EMIS'!S105 -> 84 | H80: ='[1]جدول EMIS'!Y105 -> 68 | I80: ='[1]جدول EMIS'!AE105 -> 12 | J80: ='[1]جدول EMIS'!AK105 -> 114 | K80: =CONCATENATE('[1]جدول EMIS'!BC105) ->  | L80: =CONCATENATE('[1]جدول EMIS'!BI105) -> 28 | M80: =CONCATENATE('[1]جدول EMIS'!BO105) -> 55 | N80: =CONCATENATE('[1]جدول EMIS'!AW105) -> 90 | O80: =CONCATENATE('[1]جدول EMIS'!AQ105) -> 49 | P80: =IF(MATCH($B$73,{"الرابع والخامس والسادس"},0)>6,"",CHOOSE((MATCH($B$73,$Q$5:$Q$14,0)<=6)+1,ROUND(AVERAGE(E80:K80),2),ROUND(AVERAGE(E80:K80),2))) -> 95 | R80: ='[1]جدول EMIS'!AU9 -> 0
A81: 7 | B81: امير رمضان يوسف قمر | C81: أردني | D81: ماركا 23 / 6 / 2003 | E81: ='[1]جدول EMIS'!G106 -> 100 | F81: ='[1]جدول EMIS'!M106 ->  | G81: ='[1]جدول EMIS'!S106 -> 0 | H81: ='[1]جدول EMIS'!Y106 -> 0 | I81: ='[1]جدول EMIS'!AE106 -> 0 | J81: ='[1]جدول EMIS'!AK106 -> 0 | K81: =CONCATENATE('[1]جدول EMIS'!BC106) ->  | L81: =CONCATENATE('[1]جدول EMIS'!BI106) ->  | M81: =CONCATENATE('[1]جدول EMIS'!BO106) ->  | N81: =CONCATENATE('[1]جدول EMIS'!AW106) -> 90 | O81: =CONCATENATE('[1]جدول EMIS'!AQ106) ->  | P81: =IF(MATCH($B$73,{"الرابع والخامس والسادس"},0)>6,"",CHOOSE((MATCH($B$73,$Q$5:$Q$14,0)<=6)+1,ROUND(AVERAGE(E81:K81),2),ROUND(AVERAGE(E81:K81),2))) -> 20 | R81: ='[1]جدول EMIS'!AU10 -> 0
A82: 8 | B82: بشار اياد مصطفى مزيد | C82: أردني | D82: ماركا 23 / 12 / 2004 | E82: ='[1]جدول EMIS'!G107 -> 0 | F82: ='[1]جدول EMIS'!M107 -> 300 | G82: ='[1]جدول EMIS'!S107 -> 189 | H82: ='[1]جدول EMIS'!Y107 -> 167 | I82: ='[1]جدول EMIS'!AE107 -> 105 | J82: ='[1]جدول EMIS'!AK107 -> 255 | K82: =CONCATENATE('[1]جدول EMIS'!BC107) ->  | L82: =CONCATENATE('[1]جدول EMIS'!BI107) -> 90 | M82: =CONCATENATE('[1]جدول EMIS'!BO107) -> 95 | N82: =CONCATENATE('[1]جدول EMIS'!AW107) -> 90 | O82: =CONCATENATE('[1]جدول EMIS'!AQ107) -> 59 | P82: =IF(MATCH($B$73,{"الرابع والخامس والسادس"},0)>6,"",CHOOSE((MATCH($B$73,$Q$5:$Q$14,0)<=6)+1,ROUND(AVERAGE(E82:K82),2),ROUND(AVERAGE(E82:K82),2))) -> 143.2 | R82: ='[1]جدول EMIS'!AU11 -> 0
A83: 9 | B83: بلال عمران محارب الغوله | C83: فلسطيني | D83: ماركا 10 / 6 / 2002 | E83: ='[1]جدول EMIS'!G108 -> 200 | F83: ='[1]جدول EMIS'!M108 ->  | G83: ='[1]جدول EMIS'!S108 -> 0 | H83: ='[1]جدول EMIS'!Y108 -> 53 | I83: ='[1]جدول EMIS'!AE108 -> 0 | J83: ='[1]جدول EMIS'!AK108 -> 0 | K83: =CONCATENATE('[1]جدول EMIS'!BC108) ->  | L83: =CONCATENATE('[1]جدول EMIS'!BI108) -> 23 | M83: =CONCATENATE('[1]جدول EMIS'!BO108) -> 10 | N83: =CONCATENATE('[1]جدول EMIS'!AW108) -> 90 | O83: =CONCATENATE('[1]جدول EMIS'!AQ108) -> 10 | P83: =IF(MATCH($B$73,{"الرابع والخامس والسادس"},0)>6,"",CHOOSE((MATCH($B$73,$Q$5:$Q$14,0)<=6)+1,ROUND(AVERAGE(E83:K83),2),ROUND(AVERAGE(E83:K83),2))) -> 50.6 | R83: ='[1]جدول EMIS'!AU12 -> 0
A84: 10 | B84: حازم احمد عبد الله ضمره | C84: أردني | D84: ماركا 10 / 10 / 2004 | E84: ='[1]جدول EMIS'!G109 -> 0 | F84: ='[1]جدول EMIS'!M109 -> 130 | G84: ='[1]جدول EMIS'!S109 -> 101 | H84: ='[1]جدول EMIS'!Y109 -> 100 | I84: ='[1]جدول EMIS'!AE109 -> 33 | J84: ='[1]جدول EMIS'!AK109 -> 111 | K84: =CONCATENATE('[1]جدول EMIS'!BC109) ->  | L84: =CONCATENATE('[1]جدول EMIS'!BI109) -> 24 | M84: =CONCATENATE('[1]جدول EMIS'!BO109) -> 56 | N84: =CONCATENATE('[1]جدول EMIS'!AW109) -> 90 | O84: =CONCATENATE('[1]جدول EMIS'!AQ109) -> 46 | P84: =IF(MATCH($B$73,{"الرابع والخامس والسادس"},0)>6,"",CHOOSE((MATCH($B$73,$Q$5:$Q$14,0)<=6)+1,ROUND(AVERAGE(E84:K84),2),ROUND(AVERAGE(E84:K84),2))) -> 69 | R84: ='[1]جدول EMIS'!AU13 -> 0
A85: 11 | B85: حمزة علي محمود نصر الله | C85: أردني | D85: ماركا 6 / 9 / 2004 | E85: ='[1]جدول EMIS'!G110 -> 100 | F85: ='[1]جدول EMIS'!M110 -> 247 | G85: ='[1]جدول EMIS'!S110 -> 170 | H85: ='[1]جدول EMIS'!Y110 -> 110 | I85: ='[1]جدول EMIS'!AE110 -> 93 | J85: ='[1]جدول EMIS'!AK110 -> 202 | K85: =CONCATENATE('[1]جدول EMIS'!BC110) ->  | L85: =CONCATENATE('[1]جدول EMIS'!BI110) -> 64 | M85: =CONCATENATE('[1]جدول EMIS'!BO110) -> 74 | N85: =CONCATENATE('[1]جدول EMIS'!AW110) -> 90 | O85: =CONCATENATE('[1]جدول EMIS'!AQ110) -> 59 | P85: =IF(MATCH($B$73,{"الرابع والخامس والسادس"},0)>6,"",CHOOSE((MATCH($B$73,$Q$5:$Q$14,0)<=6)+1,ROUND(AVERAGE(E85:K85),2),ROUND(AVERAGE(E85:K85),2))) -> 135 | R85: ='[1]جدول EMIS'!AU14 -> 0
A86: 12 | B86: حمزه محمود عبد الكريم ابو ادعيج | C86: أردني | D86: ماركا 29 / 8 / 2004 | E86: ='[1]جدول EMIS'!G111 -> 189 | F86: ='[1]جدول EMIS'!M111 -> 120 | G86: ='[1]جدول EMIS'!S111 -> 99 | H86: ='[1]جدول EMIS'!Y111 -> 64 | I86: ='[1]جدول EMIS'!AE111 -> 27 | J86: ='[1]جدول EMIS'!AK111 -> 122 | K86: =CONCATENATE('[1]جدول EMIS'!BC111) ->  | L86: =CONCATENATE('[1]جدول EMIS'!BI111) -> 51 | M86: =CONCATENATE('[1]جدول EMIS'!BO111) -> 66 | N86: =CONCATENATE('[1]جدول EMIS'!AW111) -> 90 | O86: =CONCATENATE('[1]جدول EMIS'!AQ111) -> 51 | P86: =IF(MATCH($B$73,{"الرابع والخامس والسادس"},0)>6,"",CHOOSE((MATCH($B$73,$Q$5:$Q$14,0)<=6)+1,ROUND(AVERAGE(E86:K86),2),ROUND(AVERAGE(E86:K86),2))) -> 100.2 | R86: ='[1]جدول EMIS'!AU15 -> 0
A87: 13 | B87: خلدون محمد محمود اسماعيل | C87: أردني | D87: ماركا 8 / 11 / 2004 | E87: ='[1]جدول EMIS'!G112 -> 100 | F87: ='[1]جدول EMIS'!M112 -> 220 | G87: ='[1]جدول EMIS'!S112 -> 143 | H87: ='[1]جدول EMIS'!Y112 -> 126 | I87: ='[1]جدول EMIS'!AE112 -> 78 | J87: ='[1]جدول EMIS'!AK112 -> 208 | K87: =CONCATENATE('[1]جدول EMIS'!BC112) ->  | L87: =CONCATENATE('[1]جدول EMIS'!BI112) -> 75 | M87: =CONCATENATE('[1]جدول EMIS'!BO112) -> 79 | N87: =CONCATENATE('[1]جدول EMIS'!AW112) -> 90 | O87: =CONCATENATE('[1]جدول EMIS'!AQ112) -> 59 | P87: =IF(MATCH($B$73,{"الرابع والخامس والسادس"},0)>6,"",CHOOSE((MATCH($B$73,$Q$5:$Q$14,0)<=6)+1,ROUND(AVERAGE(E87:K87),2),ROUND(AVERAGE(E87:K87),2))) -> 131 | R87: ='[1]جدول EMIS'!AU16 -> 0
A88: 14 | B88: زياد خالد محمود النادى | C88: أردني | D88: ماركا 2 / 2 / 2004 | E88: ='[1]جدول EMIS'!G113 -> 193 | F88: ='[1]جدول EMIS'!M113 -> 115 | G88: ='[1]جدول EMIS'!S113 -> 111 | H88: ='[1]جدول EMIS'!Y113 -> 81 | I88: ='[1]جدول EMIS'!AE113 -> 30 | J88: ='[1]جدول EMIS'!AK113 -> 111 | K88: =CONCATENATE('[1]جدول EMIS'!BC113) ->  | L88: =CONCATENATE('[1]جدول EMIS'!BI113) -> 38 | M88: =CONCATENATE('[1]جدول EMIS'!BO113) -> 45 | N88: =CONCATENATE('[1]جدول EMIS'!AW113) -> 90 | O88: =CONCATENATE('[1]جدول EMIS'!AQ113) -> 38 | P88: =IF(MATCH($B$73,{"الرابع والخامس والسادس"},0)>6,"",CHOOSE((MATCH($B$73,$Q$5:$Q$14,0)<=6)+1,ROUND(AVERAGE(E88:K88),2),ROUND(AVERAGE(E88:K88),2))) -> 105.2 | R88: ='[1]جدول EMIS'!AU17 -> 0
A89: 15 | B89: سليم صالح سليم الشلبي | C89: أردني | D89: ماركا 24 / 10 / 2004 | E89: ='[1]جدول EMIS'!G114 -> 100 | F89: ='[1]جدول EMIS'!M114 -> 98 | G89: ='[1]جدول EMIS'!S114 -> 97 | H89: ='[1]جدول EMIS'!Y114 -> 90 | I89: ='[1]جدول EMIS'!AE114 -> 21 | J89: ='[1]جدول EMIS'!AK114 -> 126 | K89: =CONCATENATE('[1]جدول EMIS'!BC114) ->  | L89: =CONCATENATE('[1]جدول EMIS'!BI114) -> 24 | M89: =CONCATENATE('[1]جدول EMIS'!BO114) -> 48 | N89: =CONCATENATE('[1]جدول EMIS'!AW114) -> 90 | O89: =CONCATENATE('[1]جدول EMIS'!AQ114) -> 39 | P89: =IF(MATCH($B$73,{"الرابع والخامس والسادس"},0)>6,"",CHOOSE((MATCH($B$73,$Q$5:$Q$14,0)<=6)+1,ROUND(AVERAGE(E89:K89),2),ROUND(AVERAGE(E89:K89),2))) -> 86.8 | R89: ='[1]جدول EMIS'!AU18 -> 0
A90: 16 | B90: طارق امجد عاصم الكرمي | C90: أردني | D90: قصبة عمان 8 / 7 / 2004 | E90: ='[1]جدول EMIS'!G115 -> 100 | F90: ='[1]جدول EMIS'!M115 -> 199 | G90: ='[1]جدول EMIS'!S115 -> 146 | H90: ='[1]جدول EMIS'!Y115 -> 112 | I90: ='[1]جدول EMIS'!AE115 -> 48 | J90: ='[1]جدول EMIS'!AK115 -> 180 | K90: =CONCATENATE('[1]جدول EMIS'!BC115) ->  | L90: =CONCATENATE('[1]جدول EMIS'!BI115) -> 59 | M90: =CONCATENATE('[1]جدول EMIS'!BO115) -> 65 | N90: =CONCATENATE('[1]جدول EMIS'!AW115) -> 90 | O90: =CONCATENATE('[1]جدول EMIS'!AQ115) -> 55 | P90: =IF(MATCH($B$73,{"الرابع والخامس والسادس"},0)>6,"",CHOOSE((MATCH($B$73,$Q$5:$Q$14,0)<=6)+1,ROUND(AVERAGE(E90:K90),2),ROUND(AVERAGE(E90:K90),2))) -> 117.2 | R90: ='[1]جدول EMIS'!AU19 -> 0
A91: 17 | B91: عباده مناضل غالب الريماوي | C91: أردني | D91: ماركا 4 / 12 / 2004 | E91: ='[1]جدول EMIS'!G116 -> 160 | F91: ='[1]جدول EMIS'!M116 -> 273 | G91: ='[1]جدول EMIS'!S116 -> 156 | H91: ='[1]جدول EMIS'!Y116 -> 187 | I91: ='[1]جدول EMIS'!AE116 -> 99 | J91: ='[1]جدول EMIS'!AK116 -> 248 | K91: =CONCATENATE('[1]جدول EMIS'!BC116) ->  | L91: =CONCATENATE('[1]جدول EMIS'!BI116) -> 94 | M91: =CONCATENATE('[1]جدول EMIS'!BO116) -> 80 | N91: =CONCATENATE('[1]جدول EMIS'!AW116) -> 90 | O91: =CONCATENATE('[1]جدول EMIS'!AQ116) -> 57 | P91: =IF(MATCH($B$73,{"الرابع والخامس والسادس"},0)>6,"",CHOOSE((MATCH($B$73,$Q$5:$Q$14,0)<=6)+1,ROUND(AVERAGE(E91:K91),2),ROUND(AVERAGE(E91:K91),2))) -> 170 | R91: ='[1]جدول EMIS'!AU20 -> 0
A92: =CONCATENATE(A22) -> 18 | B92: عبد الرحمن يوسف محمد ابو قدوم | C92: أردني | D92: ماركا 20 / 9 / 2004 | E92: ='[1]جدول EMIS'!G117 -> 193 | F92: ='[1]جدول EMIS'!M117 -> 183 | G92: ='[1]جدول EMIS'!S117 -> 118 | H92: ='[1]جدول EMIS'!Y117 -> 90 | I92: ='[1]جدول EMIS'!AE117 -> 54 | J92: ='[1]جدول EMIS'!AK117 -> 199 | K92: =CONCATENATE('[1]جدول EMIS'!BC117) ->  | L92: =CONCATENATE('[1]جدول EMIS'!BI117) -> 60 | M92: =CONCATENATE('[1]جدول EMIS'!BO117) -> 77 | N92: =CONCATENATE('[1]جدول EMIS'!AW117) -> 90 | O92: =CONCATENATE('[1]جدول EMIS'!AQ117) -> 53 | P92: =IF(MATCH($B$73,{"الرابع والخامس والسادس"},0)>6,"",CHOOSE((MATCH($B$73,$Q$5:$Q$14,0)<=6)+1,ROUND(AVERAGE(E92:K92),2),ROUND(AVERAGE(E92:K92),2))) -> 130.8 | R92: ='[1]جدول EMIS'!AU21 -> 0
A93: 19 | B93: عبد الرحيم ابراهيم عبد الرحيم حزين | C93: أردني | D93: ماركا 21 / 6 / 2004 | E93: ='[1]جدول EMIS'!G118 -> 134 | F93: ='[1]جدول EMIS'!M118 ->  | G93: ='[1]جدول EMIS'!S118 -> 0 | H93: ='[1]جدول EMIS'!Y118 -> 0 | I93: ='[1]جدول EMIS'!AE118 -> 0 | J93: ='[1]جدول EMIS'!AK118 -> 0 | K93: =CONCATENATE('[1]جدول EMIS'!BC118) ->  | L93: =CONCATENATE('[1]جدول EMIS'!BI118) ->  | M93: =CONCATENATE('[1]جدول EMIS'!BO118) ->  | N93: =CONCATENATE('[1]جدول EMIS'!AW118) -> 90 | O93: =CONCATENATE('[1]جدول EMIS'!AQ118) ->  | P93: =IF(MATCH($B$73,{"الرابع والخامس والسادس"},0)>6,"",CHOOSE((MATCH($B$73,$Q$5:$Q$14,0)<=6)+1,ROUND(AVERAGE(E93:K93),2),ROUND(AVERAGE(E93:K93),2))) -> 26.8 | R93: ='[1]جدول EMIS'!AU22 -> 0
A94: 20 | B94: عبد الله غسان يوسف ابو اسنينه | C94: أردني | D94: القويسمة 25 / 12 / 2002 | E94: ='[1]جدول EMIS'!G119 -> 0 | F94: ='[1]جدول EMIS'!M119 -> 80 | G94: ='[1]جدول EMIS'!S119 -> 110 | H94: ='[1]جدول EMIS'!Y119 -> 78 | I94: ='[1]جدول EMIS'!AE119 -> 33 | J94: ='[1]جدول EMIS'!AK119 -> 118 | K94: =CONCATENATE('[1]جدول EMIS'!BC119) ->  | L94: =CONCATENATE('[1]جدول EMIS'!BI119) -> 26 | M94: =CONCATENATE('[1]جدول EMIS'!BO119) -> 53 | N94: =CONCATENATE('[1]جدول EMIS'!AW119) -> 90 | O94: =CONCATENATE('[1]جدول EMIS'!AQ119) -> 43 | P94: =IF(MATCH($B$73,{"الرابع والخامس والسادس"},0)>6,"",CHOOSE((MATCH($B$73,$Q$5:$Q$14,0)<=6)+1,ROUND(AVERAGE(E94:K94),2),ROUND(AVERAGE(E94:K94),2))) -> 67.8 | R94: ='[1]جدول EMIS'!AU23 -> 0
A95: 21 | B95: عبد الله نبيل مصطفى بدير | C95: أردني | D95: العاصمة عمان 9 / 4 / 2004 | E95: ='[1]جدول EMIS'!G120 -> 120 | F95: ='[1]جدول EMIS'!M120 -> 126 | G95: ='[1]جدول EMIS'!S120 -> 114 | H95: ='[1]جدول EMIS'!Y120 -> 88 | I95: ='[1]جدول EMIS'!AE120 -> 15 | J95: ='[1]جدول EMIS'!AK120 -> 111 | K95: =CONCATENATE('[1]جدول EMIS'!BC120) ->  | L95: =CONCATENATE('[1]جدول EMIS'!BI120) -> 35 | M95: =CONCATENATE('[1]جدول EMIS'!BO120) -> 44 | N95: =CONCATENATE('[1]جدول EMIS'!AW120) -> 90 | O95: =CONCATENATE('[1]جدول EMIS'!AQ120) -> 34 | P95: =IF(MATCH($B$73,{"الرابع والخامس والسادس"},0)>6,"",CHOOSE((MATCH($B$73,$Q$5:$Q$14,0)<=6)+1,ROUND(AVERAGE(E95:K95),2),ROUND(AVERAGE(E95:K95),2))) -> 89.6 | R95: ='[1]جدول EMIS'!AU24 -> 0
A96: 22 | B96: عبد الله اسامه وهيب حسين | C96: أردني | D96: ماركا 11 / 10 / 2004 | E96: ='[1]جدول EMIS'!G121 -> 102 | F96: ='[1]جدول EMIS'!M121 -> 160 | G96: ='[1]جدول EMIS'!S121 -> 131 | H96: ='[1]جدول EMIS'!Y121 -> 90 | I96: ='[1]جدول EMIS'!AE121 -> 69 | J96: ='[1]جدول EMIS'!AK121 -> 183 | K96: =CONCATENATE('[1]جدول EMIS'!BC121) ->  | L96: =CONCATENATE('[1]جدول EMIS'!BI121) -> 50 | M96: =CONCATENATE('[1]جدول EMIS'!BO121) -> 71 | N96: =CONCATENATE('[1]جدول EMIS'!AW121) -> 90 | O96: =CONCATENATE('[1]جدول EMIS'!AQ121) -> 51 | P96: =IF(MATCH($B$73,{"الرابع والخامس والسادس"},0)>6,"",CHOOSE((MATCH($B$73,$Q$5:$Q$14,0)<=6)+1,ROUND(AVERAGE(E96:K96),2),ROUND(AVERAGE(E96:K96),2))) -> 115 | R96: ='[1]جدول EMIS'!AU25 -> 0
A97: 23 | B97: عبدالله اسعد نعيم عواد | C97: أردني | D97: ماركا 26 / 8 / 2005 | E97: ='[1]جدول EMIS'!G122 -> 186 | F97: ='[1]جدول EMIS'!M122 -> 165 | G97: ='[1]جدول EMIS'!S122 -> 145 | H97: ='[1]جدول EMIS'!Y122 -> 101 | I97: ='[1]جدول EMIS'!AE122 -> 51 | J97: ='[1]جدول EMIS'!AK122 -> 165 | K97: =CONCATENATE('[1]جدول EMIS'!BC122) ->  | L97: =CONCATENATE('[1]جدول EMIS'!BI122) -> 61 | M97: =CONCATENATE('[1]جدول EMIS'!BO122) -> 82 | N97: =CONCATENATE('[1]جدول EMIS'!AW122) -> 90 | O97: =CONCATENATE('[1]جدول EMIS'!AQ122) -> 54 | P97: =IF(MATCH($B$73,{"الرابع والخامس والسادس"},0)>6,"",CHOOSE((MATCH($B$73,$Q$5:$Q$14,0)<=6)+1,ROUND(AVERAGE(E97:K97),2),ROUND(AVERAGE(E97:K97),2))) -> 129.6 | R97: ='[1]جدول EMIS'!AU26 -> 0
A98: 24 | B98: علي كمال محمد ابو جراده | C98: أردني | D98: العاصمة عمان 21 / 11 / 2004 | E98: ='[1]جدول EMIS'!G123 -> 151 | F98: ='[1]جدول EMIS'!M123 -> 152 | G98: ='[1]جدول EMIS'!S123 -> 110 | H98: ='[1]جدول EMIS'!Y123 -> 63 | I98: ='[1]جدول EMIS'!AE123 -> 42 | J98: ='[1]جدول EMIS'!AK123 -> 131 | K98: =CONCATENATE('[1]جدول EMIS'!BC123) ->  | L98: =CONCATENATE('[1]جدول EMIS'!BI123) -> 68 | M98: =CONCATENATE('[1]جدول EMIS'!BO123) -> 71 | N98: =CONCATENATE('[1]جدول EMIS'!AW123) -> 90 | O98: =CONCATENATE('[1]جدول EMIS'!AQ123) -> 49 | P98: =IF(MATCH($B$73,{"الرابع والخامس والسادس"},0)>6,"",CHOOSE((MATCH($B$73,$Q$5:$Q$14,0)<=6)+1,ROUND(AVERAGE(E98:K98),2),ROUND(AVERAGE(E98:K98),2))) -> 99.4 | R98: ='[1]جدول EMIS'!AU27 -> 0
A99: 25 | B99: غيث اسامه راشد ابومطر | C99: أردني | D99: ماركا 23 / 6 / 2004 | E99: ='[1]جدول EMIS'!G124 -> 124 | F99: ='[1]جدول EMIS'!M124 -> 140 | G99: ='[1]جدول EMIS'!S124 -> 91 | H99: ='[1]جدول EMIS'!Y124 -> 86 | I99: ='[1]جدول EMIS'!AE124 -> 45 | J99: ='[1]جدول EMIS'!AK124 -> 117 | K99: =CONCATENATE('[1]جدول EMIS'!BC124) ->  | L99: =CONCATENATE('[1]جدول EMIS'!BI124) -> 30 | M99: =CONCATENATE('[1]جدول EMIS'!BO124) -> 47 | N99: =CONCATENATE('[1]جدول EMIS'!AW124) -> 90 | O99: =CONCATENATE('[1]جدول EMIS'!AQ124) -> 35 | P99: =IF(MATCH($B$73,{"الرابع والخامس والسادس"},0)>6,"",CHOOSE((MATCH($B$73,$Q$5:$Q$14,0)<=6)+1,ROUND(AVERAGE(E99:K99),2),ROUND(AVERAGE(E99:K99),2))) -> 92.6 | R99: ='[1]جدول EMIS'!AU28 -> 0
A100: 26 | B100: فراس شادي عزت محمود صالح | C100: أردني | D100: ماركا 29 / 12 / 2004 | E100: ='[1]جدول EMIS'!G125 -> 100 | F100: ='[1]جدول EMIS'!M125 -> 250 | G100: ='[1]جدول EMIS'!S125 -> 198 | H100: ='[1]جدول EMIS'!Y125 -> 140 | I100: ='[1]جدول EMIS'!AE125 -> 90 | J100: ='[1]جدول EMIS'!AK125 -> 236 | K100: =CONCATENATE('[1]جدول EMIS'!BC125) ->  | L100: =CONCATENATE('[1]جدول EMIS'!BI125) -> 78 | M100: =CONCATENATE('[1]جدول EMIS'!BO125) -> 91 | N100: =CONCATENATE('[1]جدول EMIS'!AW125) -> 90 | O100: =CONCATENATE('[1]جدول EMIS'!AQ125) -> 59 | P100: =IF(MATCH($B$73,{"الرابع والخامس والسادس"},0)>6,"",CHOOSE((MATCH($B$73,$Q$5:$Q$14,0)<=6)+1,ROUND(AVERAGE(E100:K100),2),ROUND(AVERAGE(E100:K100),2))) -> 152.8 | R100: ='[1]جدول EMIS'!AU29 -> 0
A101: 27 | B101: كمال احمد كمال عمرو | C101: أردني | D101: ماركا 14 / 8 / 2004 | E101: ='[1]جدول EMIS'!G126 -> 179 | F101: ='[1]جدول EMIS'!M126 -> 230 | G101: ='[1]جدول EMIS'!S126 -> 146 | H101: ='[1]جدول EMIS'!Y126 -> 151 | I101: ='[1]جدول EMIS'!AE126 -> 96 | J101: ='[1]جدول EMIS'!AK126 -> 233 | K101: =CONCATENATE('[1]جدول EMIS'!BC126) ->  | L101: =CONCATENATE('[1]جدول EMIS'!BI126) -> 76 | M101: =CONCATENATE('[1]جدول EMIS'!BO126) -> 92 | N101: =CONCATENATE('[1]جدول EMIS'!AW126) -> 90 | O101: =CONCATENATE('[1]جدول EMIS'!AQ126) -> 59 | P101: =IF(MATCH($B$73,{"الرابع والخامس والسادس"},0)>6,"",CHOOSE((MATCH($B$73,$Q$5:$Q$14,0)<=6)+1,ROUND(AVERAGE(E101:K101),2),ROUND(AVERAGE(E101:K101),2))) -> 161 | R101: ='[1]جدول EMIS'!AU30 -> 0
A102: 28 | B102: ليث عدنان اسماعيل عكه | C102: أردني | D102: ماركا 21 / 12 / 2003 | E102: ='[1]جدول EMIS'!G127 -> 188 | F102: ='[1]جدول EMIS'!M127 ->  | G102: ='[1]جدول EMIS'!S127 -> 0 | H102: ='[1]جدول EMIS'!Y127 -> 0 | I102: ='[1]جدول EMIS'!AE127 -> 0 | J102: ='[1]جدول EMIS'!AK127 -> 0 | K102: =CONCATENATE('[1]جدول EMIS'!BC127) ->  | L102: =CONCATENATE('[1]جدول EMIS'!BI127) ->  | M102: =CONCATENATE('[1]جدول EMIS'!BO127) ->  | N102: =CONCATENATE('[1]جدول EMIS'!AW127) -> 90 | O102: =CONCATENATE('[1]جدول EMIS'!AQ127) ->  | P102: =IF(MATCH($B$73,{"الرابع والخامس والسادس"},0)>6,"",CHOOSE((MATCH($B$73,$Q$5:$Q$14,0)<=6)+1,ROUND(AVERAGE(E102:K102),2),ROUND(AVERAGE(E102:K102),2))) -> 37.6 | R102: ='[1]جدول EMIS'!AU31 -> 0
A103: 29 | B103: مؤيد منير عثمان صالح | C103: أردني | D103: ماركا 2 / 2 / 2004 | E103: ='[1]جدول EMIS'!G128 -> 32 | F103: ='[1]جدول EMIS'!M128 -> 125 | G103: ='[1]جدول EMIS'!S128 -> 93 | H103: ='[1]جدول EMIS'!Y128 -> 74 | I103: ='[1]جدول EMIS'!AE128 -> 39 | J103: ='[1]جدول EMIS'!AK128 -> 120 | K103: =CONCATENATE('[1]جدول EMIS'!BC128) ->  | L103: =CONCATENATE('[1]جدول EMIS'!BI128) -> 29 | M103: =CONCATENATE('[1]جدول EMIS'!BO128) -> 43 | N103: =CONCATENATE('[1]جدول EMIS'!AW128) -> 90 | O103: =CONCATENATE('[1]جدول EMIS'!AQ128) -> 33 | P103: =IF(MATCH($B$73,{"الرابع والخامس والسادس"},0)>6,"",CHOOSE((MATCH($B$73,$Q$5:$Q$14,0)<=6)+1,ROUND(AVERAGE(E103:K103),2),ROUND(AVERAGE(E103:K103),2))) -> 71.6 | R103: ='[1]جدول EMIS'!AU32 -> 0
A104: 30 | B104: مالك علاء محمد خليل | C104: أردني | D104: ماركا 14 / 9 / 2004 | E104: ='[1]جدول EMIS'!G129 -> 100 | F104: ='[1]جدول EMIS'!M129 -> 245 | G104: ='[1]جدول EMIS'!S129 -> 89 | H104: ='[1]جدول EMIS'!Y129 -> 136 | I104: ='[1]جدول EMIS'!AE129 -> 51 | J104: ='[1]جدول EMIS'!AK129 -> 229 | K104: =CONCATENATE('[1]جدول EMIS'!BC129) ->  | L104: =CONCATENATE('[1]جدول EMIS'!BI129) -> 79 | M104: =CONCATENATE('[1]جدول EMIS'!BO129) -> 89 | N104: =CONCATENATE('[1]جدول EMIS'!AW129) -> 90 | O104: =CONCATENATE('[1]جدول EMIS'!AQ129) -> 59 | P104: =IF(MATCH($B$73,{"الرابع والخامس والسادس"},0)>6,"",CHOOSE((MATCH($B$73,$Q$5:$Q$14,0)<=6)+1,ROUND(AVERAGE(E104:K104),2),ROUND(AVERAGE(E104:K104),2))) -> 121 | R104: ='[1]جدول EMIS'!AU33 -> 0
A105: 31 | B105: مامون مصطفى مصلح ابو العيش | C105: فلسطيني | D105: ماركا 17 / 3 / 2004 | E105: ='[1]جدول EMIS'!G130 -> 198 | F105: ='[1]جدول EMIS'!M130 ->  | G105: ='[1]جدول EMIS'!S130 -> 0 | H105: ='[1]جدول EMIS'!Y130 -> 0 | I105: ='[1]جدول EMIS'!AE130 -> 0 | J105: ='[1]جدول EMIS'!AK130 -> 0 | K105: =CONCATENATE('[1]جدول EMIS'!BC130) ->  | L105: =CONCATENATE('[1]جدول EMIS'!BI130) ->  | M105: =CONCATENATE('[1]جدول EMIS'!BO130) ->  | N105: =CONCATENATE('[1]جدول EMIS'!AW130) -> 90 | O105: =CONCATENATE('[1]جدول EMIS'!AQ130) ->  | P105: =IF(MATCH($B$73,{"الرابع والخامس والسادس"},0)>6,"",CHOOSE((MATCH($B$73,$Q$5:$Q$14,0)<=6)+1,ROUND(AVERAGE(E105:K105),2),ROUND(AVERAGE(E105:K105),2))) -> 39.6 | R105: ='[1]جدول EMIS'!AU34 -> 0
A106: 32 | B106: محمد محمد جعفر عبد الكريم ابو درعان النتشه | C106: أردني | D106: ماركا 3 / 3 / 2004 | E106: ='[1]جدول EMIS'!G131 -> 0 | F106: ='[1]جدول EMIS'!M131 -> 106 | G106: ='[1]جدول EMIS'!S131 -> 88 | H106: ='[1]جدول EMIS'!Y131 -> 67 | I106: ='[1]جدول EMIS'!AE131 -> 60 | J106: ='[1]جدول EMIS'!AK131 -> 126 | K106: =CONCATENATE('[1]جدول EMIS'!BC131) ->  | L106: =CONCATENATE('[1]جدول EMIS'!BI131) -> 37 | M106: =CONCATENATE('[1]جدول EMIS'!BO131) -> 43 | N106: =CONCATENATE('[1]جدول EMIS'!AW131) -> 90 | O106: =CONCATENATE('[1]جدول EMIS'!AQ131) -> 33 | P106: =IF(MATCH($B$73,{"الرابع والخامس والسادس"},0)>6,"",CHOOSE((MATCH($B$73,$Q$5:$Q$14,0)<=6)+1,ROUND(AVERAGE(E106:K106),2),ROUND(AVERAGE(E106:K106),2))) -> 68.2 | R106: ='[1]جدول EMIS'!AU35 -> 0
A107: 33 | B107: محمد عطا الله عبد الله الرياحي | C107: أردني | D107: ماركا 13 / 2 / 2004 | E107: ='[1]جدول EMIS'!G132 -> 100 | F107: ='[1]جدول EMIS'!M132 -> 120 | G107: ='[1]جدول EMIS'!S132 -> 89 | H107: ='[1]جدول EMIS'!Y132 -> 100 | I107: ='[1]جدول EMIS'!AE132 -> 54 | J107: ='[1]جدول EMIS'!AK132 -> 108 | K107: =CONCATENATE('[1]جدول EMIS'!BC132) ->  | L107: =CONCATENATE('[1]جدول EMIS'!BI132) -> 38 | M107: =CONCATENATE('[1]جدول EMIS'!BO132) -> 43 | N107: =CONCATENATE('[1]جدول EMIS'!AW132) -> 90 | O107: =CONCATENATE('[1]جدول EMIS'!AQ132) -> 33 | P107: =IF(MATCH($B$73,{"الرابع والخامس والسادس"},0)>6,"",CHOOSE((MATCH($B$73,$Q$5:$Q$14,0)<=6)+1,ROUND(AVERAGE(E107:K107),2),ROUND(AVERAGE(E107:K107),2))) -> 90.2 | R107: ='[1]جدول EMIS'!AU36 -> 0
A108: =CONCATENATE(A38) -> 34 | B108: محمد عبد الرحمن محمد القرنه | C108: أردني | D108: ماركا 18 / 8 / 2004 | E108: ='[1]جدول EMIS'!G133 -> 101 | F108: ='[1]جدول EMIS'!M133 -> 262 | G108: ='[1]جدول EMIS'!S133 -> 161 | H108: ='[1]جدول EMIS'!Y133 -> 114 | I108: ='[1]جدول EMIS'!AE133 -> 87 | J108: ='[1]جدول EMIS'!AK133 -> 228 | K108: =CONCATENATE('[1]جدول EMIS'!BC133) ->  | L108: =CONCATENATE('[1]جدول EMIS'!BI133) -> 80 | M108: =CONCATENATE('[1]جدول EMIS'!BO133) -> 77 | N108: =CONCATENATE('[1]جدول EMIS'!AW133) -> 90 | O108: =CONCATENATE('[1]جدول EMIS'!AQ133) -> 57 | P108: =IF(MATCH($B$73,{"الرابع والخامس والسادس"},0)>6,"",CHOOSE((MATCH($B$73,$Q$5:$Q$14,0)<=6)+1,ROUND(AVERAGE(E108:K108),2),ROUND(AVERAGE(E108:K108),2))) -> 138.2 | R108: ='[1]جدول EMIS'!AU37 -> 0
A109: 35 | B109: محمد منيب جودى الهيموني | C109: أردني | D109: ماركا 14 / 2 / 2004 | E109: ='[1]جدول EMIS'!G134 -> 184 | F109: ='[1]جدول EMIS'!M134 -> 135 | G109: ='[1]جدول EMIS'!S134 -> 99 | H109: ='[1]جدول EMIS'!Y134 -> 48 | I109: ='[1]جدول EMIS'!AE134 -> 33 | J109: ='[1]جدول EMIS'!AK134 -> 106 | K109: =CONCATENATE('[1]جدول EMIS'!BC134) ->  | L109: =CONCATENATE('[1]جدول EMIS'!BI134) -> 44 | M109: =CONCATENATE('[1]جدول EMIS'!BO134) -> 58 | N109: =CONCATENATE('[1]جدول EMIS'!AW134) -> 90 | O109: =CONCATENATE('[1]جدول EMIS'!AQ134) -> 49 | P109: =IF(MATCH($B$73,{"الرابع والخامس والسادس"},0)>6,"",CHOOSE((MATCH($B$73,$Q$5:$Q$14,0)<=6)+1,ROUND(AVERAGE(E109:K109),2),ROUND(AVERAGE(E109:K109),2))) -> 94 | R109: ='[1]جدول EMIS'!AU38 -> 0
A110: 36 | B110: محمد سميح حسين حسان | C110: أردني | D110: ماركا 28 / 12 / 2004 | E110: ='[1]جدول EMIS'!G135 -> 100 | F110: ='[1]جدول EMIS'!M135 -> 114 | G110: ='[1]جدول EMIS'!S135 -> 56 | H110: ='[1]جدول EMIS'!Y135 -> 71 | I110: ='[1]جدول EMIS'!AE135 -> 0 | J110: ='[1]جدول EMIS'!AK135 -> 100 | K110: =CONCATENATE('[1]جدول EMIS'!BC135) ->  | L110: =CONCATENATE('[1]جدول EMIS'!BI135) -> 22 | M110: =CONCATENATE('[1]جدول EMIS'!BO135) -> 38 | N110: =CONCATENATE('[1]جدول EMIS'!AW135) -> 90 | O110: =CONCATENATE('[1]جدول EMIS'!AQ135) -> 38 | P110: =IF(MATCH($B$73,{"الرابع والخامس والسادس"},0)>6,"",CHOOSE((MATCH($B$73,$Q$5:$Q$14,0)<=6)+1,ROUND(AVERAGE(E110:K110),2),ROUND(AVERAGE(E110:K110),2))) -> 65.4 | R110: ='[1]جدول EMIS'!AU39 -> 0
A111: 37 | B111: محمود حموده طه الصوري | C111: أردني | D111: ماركا 25 / 11 / 2004 | E111: ='[1]جدول EMIS'!G136 -> 0 | F111: ='[1]جدول EMIS'!M136 -> 265 | G111: ='[1]جدول EMIS'!S136 -> 119 | H111: ='[1]جدول EMIS'!Y136 -> 135 | I111: ='[1]جدول EMIS'!AE136 -> 99 | J111: ='[1]جدول EMIS'!AK136 -> 241 | K111: =CONCATENATE('[1]جدول EMIS'!BC136) ->  | L111: =CONCATENATE('[1]جدول EMIS'!BI136) -> 70 | M111: =CONCATENATE('[1]جدول EMIS'!BO136) -> 93 | N111: =CONCATENATE('[1]جدول EMIS'!AW136) -> 90 | O111: =CONCATENATE('[1]جدول EMIS'!AQ136) -> 59 | P111: =IF(MATCH($B$73,{"الرابع والخامس والسادس"},0)>6,"",CHOOSE((MATCH($B$73,$Q$5:$Q$14,0)<=6)+1,ROUND(AVERAGE(E111:K111),2),ROUND(AVERAGE(E111:K111),2))) -> 118.8 | R111: ='[1]جدول EMIS'!AU40 -> 0
A112: 38 | B112: معتصم مهنا مصباح غيث | C112: أردني | D112: ماركا 14 / 12 / 2004 | E112: ='[1]جدول EMIS'!G137 -> 184 | F112: ='[1]جدول EMIS'!M137 -> 131 | G112: ='[1]جدول EMIS'!S137 -> 100 | H112: ='[1]جدول EMIS'!Y137 -> 84 | I112: ='[1]جدول EMIS'!AE137 -> 60 | J112: ='[1]جدول EMIS'!AK137 -> 146 | K112: =CONCATENATE('[1]جدول EMIS'!BC137) ->  | L112: =CONCATENATE('[1]جدول EMIS'!BI137) -> 29 | M112: =CONCATENATE('[1]جدول EMIS'!BO137) -> 53 | N112: =CONCATENATE('[1]جدول EMIS'!AW137) -> 90 | O112: =CONCATENATE('[1]جدول EMIS'!AQ137) -> 43 | P112: =IF(MATCH($B$73,{"الرابع والخامس والسادس"},0)>6,"",CHOOSE((MATCH($B$73,$Q$5:$Q$14,0)<=6)+1,ROUND(AVERAGE(E112:K112),2),ROUND(AVERAGE(E112:K112),2))) -> 114.8 | R112: ='[1]جدول EMIS'!AU41 -> 0
A113: 39 | B113: منتصر انور عبدالله القواسمه | C113: أردني | D113: ماركا 12 / 5 / 2004 | E113: ='[1]جدول EMIS'!G138 -> 100 | F113: ='[1]جدول EMIS'!M138 -> 93 | G113: ='[1]جدول EMIS'!S138 -> 87 | H113: ='[1]جدول EMIS'!Y138 -> 64 | I113: ='[1]جدول EMIS'!AE138 -> 42 | J113: ='[1]جدول EMIS'!AK138 -> 131 | K113: =CONCATENATE('[1]جدول EMIS'!BC138) ->  | L113: =CONCATENATE('[1]جدول EMIS'!BI138) -> 35 | M113: =CONCATENATE('[1]جدول EMIS'!BO138) -> 42 | N113: =CONCATENATE('[1]جدول EMIS'!AW138) -> 90 | O113: =CONCATENATE('[1]جدول EMIS'!AQ138) -> 33 | P113: =IF(MATCH($B$73,{"الرابع والخامس والسادس"},0)>6,"",CHOOSE((MATCH($B$73,$Q$5:$Q$14,0)<=6)+1,ROUND(AVERAGE(E113:K113),2),ROUND(AVERAGE(E113:K113),2))) -> 84.8 | R113: ='[1]جدول EMIS'!AU42 -> 0
A114: 40 | B114: موسى محمود موسى ابو عيده | C114: أردني | D114: ماركا 26 / 3 / 2004 | E114: ='[1]جدول EMIS'!G139 -> 100 | F114: ='[1]جدول EMIS'!M139 -> 294 | G114: ='[1]جدول EMIS'!S139 -> 148 | H114: ='[1]جدول EMIS'!Y139 -> 172 | I114: ='[1]جدول EMIS'!AE139 -> 72 | J114: ='[1]جدول EMIS'!AK139 -> 235 | K114: =CONCATENATE('[1]جدول EMIS'!BC139) ->  | L114: =CONCATENATE('[1]جدول EMIS'!BI139) -> 94 | M114: =CONCATENATE('[1]جدول EMIS'!BO139) -> 92 | N114: =CONCATENATE('[1]جدول EMIS'!AW139) -> 90 | O114: =CONCATENATE('[1]جدول EMIS'!AQ139) -> 60 | P114: =IF(MATCH($B$73,{"الرابع والخامس والسادس"},0)>6,"",CHOOSE((MATCH($B$73,$Q$5:$Q$14,0)<=6)+1,ROUND(AVERAGE(E114:K114),2),ROUND(AVERAGE(E114:K114),2))) -> 145.4 | R114: ='[1]جدول EMIS'!AU43 -> 0
A115: 41 | B115: موسى نايف موسى منصور | C115: أردني | D115: قصبة عمان 4 / 2 / 2004 | E115: ='[1]جدول EMIS'!G140 -> 198 | F115: ='[1]جدول EMIS'!M140 -> 279 | G115: ='[1]جدول EMIS'!S140 -> 142 | H115: ='[1]جدول EMIS'!Y140 -> 179 | I115: ='[1]جدول EMIS'!AE140 -> 96 | J115: ='[1]جدول EMIS'!AK140 -> 248 | K115: =CONCATENATE('[1]جدول EMIS'!BC140) ->  | L115: =CONCATENATE('[1]جدول EMIS'!BI140) -> 92 | M115: =CONCATENATE('[1]جدول EMIS'!BO140) -> 93 | N115: =CONCATENATE('[1]جدول EMIS'!AW140) -> 90 | O115: =CONCATENATE('[1]جدول EMIS'!AQ140) -> 59 | P115: =IF(MATCH($B$73,{"الرابع والخامس والسادس"},0)>6,"",CHOOSE((MATCH($B$73,$Q$5:$Q$14,0)<=6)+1,ROUND(AVERAGE(E115:K115),2),ROUND(AVERAGE(E115:K115),2))) -> 172.6 | R115: ='[1]جدول EMIS'!AU44 -> 0
A116: 42 | B116: يوسف شادي محمود الاخرس | C116: أردني | D116: ماركا 8 / 5 / 2004 | E116: ='[1]جدول EMIS'!G141 -> 191 | F116: ='[1]جدول EMIS'!M141 -> 215 | G116: ='[1]جدول EMIS'!S141 -> 135 | H116: ='[1]جدول EMIS'!Y141 -> 145 | I116: ='[1]جدول EMIS'!AE141 -> 111 | J116: ='[1]جدول EMIS'!AK141 -> 241 | K116: =CONCATENATE('[1]جدول EMIS'!BC141) ->  | L116: =CONCATENATE('[1]جدول EMIS'!BI141) -> 85 | M116: =CONCATENATE('[1]جدول EMIS'!BO141) -> 79 | N116: =CONCATENATE('[1]جدول EMIS'!AW141) -> 90 | O116: =CONCATENATE('[1]جدول EMIS'!AQ141) -> 53 | P116: =IF(MATCH($B$73,{"الرابع والخامس والسادس"},0)>6,"",CHOOSE((MATCH($B$73,$Q$5:$Q$14,0)<=6)+1,ROUND(AVERAGE(E116:K116),2),ROUND(AVERAGE(E116:K116),2))) -> 164.6 | R116: ='[1]جدول EMIS'!AU45 -> 0
D117: / / | E117: ='[1]جدول EMIS'!G142 -> 189 | F117: ='[1]جدول EMIS'!M142 ->  | G117: ='[1]جدول EMIS'!S142 -> 0 | H117: ='[1]جدول EMIS'!Y142 -> 0 | I117: ='[1]جدول EMIS'!AE142 -> 0 | J117: ='[1]جدول EMIS'!AK142 -> 0 | K117: =CONCATENATE('[1]جدول EMIS'!BC142) ->  | L117: =CONCATENATE('[1]جدول EMIS'!BI142) ->  | M117: =CONCATENATE('[1]جدول EMIS'!BO142) ->  | N117: =CONCATENATE('[1]جدول EMIS'!AW142) ->  | O117: =CONCATENATE('[1]جدول EMIS'!AQ142) ->  | P117: =IF(MATCH($B$73,{"الرابع والخامس والسادس"},0)>6,"",CHOOSE((MATCH($B$73,$Q$5:$Q$14,0)<=6)+1,ROUND(AVERAGE(E117:K117),2),ROUND(AVERAGE(E117:K117),2))) -> 37.8 | R117: ='[1]جدول EMIS'!AU46 -> 0
D118: / / | E118: ='[1]جدول EMIS'!G143 -> 0 | F118: ='[1]جدول EMIS'!M143 ->  | G118: ='[1]جدول EMIS'!S143 -> 0 | H118: ='[1]جدول EMIS'!Y143 -> 0 | I118: ='[1]جدول EMIS'!AE143 -> 0 | J118: ='[1]جدول EMIS'!AK143 -> 0 | K118: =CONCATENATE('[1]جدول EMIS'!BC143) ->  | L118: =CONCATENATE('[1]جدول EMIS'!BI143) ->  | M118: =CONCATENATE('[1]جدول EMIS'!BO143) ->  | N118: =CONCATENATE('[1]جدول EMIS'!AW143) ->  | O118: =CONCATENATE('[1]جدول EMIS'!AQ143) ->  | P118: =IF(MATCH($B$73,{"الرابع والخامس والسادس"},0)>6,"",CHOOSE((MATCH($B$73,$Q$5:$Q$14,0)<=6)+1,ROUND(AVERAGE(E118:K118),2),ROUND(AVERAGE(E118:K118),2))) -> 0 | R118: ='[1]جدول EMIS'!AU47 -> 0
D119: / / | E119: ='[1]جدول EMIS'!G144 -> 0 | F119: ='[1]جدول EMIS'!M144 ->  | G119: ='[1]جدول EMIS'!S144 -> 0 | H119: ='[1]جدول EMIS'!Y144 -> 0 | I119: ='[1]جدول EMIS'!AE144 -> 0 | J119: ='[1]جدول EMIS'!AK144 -> 0 | K119: =CONCATENATE('[1]جدول EMIS'!BC144) ->  | L119: =CONCATENATE('[1]جدول EMIS'!BI144) ->  | M119: =CONCATENATE('[1]جدول EMIS'!BO144) ->  | N119: =CONCATENATE('[1]جدول EMIS'!AW144) ->  | O119: =CONCATENATE('[1]جدول EMIS'!AQ144) ->  | P119: =IF(MATCH($B$73,{"الرابع والخامس والسادس"},0)>6,"",CHOOSE((MATCH($B$73,$Q$5:$Q$14,0)<=6)+1,ROUND(AVERAGE(E119:K119),2),ROUND(AVERAGE(E119:K119),2))) -> 0 | R119: ='[1]جدول EMIS'!AU48 -> 0
D120: / / | E120: ='[1]جدول EMIS'!G145 -> 0 | F120: ='[1]جدول EMIS'!M145 ->  | G120: ='[1]جدول EMIS'!S145 -> 0 | H120: ='[1]جدول EMIS'!Y145 -> 0 | I120: ='[1]جدول EMIS'!AE145 -> 0 | J120: ='[1]جدول EMIS'!AK145 -> 0 | K120: =CONCATENATE('[1]جدول EMIS'!BC145) ->  | L120: =CONCATENATE('[1]جدول EMIS'!BI145) ->  | M120: =CONCATENATE('[1]جدول EMIS'!BO145) ->  | N120: =CONCATENATE('[1]جدول EMIS'!AW145) ->  | O120: =CONCATENATE('[1]جدول EMIS'!AQ145) ->  | P120: =IF(MATCH($B$73,{"الرابع والخامس والسادس"},0)>6,"",CHOOSE((MATCH($B$73,$Q$5:$Q$14,0)<=6)+1,ROUND(AVERAGE(E120:K120),2),ROUND(AVERAGE(E120:K120),2))) -> 0 | R120: ='[1]جدول EMIS'!AU49 -> 0
D121: / / | E121: ='[1]جدول EMIS'!G146 -> 0 | F121: ='[1]جدول EMIS'!M146 ->  | G121: ='[1]جدول EMIS'!S146 -> 0 | H121: ='[1]جدول EMIS'!Y146 -> 0 | I121: ='[1]جدول EMIS'!AE146 -> 0 | J121: ='[1]جدول EMIS'!AK146 -> 0 | K121: =CONCATENATE('[1]جدول EMIS'!BC146) ->  | L121: =CONCATENATE('[1]جدول EMIS'!BI146) ->  | M121: =CONCATENATE('[1]جدول EMIS'!BO146) ->  | N121: =CONCATENATE('[1]جدول EMIS'!AW146) ->  | O121: =CONCATENATE('[1]جدول EMIS'!AQ146) ->  | P121: =IF(MATCH($B$73,{"الرابع والخامس والسادس"},0)>6,"",CHOOSE((MATCH($B$73,$Q$5:$Q$14,0)<=6)+1,ROUND(AVERAGE(E121:K121),2),ROUND(AVERAGE(E121:K121),2))) -> 0 | R121: ='[1]جدول EMIS'!AU50 -> 0
D122: / / | E122: ='[1]جدول EMIS'!G147 -> 0 | F122: ='[1]جدول EMIS'!M147 ->  | G122: ='[1]جدول EMIS'!S147 -> 0 | H122: ='[1]جدول EMIS'!Y147 -> 0 | I122: ='[1]جدول EMIS'!AE147 -> 0 | J122: ='[1]جدول EMIS'!AK147 -> 0 | K122: =CONCATENATE('[1]جدول EMIS'!BC147) ->  | L122: =CONCATENATE('[1]جدول EMIS'!BI147) ->  | M122: =CONCATENATE('[1]جدول EMIS'!BO147) ->  | N122: =CONCATENATE('[1]جدول EMIS'!AW147) ->  | O122: =CONCATENATE('[1]جدول EMIS'!AQ147) ->  | P122: =IF(MATCH($B$73,{"الرابع والخامس والسادس"},0)>6,"",CHOOSE((MATCH($B$73,$Q$5:$Q$14,0)<=6)+1,ROUND(AVERAGE(E122:K122),2),ROUND(AVERAGE(E122:K122),2))) -> 0 | R122: ='[1]جدول EMIS'!AU51 -> 0
D123: / / | E123: ='[1]جدول EMIS'!G148 -> 0 | F123: ='[1]جدول EMIS'!M148 ->  | G123: ='[1]جدول EMIS'!S148 -> 0 | H123: ='[1]جدول EMIS'!Y148 -> 0 | I123: ='[1]جدول EMIS'!AE148 -> 0 | J123: ='[1]جدول EMIS'!AK148 -> 0 | K123: =CONCATENATE('[1]جدول EMIS'!BC148) ->  | L123: =CONCATENATE('[1]جدول EMIS'!BI148) ->  | M123: =CONCATENATE('[1]جدول EMIS'!BO148) ->  | N123: =CONCATENATE('[1]جدول EMIS'!AW148) ->  | O123: =CONCATENATE('[1]جدول EMIS'!AQ148) ->  | P123: =IF(MATCH($B$73,{"الرابع والخامس والسادس"},0)>6,"",CHOOSE((MATCH($B$73,$Q$5:$Q$14,0)<=6)+1,ROUND(AVERAGE(E123:K123),2),ROUND(AVERAGE(E123:K123),2))) -> 0 | R123: ='[1]جدول EMIS'!AU52 -> 0
A124: =CONCATENATE(A54) ->  | D124: / / | E124: ='[1]جدول EMIS'!G149 -> 0 | F124: ='[1]جدول EMIS'!M149 ->  | G124: ='[1]جدول EMIS'!S149 -> 0 | H124: ='[1]جدول EMIS'!Y149 -> 0 | I124: ='[1]جدول EMIS'!AE149 -> 0 | J124: ='[1]جدول EMIS'!AK149 -> 0 | K124: =CONCATENATE('[1]جدول EMIS'!BC149) ->  | L124: =CONCATENATE('[1]جدول EMIS'!BI149) ->  | M124: =CONCATENATE('[1]جدول EMIS'!BO149) ->  | N124: =CONCATENATE('[1]جدول EMIS'!AW149) ->  | O124: =CONCATENATE('[1]جدول EMIS'!AQ149) ->  | P124: =IF(MATCH($B$73,{"الرابع والخامس والسادس"},0)>6,"",CHOOSE((MATCH($B$73,$Q$5:$Q$14,0)<=6)+1,ROUND(AVERAGE(E124:K124),2),ROUND(AVERAGE(E124:K124),2))) -> 0 | R124: ='[1]جدول EMIS'!AU53 -> 0
D125: / / | E125: ='[1]جدول EMIS'!G150 -> 0 | F125: ='[1]جدول EMIS'!M150 ->  | G125: ='[1]جدول EMIS'!S150 -> 0 | H125: ='[1]جدول EMIS'!Y150 -> 0 | I125: ='[1]جدول EMIS'!AE150 -> 0 | J125: ='[1]جدول EMIS'!AK150 -> 0 | K125: =CONCATENATE('[1]جدول EMIS'!BC150) ->  | L125: =CONCATENATE('[1]جدول EMIS'!BI150) ->  | M125: =CONCATENATE('[1]جدول EMIS'!BO150) ->  | N125: =CONCATENATE('[1]جدول EMIS'!AW150) ->  | O125: =CONCATENATE('[1]جدول EMIS'!AQ150) ->  | P125: =IF(MATCH($B$73,{"الرابع والخامس والسادس"},0)>6,"",CHOOSE((MATCH($B$73,$Q$5:$Q$14,0)<=6)+1,ROUND(AVERAGE(E125:K125),2),ROUND(AVERAGE(E125:K125),2))) -> 0 | R125: ='[1]جدول EMIS'!AU54 -> 0
D126: / / | E126: ='[1]جدول EMIS'!G151 -> 0 | F126: ='[1]جدول EMIS'!M151 ->  | G126: ='[1]جدول EMIS'!S151 -> 0 | H126: ='[1]جدول EMIS'!Y151 -> 0 | I126: ='[1]جدول EMIS'!AE151 -> 0 | J126: ='[1]جدول EMIS'!AK151 -> 0 | K126: =CONCATENATE('[1]جدول EMIS'!BC151) ->  | L126: =CONCATENATE('[1]جدول EMIS'!BI151) ->  | M126: =CONCATENATE('[1]جدول EMIS'!BO151) ->  | N126: =CONCATENATE('[1]جدول EMIS'!AW151) ->  | O126: =CONCATENATE('[1]جدول EMIS'!AQ151) ->  | P126: =IF(MATCH($B$73,{"الرابع والخامس والسادس"},0)>6,"",CHOOSE((MATCH($B$73,$Q$5:$Q$14,0)<=6)+1,ROUND(AVERAGE(E126:K126),2),ROUND(AVERAGE(E126:K126),2))) -> 0 | R126: ='[1]جدول EMIS'!AU55 -> 0
D127: / / | E127: ='[1]جدول EMIS'!G152 -> 0 | F127: ='[1]جدول EMIS'!M152 ->  | G127: ='[1]جدول EMIS'!S152 -> 0 | H127: ='[1]جدول EMIS'!Y152 -> 0 | I127: ='[1]جدول EMIS'!AE152 -> 0 | J127: ='[1]جدول EMIS'!AK152 -> 0 | K127: =CONCATENATE('[1]جدول EMIS'!BC152) ->  | L127: =CONCATENATE('[1]جدول EMIS'!BI152) ->  | M127: =CONCATENATE('[1]جدول EMIS'!BO152) ->  | N127: =CONCATENATE('[1]جدول EMIS'!AW152) ->  | O127: =CONCATENATE('[1]جدول EMIS'!AQ152) ->  | P127: =IF(MATCH($B$73,{"الرابع والخامس والسادس"},0)>6,"",CHOOSE((MATCH($B$73,$Q$5:$Q$14,0)<=6)+1,ROUND(AVERAGE(E127:K127),2),ROUND(AVERAGE(E127:K127),2))) -> 0 | R127: ='[1]جدول EMIS'!AU56 -> 0
D128: / / | E128: ='[1]جدول EMIS'!G153 -> 0 | F128: ='[1]جدول EMIS'!M153 ->  | G128: ='[1]جدول EMIS'!S153 -> 0 | H128: ='[1]جدول EMIS'!Y153 -> 0 | I128: ='[1]جدول EMIS'!AE153 -> 0 | J128: ='[1]جدول EMIS'!AK153 -> 0 | K128: =CONCATENATE('[1]جدول EMIS'!BC153) ->  | L128: =CONCATENATE('[1]جدول EMIS'!BI153) ->  | M128: =CONCATENATE('[1]جدول EMIS'!BO153) ->  | N128: =CONCATENATE('[1]جدول EMIS'!AW153) ->  | O128: =CONCATENATE('[1]جدول EMIS'!AQ153) ->  | P128: =IF(MATCH($B$73,{"الرابع والخامس والسادس"},0)>6,"",CHOOSE((MATCH($B$73,$Q$5:$Q$14,0)<=6)+1,ROUND(AVERAGE(E128:K128),2),ROUND(AVERAGE(E128:K128),2))) -> 0 | R128: ='[1]جدول EMIS'!AU57 -> 0
D129: / / | E129: ='[1]جدول EMIS'!G154 -> 0 | F129: ='[1]جدول EMIS'!M154 ->  | G129: ='[1]جدول EMIS'!S154 -> 0 | H129: ='[1]جدول EMIS'!Y154 -> 0 | I129: ='[1]جدول EMIS'!AE154 -> 0 | J129: ='[1]جدول EMIS'!AK154 -> 0 | K129: =CONCATENATE('[1]جدول EMIS'!BC154) ->  | L129: =CONCATENATE('[1]جدول EMIS'!BI154) ->  | M129: =CONCATENATE('[1]جدول EMIS'!BO154) ->  | N129: =CONCATENATE('[1]جدول EMIS'!AW154) ->  | O129: =CONCATENATE('[1]جدول EMIS'!AQ154) ->  | P129: =IF(MATCH($B$73,{"الرابع والخامس والسادس"},0)>6,"",CHOOSE((MATCH($B$73,$Q$5:$Q$14,0)<=6)+1,ROUND(AVERAGE(E129:K129),2),ROUND(AVERAGE(E129:K129),2))) -> 0 | R129: ='[1]جدول EMIS'!AU58 -> 0
D130: / / | E130: ='[1]جدول EMIS'!G155 -> 0 | F130: ='[1]جدول EMIS'!M155 ->  | G130: ='[1]جدول EMIS'!S155 -> 0 | H130: ='[1]جدول EMIS'!Y155 -> 0 | I130: ='[1]جدول EMIS'!AE155 -> 0 | J130: ='[1]جدول EMIS'!AK155 -> 0 | K130: =CONCATENATE('[1]جدول EMIS'!BC155) ->  | L130: =CONCATENATE('[1]جدول EMIS'!BI155) ->  | M130: =CONCATENATE('[1]جدول EMIS'!BO155) ->  | N130: =CONCATENATE('[1]جدول EMIS'!AW155) ->  | O130: =CONCATENATE('[1]جدول EMIS'!AQ155) ->  | P130: =IF(MATCH($B$73,{"الرابع والخامس والسادس"},0)>6,"",CHOOSE((MATCH($B$73,$Q$5:$Q$14,0)<=6)+1,ROUND(AVERAGE(E130:K130),2),ROUND(AVERAGE(E130:K130),2))) -> 0 | R130: ='[1]جدول EMIS'!AU59 -> 0
D131: / / | E131: ='[1]جدول EMIS'!G156 -> 0 | F131: ='[1]جدول EMIS'!M156 ->  | G131: ='[1]جدول EMIS'!S156 -> 0 | H131: ='[1]جدول EMIS'!Y156 -> 0 | I131: ='[1]جدول EMIS'!AE156 -> 0 | J131: ='[1]جدول EMIS'!AK156 -> 0 | K131: =CONCATENATE('[1]جدول EMIS'!BC156) ->  | L131: =CONCATENATE('[1]جدول EMIS'!BI156) ->  | M131: =CONCATENATE('[1]جدول EMIS'!BO156) ->  | N131: =CONCATENATE('[1]جدول EMIS'!AW156) ->  | O131: =CONCATENATE('[1]جدول EMIS'!AQ156) ->  | P131: =IF(MATCH($B$73,{"الرابع والخامس والسادس"},0)>6,"",CHOOSE((MATCH($B$73,$Q$5:$Q$14,0)<=6)+1,ROUND(AVERAGE(E131:K131),2),ROUND(AVERAGE(E131:K131),2))) -> 0 | R131: ='[1]جدول EMIS'!AU60 -> 0
D132: / / | E132: ='[1]جدول EMIS'!G157 -> 0 | F132: ='[1]جدول EMIS'!M157 ->  | G132: ='[1]جدول EMIS'!S157 -> 0 | H132: ='[1]جدول EMIS'!Y157 -> 0 | I132: ='[1]جدول EMIS'!AE157 -> 0 | J132: ='[1]جدول EMIS'!AK157 -> 0 | K132: =CONCATENATE('[1]جدول EMIS'!BC157) ->  | L132: =CONCATENATE('[1]جدول EMIS'!BI157) ->  | M132: =CONCATENATE('[1]جدول EMIS'!BO157) ->  | N132: =CONCATENATE('[1]جدول EMIS'!AW157) ->  | O132: =CONCATENATE('[1]جدول EMIS'!AQ157) ->  | P132: =IF(MATCH($B$73,{"الرابع والخامس والسادس"},0)>6,"",CHOOSE((MATCH($B$73,$Q$5:$Q$14,0)<=6)+1,ROUND(AVERAGE(E132:K132),2),ROUND(AVERAGE(E132:K132),2))) -> 0 | R132: ='[1]جدول EMIS'!AU61 -> 0
D133: / / | E133: ='[1]جدول EMIS'!G158 -> 0 | F133: ='[1]جدول EMIS'!M158 ->  | G133: ='[1]جدول EMIS'!S158 -> 0 | H133: ='[1]جدول EMIS'!Y158 -> 0 | I133: ='[1]جدول EMIS'!AE158 -> 0 | J133: ='[1]جدول EMIS'!AK158 -> 0 | K133: =CONCATENATE('[1]جدول EMIS'!BC158) ->  | L133: =CONCATENATE('[1]جدول EMIS'!BI158) ->  | M133: =CONCATENATE('[1]جدول EMIS'!BO158) ->  | N133: =CONCATENATE('[1]جدول EMIS'!AW158) ->  | O133: =CONCATENATE('[1]جدول EMIS'!AQ158) ->  | P133: =IF(MATCH($B$73,{"الرابع والخامس والسادس"},0)>6,"",CHOOSE((MATCH($B$73,$Q$5:$Q$14,0)<=6)+1,ROUND(AVERAGE(E133:K133),2),ROUND(AVERAGE(E133:K133),2))) -> 0 | R133: ='[1]جدول EMIS'!AU62 -> 0
D134: / / | E134: ='[1]جدول EMIS'!G159 -> 0 | F134: ='[1]جدول EMIS'!M159 ->  | G134: ='[1]جدول EMIS'!S159 -> 0 | H134: ='[1]جدول EMIS'!Y159 -> 0 | I134: ='[1]جدول EMIS'!AE159 -> 0 | J134: ='[1]جدول EMIS'!AK159 -> 0 | K134: =CONCATENATE('[1]جدول EMIS'!BC159) ->  | L134: =CONCATENATE('[1]جدول EMIS'!BI159) ->  | M134: =CONCATENATE('[1]جدول EMIS'!BO159) ->  | N134: =CONCATENATE('[1]جدول EMIS'!AW159) ->  | O134: =CONCATENATE('[1]جدول EMIS'!AQ159) ->  | P134: =IF(MATCH($B$73,{"الرابع والخامس والسادس"},0)>6,"",CHOOSE((MATCH($B$73,$Q$5:$Q$14,0)<=6)+1,ROUND(AVERAGE(E134:K134),2),ROUND(AVERAGE(E134:K134),2))) -> 0 | R134: ='[1]جدول EMIS'!AU63 -> 0
D135: / / | E135: ='[1]جدول EMIS'!G160 -> 0 | F135: ='[1]جدول EMIS'!M160 ->  | G135: ='[1]جدول EMIS'!S160 -> 0 | H135: ='[1]جدول EMIS'!Y160 -> 0 | I135: ='[1]جدول EMIS'!AE160 -> 0 | J135: ='[1]جدول EMIS'!AK160 -> 0 | K135: =CONCATENATE('[1]جدول EMIS'!BC160) ->  | L135: =CONCATENATE('[1]جدول EMIS'!BI160) ->  | M135: =CONCATENATE('[1]جدول EMIS'!BO160) ->  | N135: =CONCATENATE('[1]جدول EMIS'!AW160) ->  | O135: =CONCATENATE('[1]جدول EMIS'!AQ160) ->  | P135: =IF(MATCH($B$73,{"الرابع والخامس والسادس"},0)>6,"",CHOOSE((MATCH($B$73,$Q$5:$Q$14,0)<=6)+1,ROUND(AVERAGE(E135:K135),2),ROUND(AVERAGE(E135:K135),2))) -> 0 | R135: ='[1]جدول EMIS'!AU64 -> 0
D136: / / | E136: ='[1]جدول EMIS'!G161 -> 0 | F136: ='[1]جدول EMIS'!M161 ->  | G136: ='[1]جدول EMIS'!S161 -> 0 | H136: ='[1]جدول EMIS'!Y161 -> 0 | I136: ='[1]جدول EMIS'!AE161 -> 0 | J136: ='[1]جدول EMIS'!AK161 -> 0 | K136: =CONCATENATE('[1]جدول EMIS'!BC161) ->  | L136: =CONCATENATE('[1]جدول EMIS'!BI161) ->  | M136: =CONCATENATE('[1]جدول EMIS'!BO161) ->  | N136: =CONCATENATE('[1]جدول EMIS'!AW161) ->  | O136: =CONCATENATE('[1]جدول EMIS'!AQ161) ->  | P136: =IF(MATCH($B$73,{"الرابع والخامس والسادس"},0)>6,"",CHOOSE((MATCH($B$73,$Q$5:$Q$14,0)<=6)+1,ROUND(AVERAGE(E136:K136),2),ROUND(AVERAGE(E136:K136),2))) -> 0 | R136: ='[1]جدول EMIS'!AU65 -> 0
D137: / / | E137: ='[1]جدول EMIS'!G162 -> 0 | F137: ='[1]جدول EMIS'!M162 ->  | G137: ='[1]جدول EMIS'!S162 -> 0 | H137: ='[1]جدول EMIS'!Y162 -> 0 | I137: ='[1]جدول EMIS'!AE162 -> 0 | J137: ='[1]جدول EMIS'!AK162 -> 0 | K137: =CONCATENATE('[1]جدول EMIS'!BC162) ->  | L137: =CONCATENATE('[1]جدول EMIS'!BI162) ->  | M137: =CONCATENATE('[1]جدول EMIS'!BO162) ->  | N137: =CONCATENATE('[1]جدول EMIS'!AW162) ->  | O137: =CONCATENATE('[1]جدول EMIS'!AQ162) ->  | P137: =IF(MATCH($B$73,{"الرابع والخامس والسادس"},0)>6,"",CHOOSE((MATCH($B$73,$Q$5:$Q$14,0)<=6)+1,ROUND(AVERAGE(E137:K137),2),ROUND(AVERAGE(E137:K137),2))) -> 0 | R137: ='[1]جدول EMIS'!AU66 -> 0
D138: / / | E138: ='[1]جدول EMIS'!G163 -> 0 | F138: ='[1]جدول EMIS'!M163 ->  | G138: ='[1]جدول EMIS'!S163 -> 0 | H138: ='[1]جدول EMIS'!Y163 -> 0 | I138: ='[1]جدول EMIS'!AE163 -> 0 | J138: ='[1]جدول EMIS'!AK163 -> 0 | K138: =CONCATENATE('[1]جدول EMIS'!BC163) ->  | L138: =CONCATENATE('[1]جدول EMIS'!BI163) ->  | M138: =CONCATENATE('[1]جدول EMIS'!BO163) ->  | N138: =CONCATENATE('[1]جدول EMIS'!AW163) ->  | O138: =CONCATENATE('[1]جدول EMIS'!AQ163) ->  | P138: =IF(MATCH($B$73,{"الرابع والخامس والسادس"},0)>6,"",CHOOSE((MATCH($B$73,$Q$5:$Q$14,0)<=6)+1,ROUND(AVERAGE(E138:K138),2),ROUND(AVERAGE(E138:K138),2))) -> 0 | R138: ='[1]جدول EMIS'!AU67 -> 0
D139: / / | E139: ='[1]جدول EMIS'!G164 -> 0 | F139: ='[1]جدول EMIS'!M164 ->  | G139: ='[1]جدول EMIS'!S164 -> 0 | H139: ='[1]جدول EMIS'!Y164 -> 0 | I139: ='[1]جدول EMIS'!AE164 -> 0 | J139: ='[1]جدول EMIS'!AK164 -> 0 | K139: =CONCATENATE('[1]جدول EMIS'!BC164) ->  | L139: =CONCATENATE('[1]جدول EMIS'!BI164) ->  | M139: =CONCATENATE('[1]جدول EMIS'!BO164) ->  | N139: =CONCATENATE('[1]جدول EMIS'!AW164) ->  | O139: =CONCATENATE('[1]جدول EMIS'!AQ164) ->  | P139: =IF(MATCH($B$73,{"الرابع والخامس والسادس"},0)>6,"",CHOOSE((MATCH($B$73,$Q$5:$Q$14,0)<=6)+1,ROUND(AVERAGE(E139:K139),2),ROUND(AVERAGE(E139:K139),2))) -> 0 | R139: ='[1]جدول EMIS'!AU68 -> 0
A140: =CONCATENATE(A70) ->  | D140: / / | E140: ='[1]جدول EMIS'!G165 -> 0 | F140: ='[1]جدول EMIS'!M165 ->  | G140: ='[1]جدول EMIS'!S165 -> 0 | H140: ='[1]جدول EMIS'!Y165 -> 0 | I140: ='[1]جدول EMIS'!AE165 -> 0 | J140: ='[1]جدول EMIS'!AK165 -> 0 | K140: =CONCATENATE('[1]جدول EMIS'!BC165) ->  | L140: =CONCATENATE('[1]جدول EMIS'!BI165) ->  | M140: =CONCATENATE('[1]جدول EMIS'!BO165) ->  | N140: =CONCATENATE('[1]جدول EMIS'!AW165) ->  | O140: =CONCATENATE('[1]جدول EMIS'!AQ165) ->  | P140: =IF(MATCH($B$73,{"الرابع والخامس والسادس"},0)>6,"",CHOOSE((MATCH($B$73,$Q$5:$Q$14,0)<=6)+1,ROUND(AVERAGE(E140:K140),2),ROUND(AVERAGE(E140:K140),2))) -> 0 | R140: ='[1]جدول EMIS'!AU69 -> 0
E141: دين | F141: عربي | G141: انجليزي | H141: رياضيات | I141: اجتماعيات | J141: علوم | K141: مهني | L141: حاسوب | M141: مالية | N141: رياضة | O141: فنية موسقى | P141: معدل ف1
B143: السابع | E143: الفصل الأول | F143: الفصل الأول | G143: الفصل الأول | H143: الفصل الأول | I143: الفصل الأول | J143: الفصل الأول | K143: الفصل الأول | L143: الفصل الأول | M143: الفصل الأول | N143: الفصل الأول | O143: الفصل الأول
A144: الرقم | B144: اسم الطالب | C144: الجنسية | D144: تاريخ الولادة | E144: =CONCATENATE(E4) -> 200 | F144: 300 | G144: 200 | H144: 200 | I144: 300 | J144: 400 | K144: 100 | L144: 100 | M144: 100 | N144: 100 | O144: 100 | R144: الغياب
A145: =CONCATENATE(A5) -> 1 | B145: =CONCATENATE(B5) -> ابراهيم اسحق مصطفى اعبيدو | C145: =CONCATENATE(C5) -> أردني | D145: =CONCATENATE(D5) -> ماركا 21 / 2 / 2004 | E145: ='[1]جدول EMIS'!G100 -> 190 | F145: ='[1]جدول EMIS'!M100 -> 300 | G145: ='[1]جدول EMIS'!S100 -> 200 | H145: ='[1]جدول EMIS'!Y100 -> 200 | I145: ='[1]جدول EMIS'!AE100 -> 200 | J145: ='[1]جدول EMIS'!AK100 -> 400 | K145: =CONCATENATE('[1]جدول EMIS'!BC100) -> 100 | L145: =CONCATENATE('[1]جدول EMIS'!BI100) -> 100 | M145: =CONCATENATE('[1]جدول EMIS'!BO100) -> 100 | N145: =CONCATENATE('[1]جدول EMIS'!AW100) -> 100 | O145: =CONCATENATE('[1]جدول EMIS'!AQ100) -> 100 | P145: =IF(MATCH($B$143,{"السابع"},0)>6,"",CHOOSE((MATCH($B$143,$Q$5:$Q$14,0)<=6)+1,ROUND(AVERAGE(E145:M145),2),ROUND(AVERAGE(E145:M145),2))) -> 238 | R145: ='[1]جدول EMIS'!BA4 -> 0
A146: =CONCATENATE(A6) -> 2 | B146: ابراهيم محمد عبد المجيد خلاوي | C146: أردني | D146: لواء ماركا 29 / 6 / 2004 | E146: ='[1]جدول EMIS'!G101 -> 200 | F146: ='[1]جدول EMIS'!M101 -> 235 | G146: ='[1]جدول EMIS'!S101 -> 123 | H146: ='[1]جدول EMIS'!Y101 -> 153 | I146: ='[1]جدول EMIS'!AE101 -> 105 | J146: ='[1]جدول EMIS'!AK101 -> 224 | K146: =CONCATENATE('[1]جدول EMIS'!BC101) ->  | L146: =CONCATENATE('[1]جدول EMIS'!BI101) -> 62 | M146: =CONCATENATE('[1]جدول EMIS'!BO101) -> 90 | N146: =CONCATENATE('[1]جدول EMIS'!AW101) -> 90 | O146: =CONCATENATE('[1]جدول EMIS'!AQ101) -> 60 | P146: =IF(MATCH($B$143,{"السابع"},0)>6,"",CHOOSE((MATCH($B$143,$Q$5:$Q$14,0)<=6)+1,ROUND(AVERAGE(E146:M146),2),ROUND(AVERAGE(E146:M146),2))) -> 161 | R146: ='[1]جدول EMIS'!BA5 -> 0
A147: 3 | B147: ابراهيم صلاح ابراهيم شمعون | C147: أردني | D147: ماركا 10 / 7 / 2004 | E147: ='[1]جدول EMIS'!G102 -> 189 | F147: ='[1]جدول EMIS'!M102 -> 220 | G147: ='[1]جدول EMIS'!S102 -> 105 | H147: ='[1]جدول EMIS'!Y102 -> 112 | I147: ='[1]جدول EMIS'!AE102 -> 75 | J147: ='[1]جدول EMIS'!AK102 -> 218 | K147: =CONCATENATE('[1]جدول EMIS'!BC102) ->  | L147: =CONCATENATE('[1]جدول EMIS'!BI102) -> 52 | M147: =CONCATENATE('[1]جدول EMIS'!BO102) -> 60 | N147: =CONCATENATE('[1]جدول EMIS'!AW102) -> 90 | O147: =CONCATENATE('[1]جدول EMIS'!AQ102) -> 44 | P147: =IF(MATCH($B$143,{"السابع"},0)>6,"",CHOOSE((MATCH($B$143,$Q$5:$Q$14,0)<=6)+1,ROUND(AVERAGE(E147:M147),2),ROUND(AVERAGE(E147:M147),2))) -> 139.8 | R147: ='[1]جدول EMIS'!BA6 -> 0
A148: 4 | B148: ابراهيم محمد ابراهيم عوده الله | C148: أردني | D148: ماركا 3 / 5 / 2004 | E148: ='[1]جدول EMIS'!G103 -> 192 | F148: ='[1]جدول EMIS'!M103 -> 234 | G148: ='[1]جدول EMIS'!S103 -> 147 | H148: ='[1]جدول EMIS'!Y103 -> 139 | I148: ='[1]جدول EMIS'!AE103 -> 84 | J148: ='[1]جدول EMIS'!AK103 -> 241 | K148: =CONCATENATE('[1]جدول EMIS'!BC103) ->  | L148: =CONCATENATE('[1]جدول EMIS'!BI103) -> 92 | M148: =CONCATENATE('[1]جدول EMIS'!BO103) -> 90 | N148: =CONCATENATE('[1]جدول EMIS'!AW103) -> 90 | O148: =CONCATENATE('[1]جدول EMIS'!AQ103) -> 59 | P148: =IF(MATCH($B$143,{"السابع"},0)>6,"",CHOOSE((MATCH($B$143,$Q$5:$Q$14,0)<=6)+1,ROUND(AVERAGE(E148:M148),2),ROUND(AVERAGE(E148:M148),2))) -> 160.6 | R148: ='[1]جدول EMIS'!BA7 -> 0
A149: 5 | B149: احمد عبد الله عثمان سعاده | C149: أردني | D149: ماركا 2 / 11 / 2004 | E149: ='[1]جدول EMIS'!G104 -> 190 | F149: ='[1]جدول EMIS'!M104 -> 288 | G149: ='[1]جدول EMIS'!S104 -> 149 | H149: ='[1]جدول EMIS'!Y104 -> 162 | I149: ='[1]جدول EMIS'!AE104 -> 108 | J149: ='[1]جدول EMIS'!AK104 -> 236 | K149: =CONCATENATE('[1]جدول EMIS'!BC104) ->  | L149: =CONCATENATE('[1]جدول EMIS'!BI104) -> 97 | M149: =CONCATENATE('[1]جدول EMIS'!BO104) -> 95 | N149: =CONCATENATE('[1]جدول EMIS'!AW104) -> 90 | O149: =CONCATENATE('[1]جدول EMIS'!AQ104) -> 59 | P149: =IF(MATCH($B$143,{"السابع"},0)>6,"",CHOOSE((MATCH($B$143,$Q$5:$Q$14,0)<=6)+1,ROUND(AVERAGE(E149:M149),2),ROUND(AVERAGE(E149:M149),2))) -> 169 | R149: ='[1]جدول EMIS'!BA8 -> 0
A150: 6 | B150: احمد اسامه خليل عكه | C150: أردني | D150: ماركا 3 / 9 / 2004 | E150: ='[1]جدول EMIS'!G105 -> 197 | F150: ='[1]جدول EMIS'!M105 -> 140 | G150: ='[1]جدول EMIS'!S105 -> 84 | H150: ='[1]جدول EMIS'!Y105 -> 68 | I150: ='[1]جدول EMIS'!AE105 -> 12 | J150: ='[1]جدول EMIS'!AK105 -> 114 | K150: =CONCATENATE('[1]جدول EMIS'!BC105) ->  | L150: =CONCATENATE('[1]جدول EMIS'!BI105) -> 28 | M150: =CONCATENATE('[1]جدول EMIS'!BO105) -> 55 | N150: =CONCATENATE('[1]جدول EMIS'!AW105) -> 90 | O150: =CONCATENATE('[1]جدول EMIS'!AQ105) -> 49 | P150: =IF(MATCH($B$143,{"السابع"},0)>6,"",CHOOSE((MATCH($B$143,$Q$5:$Q$14,0)<=6)+1,ROUND(AVERAGE(E150:M150),2),ROUND(AVERAGE(E150:M150),2))) -> 95 | R150: ='[1]جدول EMIS'!BA9 -> 0
A151: 7 | B151: امير رمضان يوسف قمر | C151: أردني | D151: ماركا 23 / 6 / 2003 | E151: ='[1]جدول EMIS'!G106 -> 100 | F151: ='[1]جدول EMIS'!M106 ->  | G151: ='[1]جدول EMIS'!S106 -> 0 | H151: ='[1]جدول EMIS'!Y106 -> 0 | I151: ='[1]جدول EMIS'!AE106 -> 0 | J151: ='[1]جدول EMIS'!AK106 -> 0 | K151: =CONCATENATE('[1]جدول EMIS'!BC106) ->  | L151: =CONCATENATE('[1]جدول EMIS'!BI106) ->  | M151: =CONCATENATE('[1]جدول EMIS'!BO106) ->  | N151: =CONCATENATE('[1]جدول EMIS'!AW106) -> 90 | O151: =CONCATENATE('[1]جدول EMIS'!AQ106) ->  | P151: =IF(MATCH($B$143,{"السابع"},0)>6,"",CHOOSE((MATCH($B$143,$Q$5:$Q$14,0)<=6)+1,ROUND(AVERAGE(E151:M151),2),ROUND(AVERAGE(E151:M151),2))) -> 20 | R151: ='[1]جدول EMIS'!BA10 -> 0
A152: 8 | B152: بشار اياد مصطفى مزيد | C152: أردني | D152: ماركا 23 / 12 / 2004 | E152: ='[1]جدول EMIS'!G107 -> 0 | F152: ='[1]جدول EMIS'!M107 -> 300 | G152: ='[1]جدول EMIS'!S107 -> 189 | H152: ='[1]جدول EMIS'!Y107 -> 167 | I152: ='[1]جدول EMIS'!AE107 -> 105 | J152: ='[1]جدول EMIS'!AK107 -> 255 | K152: =CONCATENATE('[1]جدول EMIS'!BC107) ->  | L152: =CONCATENATE('[1]جدول EMIS'!BI107) -> 90 | M152: =CONCATENATE('[1]جدول EMIS'!BO107) -> 95 | N152: =CONCATENATE('[1]جدول EMIS'!AW107) -> 90 | O152: =CONCATENATE('[1]جدول EMIS'!AQ107) -> 59 | P152: =IF(MATCH($B$143,{"السابع"},0)>6,"",CHOOSE((MATCH($B$143,$Q$5:$Q$14,0)<=6)+1,ROUND(AVERAGE(E152:M152),2),ROUND(AVERAGE(E152:M152),2))) -> 143.2 | R152: ='[1]جدول EMIS'!BA11 -> 0
A153: 9 | B153: بلال عمران محارب الغوله | C153: فلسطيني | D153: ماركا 10 / 6 / 2002 | E153: ='[1]جدول EMIS'!G108 -> 200 | F153: ='[1]جدول EMIS'!M108 ->  | G153: ='[1]جدول EMIS'!S108 -> 0 | H153: ='[1]جدول EMIS'!Y108 -> 53 | I153: ='[1]جدول EMIS'!AE108 -> 0 | J153: ='[1]جدول EMIS'!AK108 -> 0 | K153: =CONCATENATE('[1]جدول EMIS'!BC108) ->  | L153: =CONCATENATE('[1]جدول EMIS'!BI108) -> 23 | M153: =CONCATENATE('[1]جدول EMIS'!BO108) -> 10 | N153: =CONCATENATE('[1]جدول EMIS'!AW108) -> 90 | O153: =CONCATENATE('[1]جدول EMIS'!AQ108) -> 10 | P153: =IF(MATCH($B$143,{"السابع"},0)>6,"",CHOOSE((MATCH($B$143,$Q$5:$Q$14,0)<=6)+1,ROUND(AVERAGE(E153:M153),2),ROUND(AVERAGE(E153:M153),2))) -> 50.6 | R153: ='[1]جدول EMIS'!BA12 -> 0
A154: 10 | B154: حازم احمد عبد الله ضمره | C154: أردني | D154: ماركا 10 / 10 / 2004 | E154: ='[1]جدول EMIS'!G109 -> 0 | F154: ='[1]جدول EMIS'!M109 -> 130 | G154: ='[1]جدول EMIS'!S109 -> 101 | H154: ='[1]جدول EMIS'!Y109 -> 100 | I154: ='[1]جدول EMIS'!AE109 -> 33 | J154: ='[1]جدول EMIS'!AK109 -> 111 | K154: =CONCATENATE('[1]جدول EMIS'!BC109) ->  | L154: =CONCATENATE('[1]جدول EMIS'!BI109) -> 24 | M154: =CONCATENATE('[1]جدول EMIS'!BO109) -> 56 | N154: =CONCATENATE('[1]جدول EMIS'!AW109) -> 90 | O154: =CONCATENATE('[1]جدول EMIS'!AQ109) -> 46 | P154: =IF(MATCH($B$143,{"السابع"},0)>6,"",CHOOSE((MATCH($B$143,$Q$5:$Q$14,0)<=6)+1,ROUND(AVERAGE(E154:M154),2),ROUND(AVERAGE(E154:M154),2))) -> 69 | R154: ='[1]جدول EMIS'!BA13 -> 0
A155: 11 | B155: حمزة علي محمود نصر الله | C155: أردني | D155: ماركا 6 / 9 / 2004 | E155: ='[1]جدول EMIS'!G110 -> 100 | F155: ='[1]جدول EMIS'!M110 -> 247 | G155: ='[1]جدول EMIS'!S110 -> 170 | H155: ='[1]جدول EMIS'!Y110 -> 110 | I155: ='[1]جدول EMIS'!AE110 -> 93 | J155: ='[1]جدول EMIS'!AK110 -> 202 | K155: =CONCATENATE('[1]جدول EMIS'!BC110) ->  | L155: =CONCATENATE('[1]جدول EMIS'!BI110) -> 64 | M155: =CONCATENATE('[1]جدول EMIS'!BO110) -> 74 | N155: =CONCATENATE('[1]جدول EMIS'!AW110) -> 90 | O155: =CONCATENATE('[1]جدول EMIS'!AQ110) -> 59 | P155: =IF(MATCH($B$143,{"السابع"},0)>6,"",CHOOSE((MATCH($B$143,$Q$5:$Q$14,0)<=6)+1,ROUND(AVERAGE(E155:M155),2),ROUND(AVERAGE(E155:M155),2))) -> 135 | R155: ='[1]جدول EMIS'!BA14 -> 0
A156: 12 | B156: حمزه محمود عبد الكريم ابو ادعيج | C156: أردني | D156: ماركا 29 / 8 / 2004 | E156: ='[1]جدول EMIS'!G111 -> 189 | F156: ='[1]جدول EMIS'!M111 -> 120 | G156: ='[1]جدول EMIS'!S111 -> 99 | H156: ='[1]جدول EMIS'!Y111 -> 64 | I156: ='[1]جدول EMIS'!AE111 -> 27 | J156: ='[1]جدول EMIS'!AK111 -> 122 | K156: =CONCATENATE('[1]جدول EMIS'!BC111) ->  | L156: =CONCATENATE('[1]جدول EMIS'!BI111) -> 51 | M156: =CONCATENATE('[1]جدول EMIS'!BO111) -> 66 | N156: =CONCATENATE('[1]جدول EMIS'!AW111) -> 90 | O156: =CONCATENATE('[1]جدول EMIS'!AQ111) -> 51 | P156: =IF(MATCH($B$143,{"السابع"},0)>6,"",CHOOSE((MATCH($B$143,$Q$5:$Q$14,0)<=6)+1,ROUND(AVERAGE(E156:M156),2),ROUND(AVERAGE(E156:M156),2))) -> 100.2 | R156: ='[1]جدول EMIS'!BA15 -> 0
A157: 13 | B157: خلدون محمد محمود اسماعيل | C157: أردني | D157: ماركا 8 / 11 / 2004 | E157: ='[1]جدول EMIS'!G112 -> 100 | F157: ='[1]جدول EMIS'!M112 -> 220 | G157: ='[1]جدول EMIS'!S112 -> 143 | H157: ='[1]جدول EMIS'!Y112 -> 126 | I157: ='[1]جدول EMIS'!AE112 -> 78 | J157: ='[1]جدول EMIS'!AK112 -> 208 | K157: =CONCATENATE('[1]جدول EMIS'!BC112) ->  | L157: =CONCATENATE('[1]جدول EMIS'!BI112) -> 75 | M157: =CONCATENATE('[1]جدول EMIS'!BO112) -> 79 | N157: =CONCATENATE('[1]جدول EMIS'!AW112) -> 90 | O157: =CONCATENATE('[1]جدول EMIS'!AQ112) -> 59 | P157: =IF(MATCH($B$143,{"السابع"},0)>6,"",CHOOSE((MATCH($B$143,$Q$5:$Q$14,0)<=6)+1,ROUND(AVERAGE(E157:M157),2),ROUND(AVERAGE(E157:M157),2))) -> 131 | R157: ='[1]جدول EMIS'!BA16 -> 0
A158: 14 | B158: زياد خالد محمود النادى | C158: أردني | D158: ماركا 2 / 2 / 2004 | E158: ='[1]جدول EMIS'!G113 -> 193 | F158: ='[1]جدول EMIS'!M113 -> 115 | G158: ='[1]جدول EMIS'!S113 -> 111 | H158: ='[1]جدول EMIS'!Y113 -> 81 | I158: ='[1]جدول EMIS'!AE113 -> 30 | J158: ='[1]جدول EMIS'!AK113 -> 111 | K158: =CONCATENATE('[1]جدول EMIS'!BC113) ->  | L158: =CONCATENATE('[1]جدول EMIS'!BI113) -> 38 | M158: =CONCATENATE('[1]جدول EMIS'!BO113) -> 45 | N158: =CONCATENATE('[1]جدول EMIS'!AW113) -> 90 | O158: =CONCATENATE('[1]جدول EMIS'!AQ113) -> 38 | P158: =IF(MATCH($B$143,{"السابع"},0)>6,"",CHOOSE((MATCH($B$143,$Q$5:$Q$14,0)<=6)+1,ROUND(AVERAGE(E158:M158),2),ROUND(AVERAGE(E158:M158),2))) -> 105.2 | R158: ='[1]جدول EMIS'!BA17 -> 0
A159: 15 | B159: سليم صالح سليم الشلبي | C159: أردني | D159: ماركا 24 / 10 / 2004 | E159: ='[1]جدول EMIS'!G114 -> 100 | F159: ='[1]جدول EMIS'!M114 -> 98 | G159: ='[1]جدول EMIS'!S114 -> 97 | H159: ='[1]جدول EMIS'!Y114 -> 90 | I159: ='[1]جدول EMIS'!AE114 -> 21 | J159: ='[1]جدول EMIS'!AK114 -> 126 | K159: =CONCATENATE('[1]جدول EMIS'!BC114) ->  | L159: =CONCATENATE('[1]جدول EMIS'!BI114) -> 24 | M159: =CONCATENATE('[1]جدول EMIS'!BO114) -> 48 | N159: =CONCATENATE('[1]جدول EMIS'!AW114) -> 90 | O159: =CONCATENATE('[1]جدول EMIS'!AQ114) -> 39 | P159: =IF(MATCH($B$143,{"السابع"},0)>6,"",CHOOSE((MATCH($B$143,$Q$5:$Q$14,0)<=6)+1,ROUND(AVERAGE(E159:M159),2),ROUND(AVERAGE(E159:M159),2))) -> 86.8 | R159: ='[1]جدول EMIS'!BA18 -> 0
A160: 16 | B160: طارق امجد عاصم الكرمي | C160: أردني | D160: قصبة عمان 8 / 7 / 2004 | E160: ='[1]جدول EMIS'!G115 -> 100 | F160: ='[1]جدول EMIS'!M115 -> 199 | G160: ='[1]جدول EMIS'!S115 -> 146 | H160: ='[1]جدول EMIS'!Y115 -> 112 | I160: ='[1]جدول EMIS'!AE115 -> 48 | J160: ='[1]جدول EMIS'!AK115 -> 180 | K160: =CONCATENATE('[1]جدول EMIS'!BC115) ->  | L160: =CONCATENATE('[1]جدول EMIS'!BI115) -> 59 | M160: =CONCATENATE('[1]جدول EMIS'!BO115) -> 65 | N160: =CONCATENATE('[1]جدول EMIS'!AW115) -> 90 | O160: =CONCATENATE('[1]جدول EMIS'!AQ115) -> 55 | P160: =IF(MATCH($B$143,{"السابع"},0)>6,"",CHOOSE((MATCH($B$143,$Q$5:$Q$14,0)<=6)+1,ROUND(AVERAGE(E160:M160),2),ROUND(AVERAGE(E160:M160),2))) -> 117.2 | R160: ='[1]جدول EMIS'!BA19 -> 0
A161: 17 | B161: عباده مناضل غالب الريماوي | C161: أردني | D161: ماركا 4 / 12 / 2004 | E161: ='[1]جدول EMIS'!G116 -> 160 | F161: ='[1]جدول EMIS'!M116 -> 273 | G161: ='[1]جدول EMIS'!S116 -> 156 | H161: ='[1]جدول EMIS'!Y116 -> 187 | I161: ='[1]جدول EMIS'!AE116 -> 99 | J161: ='[1]جدول EMIS'!AK116 -> 248 | K161: =CONCATENATE('[1]جدول EMIS'!BC116) ->  | L161: =CONCATENATE('[1]جدول EMIS'!BI116) -> 94 | M161: =CONCATENATE('[1]جدول EMIS'!BO116) -> 80 | N161: =CONCATENATE('[1]جدول EMIS'!AW116) -> 90 | O161: =CONCATENATE('[1]جدول EMIS'!AQ116) -> 57 | P161: =IF(MATCH($B$143,{"السابع"},0)>6,"",CHOOSE((MATCH($B$143,$Q$5:$Q$14,0)<=6)+1,ROUND(AVERAGE(E161:M161),2),ROUND(AVERAGE(E161:M161),2))) -> 170 | R161: ='[1]جدول EMIS'!BA20 -> 0
A162: =CONCATENATE(A22) -> 18 | B162: عبد الرحمن يوسف محمد ابو قدوم | C162: أردني | D162: ماركا 20 / 9 / 2004 | E162: ='[1]جدول EMIS'!G117 -> 193 | F162: ='[1]جدول EMIS'!M117 -> 183 | G162: ='[1]جدول EMIS'!S117 -> 118 | H162: ='[1]جدول EMIS'!Y117 -> 90 | I162: ='[1]جدول EMIS'!AE117 -> 54 | J162: ='[1]جدول EMIS'!AK117 -> 199 | K162: =CONCATENATE('[1]جدول EMIS'!BC117) ->  | L162: =CONCATENATE('[1]جدول EMIS'!BI117) -> 60 | M162: =CONCATENATE('[1]جدول EMIS'!BO117) -> 77 | N162: =CONCATENATE('[1]جدول EMIS'!AW117) -> 90 | O162: =CONCATENATE('[1]جدول EMIS'!AQ117) -> 53 | P162: =IF(MATCH($B$143,{"السابع"},0)>6,"",CHOOSE((MATCH($B$143,$Q$5:$Q$14,0)<=6)+1,ROUND(AVERAGE(E162:M162),2),ROUND(AVERAGE(E162:M162),2))) -> 130.8 | R162: ='[1]جدول EMIS'!BA21 -> 0
A163: 19 | B163: عبد الرحيم ابراهيم عبد الرحيم حزين | C163: أردني | D163: ماركا 21 / 6 / 2004 | E163: ='[1]جدول EMIS'!G118 -> 134 | F163: ='[1]جدول EMIS'!M118 ->  | G163: ='[1]جدول EMIS'!S118 -> 0 | H163: ='[1]جدول EMIS'!Y118 -> 0 | I163: ='[1]جدول EMIS'!AE118 -> 0 | J163: ='[1]جدول EMIS'!AK118 -> 0 | K163: =CONCATENATE('[1]جدول EMIS'!BC118) ->  | L163: =CONCATENATE('[1]جدول EMIS'!BI118) ->  | M163: =CONCATENATE('[1]جدول EMIS'!BO118) ->  | N163: =CONCATENATE('[1]جدول EMIS'!AW118) -> 90 | O163: =CONCATENATE('[1]جدول EMIS'!AQ118) ->  | P163: =IF(MATCH($B$143,{"السابع"},0)>6,"",CHOOSE((MATCH($B$143,$Q$5:$Q$14,0)<=6)+1,ROUND(AVERAGE(E163:M163),2),ROUND(AVERAGE(E163:M163),2))) -> 26.8 | R163: ='[1]جدول EMIS'!BA22 -> 0
A164: 20 | B164: عبد الله غسان يوسف ابو اسنينه | C164: أردني | D164: القويسمة 25 / 12 / 2002 | E164: ='[1]جدول EMIS'!G119 -> 0 | F164: ='[1]جدول EMIS'!M119 -> 80 | G164: ='[1]جدول EMIS'!S119 -> 110 | H164: ='[1]جدول EMIS'!Y119 -> 78 | I164: ='[1]جدول EMIS'!AE119 -> 33 | J164: ='[1]جدول EMIS'!AK119 -> 118 | K164: =CONCATENATE('[1]جدول EMIS'!BC119) ->  | L164: =CONCATENATE('[1]جدول EMIS'!BI119) -> 26 | M164: =CONCATENATE('[1]جدول EMIS'!BO119) -> 53 | N164: =CONCATENATE('[1]جدول EMIS'!AW119) -> 90 | O164: =CONCATENATE('[1]جدول EMIS'!AQ119) -> 43 | P164: =IF(MATCH($B$143,{"السابع"},0)>6,"",CHOOSE((MATCH($B$143,$Q$5:$Q$14,0)<=6)+1,ROUND(AVERAGE(E164:M164),2),ROUND(AVERAGE(E164:M164),2))) -> 67.8 | R164: ='[1]جدول EMIS'!BA23 -> 0
A165: 21 | B165: عبد الله نبيل مصطفى بدير | C165: أردني | D165: العاصمة عمان 9 / 4 / 2004 | E165: ='[1]جدول EMIS'!G120 -> 120 | F165: ='[1]جدول EMIS'!M120 -> 126 | G165: ='[1]جدول EMIS'!S120 -> 114 | H165: ='[1]جدول EMIS'!Y120 -> 88 | I165: ='[1]جدول EMIS'!AE120 -> 15 | J165: ='[1]جدول EMIS'!AK120 -> 111 | K165: =CONCATENATE('[1]جدول EMIS'!BC120) ->  | L165: =CONCATENATE('[1]جدول EMIS'!BI120) -> 35 | M165: =CONCATENATE('[1]جدول EMIS'!BO120) -> 44 | N165: =CONCATENATE('[1]جدول EMIS'!AW120) -> 90 | O165: =CONCATENATE('[1]جدول EMIS'!AQ120) -> 34 | P165: =IF(MATCH($B$143,{"السابع"},0)>6,"",CHOOSE((MATCH($B$143,$Q$5:$Q$14,0)<=6)+1,ROUND(AVERAGE(E165:M165),2),ROUND(AVERAGE(E165:M165),2))) -> 89.6 | R165: ='[1]جدول EMIS'!BA24 -> 0
A166: 22 | B166: عبد الله اسامه وهيب حسين | C166: أردني | D166: ماركا 11 / 10 / 2004 | E166: ='[1]جدول EMIS'!G121 -> 102 | F166: ='[1]جدول EMIS'!M121 -> 160 | G166: ='[1]جدول EMIS'!S121 -> 131 | H166: ='[1]جدول EMIS'!Y121 -> 90 | I166: ='[1]جدول EMIS'!AE121 -> 69 | J166: ='[1]جدول EMIS'!AK121 -> 183 | K166: =CONCATENATE('[1]جدول EMIS'!BC121) ->  | L166: =CONCATENATE('[1]جدول EMIS'!BI121) -> 50 | M166: =CONCATENATE('[1]جدول EMIS'!BO121) -> 71 | N166: =CONCATENATE('[1]جدول EMIS'!AW121) -> 90 | O166: =CONCATENATE('[1]جدول EMIS'!AQ121) -> 51 | P166: =IF(MATCH($B$143,{"السابع"},0)>6,"",CHOOSE((MATCH($B$143,$Q$5:$Q$14,0)<=6)+1,ROUND(AVERAGE(E166:M166),2),ROUND(AVERAGE(E166:M166),2))) -> 115 | R166: ='[1]جدول EMIS'!BA25 -> 0
A167: 23 | B167: عبدالله اسعد نعيم عواد | C167: أردني | D167: ماركا 26 / 8 / 2005 | E167: ='[1]جدول EMIS'!G122 -> 186 | F167: ='[1]جدول EMIS'!M122 -> 165 | G167: ='[1]جدول EMIS'!S122 -> 145 | H167: ='[1]جدول EMIS'!Y122 -> 101 | I167: ='[1]جدول EMIS'!AE122 -> 51 | J167: ='[1]جدول EMIS'!AK122 -> 165 | K167: =CONCATENATE('[1]جدول EMIS'!BC122) ->  | L167: =CONCATENATE('[1]جدول EMIS'!BI122) -> 61 | M167: =CONCATENATE('[1]جدول EMIS'!BO122) -> 82 | N167: =CONCATENATE('[1]جدول EMIS'!AW122) -> 90 | O167: =CONCATENATE('[1]جدول EMIS'!AQ122) -> 54 | P167: =IF(MATCH($B$143,{"السابع"},0)>6,"",CHOOSE((MATCH($B$143,$Q$5:$Q$14,0)<=6)+1,ROUND(AVERAGE(E167:M167),2),ROUND(AVERAGE(E167:M167),2))) -> 129.6 | R167: ='[1]جدول EMIS'!BA26 -> 0
A168: 24 | B168: علي كمال محمد ابو جراده | C168: أردني | D168: العاصمة عمان 21 / 11 / 2004 | E168: ='[1]جدول EMIS'!G123 -> 151 | F168: ='[1]جدول EMIS'!M123 -> 152 | G168: ='[1]جدول EMIS'!S123 -> 110 | H168: ='[1]جدول EMIS'!Y123 -> 63 | I168: ='[1]جدول EMIS'!AE123 -> 42 | J168: ='[1]جدول EMIS'!AK123 -> 131 | K168: =CONCATENATE('[1]جدول EMIS'!BC123) ->  | L168: =CONCATENATE('[1]جدول EMIS'!BI123) -> 68 | M168: =CONCATENATE('[1]جدول EMIS'!BO123) -> 71 | N168: =CONCATENATE('[1]جدول EMIS'!AW123) -> 90 | O168: =CONCATENATE('[1]جدول EMIS'!AQ123) -> 49 | P168: =IF(MATCH($B$143,{"السابع"},0)>6,"",CHOOSE((MATCH($B$143,$Q$5:$Q$14,0)<=6)+1,ROUND(AVERAGE(E168:M168),2),ROUND(AVERAGE(E168:M168),2))) -> 99.4 | R168: ='[1]جدول EMIS'!BA27 -> 0
A169: 25 | B169: غيث اسامه راشد ابومطر | C169: أردني | D169: ماركا 23 / 6 / 2004 | E169: ='[1]جدول EMIS'!G124 -> 124 | F169: ='[1]جدول EMIS'!M124 -> 140 | G169: ='[1]جدول EMIS'!S124 -> 91 | H169: ='[1]جدول EMIS'!Y124 -> 86 | I169: ='[1]جدول EMIS'!AE124 -> 45 | J169: ='[1]جدول EMIS'!AK124 -> 117 | K169: =CONCATENATE('[1]جدول EMIS'!BC124) ->  | L169: =CONCATENATE('[1]جدول EMIS'!BI124) -> 30 | M169: =CONCATENATE('[1]جدول EMIS'!BO124) -> 47 | N169: =CONCATENATE('[1]جدول EMIS'!AW124) -> 90 | O169: =CONCATENATE('[1]جدول EMIS'!AQ124) -> 35 | P169: =IF(MATCH($B$143,{"السابع"},0)>6,"",CHOOSE((MATCH($B$143,$Q$5:$Q$14,0)<=6)+1,ROUND(AVERAGE(E169:M169),2),ROUND(AVERAGE(E169:M169),2))) -> 92.6 | R169: ='[1]جدول EMIS'!BA28 -> 0
A170: 26 | B170: فراس شادي عزت محمود صالح | C170: أردني | D170: ماركا 29 / 12 / 2004 | E170: ='[1]جدول EMIS'!G125 -> 100 | F170: ='[1]جدول EMIS'!M125 -> 250 | G170: ='[1]جدول EMIS'!S125 -> 198 | H170: ='[1]جدول EMIS'!Y125 -> 140 | I170: ='[1]جدول EMIS'!AE125 -> 90 | J170: ='[1]جدول EMIS'!AK125 -> 236 | K170: =CONCATENATE('[1]جدول EMIS'!BC125) ->  | L170: =CONCATENATE('[1]جدول EMIS'!BI125) -> 78 | M170: =CONCATENATE('[1]جدول EMIS'!BO125) -> 91 | N170: =CONCATENATE('[1]جدول EMIS'!AW125) -> 90 | O170: =CONCATENATE('[1]جدول EMIS'!AQ125) -> 59 | P170: =IF(MATCH($B$143,{"السابع"},0)>6,"",CHOOSE((MATCH($B$143,$Q$5:$Q$14,0)<=6)+1,ROUND(AVERAGE(E170:M170),2),ROUND(AVERAGE(E170:M170),2))) -> 152.8 | R170: ='[1]جدول EMIS'!BA29 -> 0
A171: 27 | B171: كمال احمد كمال عمرو | C171: أردني | D171: ماركا 14 / 8 / 2004 | E171: ='[1]جدول EMIS'!G126 -> 179 | F171: ='[1]جدول EMIS'!M126 -> 230 | G171: ='[1]جدول EMIS'!S126 -> 146 | H171: ='[1]جدول EMIS'!Y126 -> 151 | I171: ='[1]جدول EMIS'!AE126 -> 96 | J171: ='[1]جدول EMIS'!AK126 -> 233 | K171: =CONCATENATE('[1]جدول EMIS'!BC126) ->  | L171: =CONCATENATE('[1]جدول EMIS'!BI126) -> 76 | M171: =CONCATENATE('[1]جدول EMIS'!BO126) -> 92 | N171: =CONCATENATE('[1]جدول EMIS'!AW126) -> 90 | O171: =CONCATENATE('[1]جدول EMIS'!AQ126) -> 59 | P171: =IF(MATCH($B$143,{"السابع"},0)>6,"",CHOOSE((MATCH($B$143,$Q$5:$Q$14,0)<=6)+1,ROUND(AVERAGE(E171:M171),2),ROUND(AVERAGE(E171:M171),2))) -> 161 | R171: ='[1]جدول EMIS'!BA30 -> 0
A172: 28 | B172: ليث عدنان اسماعيل عكه | C172: أردني | D172: ماركا 21 / 12 / 2003 | E172: ='[1]جدول EMIS'!G127 -> 188 | F172: ='[1]جدول EMIS'!M127 ->  | G172: ='[1]جدول EMIS'!S127 -> 0 | H172: ='[1]جدول EMIS'!Y127 -> 0 | I172: ='[1]جدول EMIS'!AE127 -> 0 | J172: ='[1]جدول EMIS'!AK127 -> 0 | K172: =CONCATENATE('[1]جدول EMIS'!BC127) ->  | L172: =CONCATENATE('[1]جدول EMIS'!BI127) ->  | M172: =CONCATENATE('[1]جدول EMIS'!BO127) ->  | N172: =CONCATENATE('[1]جدول EMIS'!AW127) -> 90 | O172: =CONCATENATE('[1]جدول EMIS'!AQ127) ->  | P172: =IF(MATCH($B$143,{"السابع"},0)>6,"",CHOOSE((MATCH($B$143,$Q$5:$Q$14,0)<=6)+1,ROUND(AVERAGE(E172:M172),2),ROUND(AVERAGE(E172:M172),2))) -> 37.6 | R172: ='[1]جدول EMIS'!BA31 -> 0
A173: 29 | B173: مؤيد منير عثمان صالح | C173: أردني | D173: ماركا 2 / 2 / 2004 | E173: ='[1]جدول EMIS'!G128 -> 32 | F173: ='[1]جدول EMIS'!M128 -> 125 | G173: ='[1]جدول EMIS'!S128 -> 93 | H173: ='[1]جدول EMIS'!Y128 -> 74 | I173: ='[1]جدول EMIS'!AE128 -> 39 | J173: ='[1]جدول EMIS'!AK128 -> 120 | K173: =CONCATENATE('[1]جدول EMIS'!BC128) ->  | L173: =CONCATENATE('[1]جدول EMIS'!BI128) -> 29 | M173: =CONCATENATE('[1]جدول EMIS'!BO128) -> 43 | N173: =CONCATENATE('[1]جدول EMIS'!AW128) -> 90 | O173: =CONCATENATE('[1]جدول EMIS'!AQ128) -> 33 | P173: =IF(MATCH($B$143,{"السابع"},0)>6,"",CHOOSE((MATCH($B$143,$Q$5:$Q$14,0)<=6)+1,ROUND(AVERAGE(E173:M173),2),ROUND(AVERAGE(E173:M173),2))) -> 71.6 | R173: ='[1]جدول EMIS'!BA32 -> 0
A174: 30 | B174: مالك علاء محمد خليل | C174: أردني | D174: ماركا 14 / 9 / 2004 | E174: ='[1]جدول EMIS'!G129 -> 100 | F174: ='[1]جدول EMIS'!M129 -> 245 | G174: ='[1]جدول EMIS'!S129 -> 89 | H174: ='[1]جدول EMIS'!Y129 -> 136 | I174: ='[1]جدول EMIS'!AE129 -> 51 | J174: ='[1]جدول EMIS'!AK129 -> 229 | K174: =CONCATENATE('[1]جدول EMIS'!BC129) ->  | L174: =CONCATENATE('[1]جدول EMIS'!BI129) -> 79 | M174: =CONCATENATE('[1]جدول EMIS'!BO129) -> 89 | N174: =CONCATENATE('[1]جدول EMIS'!AW129) -> 90 | O174: =CONCATENATE('[1]جدول EMIS'!AQ129) -> 59 | P174: =IF(MATCH($B$143,{"السابع"},0)>6,"",CHOOSE((MATCH($B$143,$Q$5:$Q$14,0)<=6)+1,ROUND(AVERAGE(E174:M174),2),ROUND(AVERAGE(E174:M174),2))) -> 121 | R174: ='[1]جدول EMIS'!BA33 -> 0
A175: 31 | B175: مامون مصطفى مصلح ابو العيش | C175: فلسطيني | D175: ماركا 17 / 3 / 2004 | E175: ='[1]جدول EMIS'!G130 -> 198 | F175: ='[1]جدول EMIS'!M130 ->  | G175: ='[1]جدول EMIS'!S130 -> 0 | H175: ='[1]جدول EMIS'!Y130 -> 0 | I175: ='[1]جدول EMIS'!AE130 -> 0 | J175: ='[1]جدول EMIS'!AK130 -> 0 | K175: =CONCATENATE('[1]جدول EMIS'!BC130) ->  | L175: =CONCATENATE('[1]جدول EMIS'!BI130) ->  | M175: =CONCATENATE('[1]جدول EMIS'!BO130) ->  | N175: =CONCATENATE('[1]جدول EMIS'!AW130) -> 90 | O175: =CONCATENATE('[1]جدول EMIS'!AQ130) ->  | P175: =IF(MATCH($B$143,{"السابع"},0)>6,"",CHOOSE((MATCH($B$143,$Q$5:$Q$14,0)<=6)+1,ROUND(AVERAGE(E175:M175),2),ROUND(AVERAGE(E175:M175),2))) -> 39.6 | R175: ='[1]جدول EMIS'!BA34 -> 0
A176: 32 | B176: محمد محمد جعفر عبد الكريم ابو درعان النتشه | C176: أردني | D176: ماركا 3 / 3 / 2004 | E176: ='[1]جدول EMIS'!G131 -> 0 | F176: ='[1]جدول EMIS'!M131 -> 106 | G176: ='[1]جدول EMIS'!S131 -> 88 | H176: ='[1]جدول EMIS'!Y131 -> 67 | I176: ='[1]جدول EMIS'!AE131 -> 60 | J176: ='[1]جدول EMIS'!AK131 -> 126 | K176: =CONCATENATE('[1]جدول EMIS'!BC131) ->  | L176: =CONCATENATE('[1]جدول EMIS'!BI131) -> 37 | M176: =CONCATENATE('[1]جدول EMIS'!BO131) -> 43 | N176: =CONCATENATE('[1]جدول EMIS'!AW131) -> 90 | O176: =CONCATENATE('[1]جدول EMIS'!AQ131) -> 33 | P176: =IF(MATCH($B$143,{"السابع"},0)>6,"",CHOOSE((MATCH($B$143,$Q$5:$Q$14,0)<=6)+1,ROUND(AVERAGE(E176:M176),2),ROUND(AVERAGE(E176:M176),2))) -> 68.2 | R176: ='[1]جدول EMIS'!BA35 -> 0
A177: 33 | B177: محمد عطا الله عبد الله الرياحي | C177: أردني | D177: ماركا 13 / 2 / 2004 | E177: ='[1]جدول EMIS'!G132 -> 100 | F177: ='[1]جدول EMIS'!M132 -> 120 | G177: ='[1]جدول EMIS'!S132 -> 89 | H177: ='[1]جدول EMIS'!Y132 -> 100 | I177: ='[1]جدول EMIS'!AE132 -> 54 | J177: ='[1]جدول EMIS'!AK132 -> 108 | K177: =CONCATENATE('[1]جدول EMIS'!BC132) ->  | L177: =CONCATENATE('[1]جدول EMIS'!BI132) -> 38 | M177: =CONCATENATE('[1]جدول EMIS'!BO132) -> 43 | N177: =CONCATENATE('[1]جدول EMIS'!AW132) -> 90 | O177: =CONCATENATE('[1]جدول EMIS'!AQ132) -> 33 | P177: =IF(MATCH($B$143,{"السابع"},0)>6,"",CHOOSE((MATCH($B$143,$Q$5:$Q$14,0)<=6)+1,ROUND(AVERAGE(E177:M177),2),ROUND(AVERAGE(E177:M177),2))) -> 90.2 | R177: ='[1]جدول EMIS'!BA36 -> 0
A178: =CONCATENATE(A38) -> 34 | B178: محمد عبد الرحمن محمد القرنه | C178: أردني | D178: ماركا 18 / 8 / 2004 | E178: ='[1]جدول EMIS'!G133 -> 101 | F178: ='[1]جدول EMIS'!M133 -> 262 | G178: ='[1]جدول EMIS'!S133 -> 161 | H178: ='[1]جدول EMIS'!Y133 -> 114 | I178: ='[1]جدول EMIS'!AE133 -> 87 | J178: ='[1]جدول EMIS'!AK133 -> 228 | K178: =CONCATENATE('[1]جدول EMIS'!BC133) ->  | L178: =CONCATENATE('[1]جدول EMIS'!BI133) -> 80 | M178: =CONCATENATE('[1]جدول EMIS'!BO133) -> 77 | N178: =CONCATENATE('[1]جدول EMIS'!AW133) -> 90 | O178: =CONCATENATE('[1]جدول EMIS'!AQ133) -> 57 | P178: =IF(MATCH($B$143,{"السابع"},0)>6,"",CHOOSE((MATCH($B$143,$Q$5:$Q$14,0)<=6)+1,ROUND(AVERAGE(E178:M178),2),ROUND(AVERAGE(E178:M178),2))) -> 138.2 | R178: ='[1]جدول EMIS'!BA37 -> 0
A179: 35 | B179: محمد منيب جودى الهيموني | C179: أردني | D179: ماركا 14 / 2 / 2004 | E179: ='[1]جدول EMIS'!G134 -> 184 | F179: ='[1]جدول EMIS'!M134 -> 135 | G179: ='[1]جدول EMIS'!S134 -> 99 | H179: ='[1]جدول EMIS'!Y134 -> 48 | I179: ='[1]جدول EMIS'!AE134 -> 33 | J179: ='[1]جدول EMIS'!AK134 -> 106 | K179: =CONCATENATE('[1]جدول EMIS'!BC134) ->  | L179: =CONCATENATE('[1]جدول EMIS'!BI134) -> 44 | M179: =CONCATENATE('[1]جدول EMIS'!BO134) -> 58 | N179: =CONCATENATE('[1]جدول EMIS'!AW134) -> 90 | O179: =CONCATENATE('[1]جدول EMIS'!AQ134) -> 49 | P179: =IF(MATCH($B$143,{"السابع"},0)>6,"",CHOOSE((MATCH($B$143,$Q$5:$Q$14,0)<=6)+1,ROUND(AVERAGE(E179:M179),2),ROUND(AVERAGE(E179:M179),2))) -> 94 | R179: ='[1]جدول EMIS'!BA38 -> 0
A180: 36 | B180: محمد سميح حسين حسان | C180: أردني | D180: ماركا 28 / 12 / 2004 | E180: ='[1]جدول EMIS'!G135 -> 100 | F180: ='[1]جدول EMIS'!M135 -> 114 | G180: ='[1]جدول EMIS'!S135 -> 56 | H180: ='[1]جدول EMIS'!Y135 -> 71 | I180: ='[1]جدول EMIS'!AE135 -> 0 | J180: ='[1]جدول EMIS'!AK135 -> 100 | K180: =CONCATENATE('[1]جدول EMIS'!BC135) ->  | L180: =CONCATENATE('[1]جدول EMIS'!BI135) -> 22 | M180: =CONCATENATE('[1]جدول EMIS'!BO135) -> 38 | N180: =CONCATENATE('[1]جدول EMIS'!AW135) -> 90 | O180: =CONCATENATE('[1]جدول EMIS'!AQ135) -> 38 | P180: =IF(MATCH($B$143,{"السابع"},0)>6,"",CHOOSE((MATCH($B$143,$Q$5:$Q$14,0)<=6)+1,ROUND(AVERAGE(E180:M180),2),ROUND(AVERAGE(E180:M180),2))) -> 65.4 | R180: ='[1]جدول EMIS'!BA39 -> 0
A181: 37 | B181: محمود حموده طه الصوري | C181: أردني | D181: ماركا 25 / 11 / 2004 | E181: ='[1]جدول EMIS'!G136 -> 0 | F181: ='[1]جدول EMIS'!M136 -> 265 | G181: ='[1]جدول EMIS'!S136 -> 119 | H181: ='[1]جدول EMIS'!Y136 -> 135 | I181: ='[1]جدول EMIS'!AE136 -> 99 | J181: ='[1]جدول EMIS'!AK136 -> 241 | K181: =CONCATENATE('[1]جدول EMIS'!BC136) ->  | L181: =CONCATENATE('[1]جدول EMIS'!BI136) -> 70 | M181: =CONCATENATE('[1]جدول EMIS'!BO136) -> 93 | N181: =CONCATENATE('[1]جدول EMIS'!AW136) -> 90 | O181: =CONCATENATE('[1]جدول EMIS'!AQ136) -> 59 | P181: =IF(MATCH($B$143,{"السابع"},0)>6,"",CHOOSE((MATCH($B$143,$Q$5:$Q$14,0)<=6)+1,ROUND(AVERAGE(E181:M181),2),ROUND(AVERAGE(E181:M181),2))) -> 118.8 | R181: ='[1]جدول EMIS'!BA40 -> 0
A182: 38 | B182: معتصم مهنا مصباح غيث | C182: أردني | D182: ماركا 14 / 12 / 2004 | E182: ='[1]جدول EMIS'!G137 -> 184 | F182: ='[1]جدول EMIS'!M137 -> 131 | G182: ='[1]جدول EMIS'!S137 -> 100 | H182: ='[1]جدول EMIS'!Y137 -> 84 | I182: ='[1]جدول EMIS'!AE137 -> 60 | J182: ='[1]جدول EMIS'!AK137 -> 146 | K182: =CONCATENATE('[1]جدول EMIS'!BC137) ->  | L182: =CONCATENATE('[1]جدول EMIS'!BI137) -> 29 | M182: =CONCATENATE('[1]جدول EMIS'!BO137) -> 53 | N182: =CONCATENATE('[1]جدول EMIS'!AW137) -> 90 | O182: =CONCATENATE('[1]جدول EMIS'!AQ137) -> 43 | P182: =IF(MATCH($B$143,{"السابع"},0)>6,"",CHOOSE((MATCH($B$143,$Q$5:$Q$14,0)<=6)+1,ROUND(AVERAGE(E182:M182),2),ROUND(AVERAGE(E182:M182),2))) -> 114.8 | R182: ='[1]جدول EMIS'!BA41 -> 0
A183: 39 | B183: منتصر انور عبدالله القواسمه | C183: أردني | D183: ماركا 12 / 5 / 2004 | E183: ='[1]جدول EMIS'!G138 -> 100 | F183: ='[1]جدول EMIS'!M138 -> 93 | G183: ='[1]جدول EMIS'!S138 -> 87 | H183: ='[1]جدول EMIS'!Y138 -> 64 | I183: ='[1]جدول EMIS'!AE138 -> 42 | J183: ='[1]جدول EMIS'!AK138 -> 131 | K183: =CONCATENATE('[1]جدول EMIS'!BC138) ->  | L183: =CONCATENATE('[1]جدول EMIS'!BI138) -> 35 | M183: =CONCATENATE('[1]جدول EMIS'!BO138) -> 42 | N183: =CONCATENATE('[1]جدول EMIS'!AW138) -> 90 | O183: =CONCATENATE('[1]جدول EMIS'!AQ138) -> 33 | P183: =IF(MATCH($B$143,{"السابع"},0)>6,"",CHOOSE((MATCH($B$143,$Q$5:$Q$14,0)<=6)+1,ROUND(AVERAGE(E183:M183),2),ROUND(AVERAGE(E183:M183),2))) -> 84.8 | R183: ='[1]جدول EMIS'!BA42 -> 0
A184: 40 | B184: موسى محمود موسى ابو عيده | C184: أردني | D184: ماركا 26 / 3 / 2004 | E184: ='[1]جدول EMIS'!G139 -> 100 | F184: ='[1]جدول EMIS'!M139 -> 294 | G184: ='[1]جدول EMIS'!S139 -> 148 | H184: ='[1]جدول EMIS'!Y139 -> 172 | I184: ='[1]جدول EMIS'!AE139 -> 72 | J184: ='[1]جدول EMIS'!AK139 -> 235 | K184: =CONCATENATE('[1]جدول EMIS'!BC139) ->  | L184: =CONCATENATE('[1]جدول EMIS'!BI139) -> 94 | M184: =CONCATENATE('[1]جدول EMIS'!BO139) -> 92 | N184: =CONCATENATE('[1]جدول EMIS'!AW139) -> 90 | O184: =CONCATENATE('[1]جدول EMIS'!AQ139) -> 60 | P184: =IF(MATCH($B$143,{"السابع"},0)>6,"",CHOOSE((MATCH($B$143,$Q$5:$Q$14,0)<=6)+1,ROUND(AVERAGE(E184:M184),2),ROUND(AVERAGE(E184:M184),2))) -> 145.4 | R184: ='[1]جدول EMIS'!BA43 -> 0
A185: 41 | B185: موسى نايف موسى منصور | C185: أردني | D185: قصبة عمان 4 / 2 / 2004 | E185: ='[1]جدول EMIS'!G140 -> 198 | F185: ='[1]جدول EMIS'!M140 -> 279 | G185: ='[1]جدول EMIS'!S140 -> 142 | H185: ='[1]جدول EMIS'!Y140 -> 179 | I185: ='[1]جدول EMIS'!AE140 -> 96 | J185: ='[1]جدول EMIS'!AK140 -> 248 | K185: =CONCATENATE('[1]جدول EMIS'!BC140) ->  | L185: =CONCATENATE('[1]جدول EMIS'!BI140) -> 92 | M185: =CONCATENATE('[1]جدول EMIS'!BO140) -> 93 | N185: =CONCATENATE('[1]جدول EMIS'!AW140) -> 90 | O185: =CONCATENATE('[1]جدول EMIS'!AQ140) -> 59 | P185: =IF(MATCH($B$143,{"السابع"},0)>6,"",CHOOSE((MATCH($B$143,$Q$5:$Q$14,0)<=6)+1,ROUND(AVERAGE(E185:M185),2),ROUND(AVERAGE(E185:M185),2))) -> 172.6 | R185: ='[1]جدول EMIS'!BA44 -> 0
A186: 42 | B186: يوسف شادي محمود الاخرس | C186: أردني | D186: ماركا 8 / 5 / 2004 | E186: ='[1]جدول EMIS'!G141 -> 191 | F186: ='[1]جدول EMIS'!M141 -> 215 | G186: ='[1]جدول EMIS'!S141 -> 135 | H186: ='[1]جدول EMIS'!Y141 -> 145 | I186: ='[1]جدول EMIS'!AE141 -> 111 | J186: ='[1]جدول EMIS'!AK141 -> 241 | K186: =CONCATENATE('[1]جدول EMIS'!BC141) ->  | L186: =CONCATENATE('[1]جدول EMIS'!BI141) -> 85 | M186: =CONCATENATE('[1]جدول EMIS'!BO141) -> 79 | N186: =CONCATENATE('[1]جدول EMIS'!AW141) -> 90 | O186: =CONCATENATE('[1]جدول EMIS'!AQ141) -> 53 | P186: =IF(MATCH($B$143,{"السابع"},0)>6,"",CHOOSE((MATCH($B$143,$Q$5:$Q$14,0)<=6)+1,ROUND(AVERAGE(E186:M186),2),ROUND(AVERAGE(E186:M186),2))) -> 164.6 | R186: ='[1]جدول EMIS'!BA45 -> 0
A187: =CONCATENATE(A47) ->  | D187: / / | E187: ='[1]جدول EMIS'!G142 -> 189 | F187: ='[1]جدول EMIS'!M142 ->  | G187: ='[1]جدول EMIS'!S142 -> 0 | H187: ='[1]جدول EMIS'!Y142 -> 0 | I187: ='[1]جدول EMIS'!AE142 -> 0 | J187: ='[1]جدول EMIS'!AK142 -> 0 | K187: =CONCATENATE('[1]جدول EMIS'!BC142) ->  | L187: =CONCATENATE('[1]جدول EMIS'!BI142) ->  | M187: =CONCATENATE('[1]جدول EMIS'!BO142) ->  | N187: =CONCATENATE('[1]جدول EMIS'!AW142) ->  | O187: =CONCATENATE('[1]جدول EMIS'!AQ142) ->  | P187: =IF(MATCH($B$143,{"السابع"},0)>6,"",CHOOSE((MATCH($B$143,$Q$5:$Q$14,0)<=6)+1,ROUND(AVERAGE(E187:M187),2),ROUND(AVERAGE(E187:M187),2))) -> 37.8 | R187: ='[1]جدول EMIS'!BA46 -> 0
D188: / / | E188: ='[1]جدول EMIS'!G143 -> 0 | F188: ='[1]جدول EMIS'!M143 ->  | G188: ='[1]جدول EMIS'!S143 -> 0 | H188: ='[1]جدول EMIS'!Y143 -> 0 | I188: ='[1]جدول EMIS'!AE143 -> 0 | J188: ='[1]جدول EMIS'!AK143 -> 0 | K188: =CONCATENATE('[1]جدول EMIS'!BC143) ->  | L188: =CONCATENATE('[1]جدول EMIS'!BI143) ->  | M188: =CONCATENATE('[1]جدول EMIS'!BO143) ->  | N188: =CONCATENATE('[1]جدول EMIS'!AW143) ->  | O188: =CONCATENATE('[1]جدول EMIS'!AQ143) ->  | P188: =IF(MATCH($B$143,{"السابع"},0)>6,"",CHOOSE((MATCH($B$143,$Q$5:$Q$14,0)<=6)+1,ROUND(AVERAGE(E188:M188),2),ROUND(AVERAGE(E188:M188),2))) -> 0 | R188: ='[1]جدول EMIS'!BA47 -> 0
D189: / / | E189: ='[1]جدول EMIS'!G144 -> 0 | F189: ='[1]جدول EMIS'!M144 ->  | G189: ='[1]جدول EMIS'!S144 -> 0 | H189: ='[1]جدول EMIS'!Y144 -> 0 | I189: ='[1]جدول EMIS'!AE144 -> 0 | J189: ='[1]جدول EMIS'!AK144 -> 0 | K189: =CONCATENATE('[1]جدول EMIS'!BC144) ->  | L189: =CONCATENATE('[1]جدول EMIS'!BI144) ->  | M189: =CONCATENATE('[1]جدول EMIS'!BO144) ->  | N189: =CONCATENATE('[1]جدول EMIS'!AW144) ->  | O189: =CONCATENATE('[1]جدول EMIS'!AQ144) ->  | P189: =IF(MATCH($B$143,{"السابع"},0)>6,"",CHOOSE((MATCH($B$143,$Q$5:$Q$14,0)<=6)+1,ROUND(AVERAGE(E189:M189),2),ROUND(AVERAGE(E189:M189),2))) -> 0 | R189: ='[1]جدول EMIS'!BA48 -> 0
D190: / / | E190: ='[1]جدول EMIS'!G145 -> 0 | F190: ='[1]جدول EMIS'!M145 ->  | G190: ='[1]جدول EMIS'!S145 -> 0 | H190: ='[1]جدول EMIS'!Y145 -> 0 | I190: ='[1]جدول EMIS'!AE145 -> 0 | J190: ='[1]جدول EMIS'!AK145 -> 0 | K190: =CONCATENATE('[1]جدول EMIS'!BC145) ->  | L190: =CONCATENATE('[1]جدول EMIS'!BI145) ->  | M190: =CONCATENATE('[1]جدول EMIS'!BO145) ->  | N190: =CONCATENATE('[1]جدول EMIS'!AW145) ->  | O190: =CONCATENATE('[1]جدول EMIS'!AQ145) ->  | P190: =IF(MATCH($B$143,{"السابع"},0)>6,"",CHOOSE((MATCH($B$143,$Q$5:$Q$14,0)<=6)+1,ROUND(AVERAGE(E190:M190),2),ROUND(AVERAGE(E190:M190),2))) -> 0 | R190: ='[1]جدول EMIS'!BA49 -> 0
D191: / / | E191: ='[1]جدول EMIS'!G146 -> 0 | F191: ='[1]جدول EMIS'!M146 ->  | G191: ='[1]جدول EMIS'!S146 -> 0 | H191: ='[1]جدول EMIS'!Y146 -> 0 | I191: ='[1]جدول EMIS'!AE146 -> 0 | J191: ='[1]جدول EMIS'!AK146 -> 0 | K191: =CONCATENATE('[1]جدول EMIS'!BC146) ->  | L191: =CONCATENATE('[1]جدول EMIS'!BI146) ->  | M191: =CONCATENATE('[1]جدول EMIS'!BO146) ->  | N191: =CONCATENATE('[1]جدول EMIS'!AW146) ->  | O191: =CONCATENATE('[1]جدول EMIS'!AQ146) ->  | P191: =IF(MATCH($B$143,{"السابع"},0)>6,"",CHOOSE((MATCH($B$143,$Q$5:$Q$14,0)<=6)+1,ROUND(AVERAGE(E191:M191),2),ROUND(AVERAGE(E191:M191),2))) -> 0 | R191: ='[1]جدول EMIS'!BA50 -> 0
D192: / / | E192: ='[1]جدول EMIS'!G147 -> 0 | F192: ='[1]جدول EMIS'!M147 ->  | G192: ='[1]جدول EMIS'!S147 -> 0 | H192: ='[1]جدول EMIS'!Y147 -> 0 | I192: ='[1]جدول EMIS'!AE147 -> 0 | J192: ='[1]جدول EMIS'!AK147 -> 0 | K192: =CONCATENATE('[1]جدول EMIS'!BC147) ->  | L192: =CONCATENATE('[1]جدول EMIS'!BI147) ->  | M192: =CONCATENATE('[1]جدول EMIS'!BO147) ->  | N192: =CONCATENATE('[1]جدول EMIS'!AW147) ->  | O192: =CONCATENATE('[1]جدول EMIS'!AQ147) ->  | P192: =IF(MATCH($B$143,{"السابع"},0)>6,"",CHOOSE((MATCH($B$143,$Q$5:$Q$14,0)<=6)+1,ROUND(AVERAGE(E192:M192),2),ROUND(AVERAGE(E192:M192),2))) -> 0 | R192: ='[1]جدول EMIS'!BA51 -> 0
D193: / / | E193: ='[1]جدول EMIS'!G148 -> 0 | F193: ='[1]جدول EMIS'!M148 ->  | G193: ='[1]جدول EMIS'!S148 -> 0 | H193: ='[1]جدول EMIS'!Y148 -> 0 | I193: ='[1]جدول EMIS'!AE148 -> 0 | J193: ='[1]جدول EMIS'!AK148 -> 0 | K193: =CONCATENATE('[1]جدول EMIS'!BC148) ->  | L193: =CONCATENATE('[1]جدول EMIS'!BI148) ->  | M193: =CONCATENATE('[1]جدول EMIS'!BO148) ->  | N193: =CONCATENATE('[1]جدول EMIS'!AW148) ->  | O193: =CONCATENATE('[1]جدول EMIS'!AQ148) ->  | P193: =IF(MATCH($B$143,{"السابع"},0)>6,"",CHOOSE((MATCH($B$143,$Q$5:$Q$14,0)<=6)+1,ROUND(AVERAGE(E193:M193),2),ROUND(AVERAGE(E193:M193),2))) -> 0 | R193: ='[1]جدول EMIS'!BA52 -> 0
A194: =CONCATENATE(A54) ->  | D194: / / | E194: ='[1]جدول EMIS'!G149 -> 0 | F194: ='[1]جدول EMIS'!M149 ->  | G194: ='[1]جدول EMIS'!S149 -> 0 | H194: ='[1]جدول EMIS'!Y149 -> 0 | I194: ='[1]جدول EMIS'!AE149 -> 0 | J194: ='[1]جدول EMIS'!AK149 -> 0 | K194: =CONCATENATE('[1]جدول EMIS'!BC149) ->  | L194: =CONCATENATE('[1]جدول EMIS'!BI149) ->  | M194: =CONCATENATE('[1]جدول EMIS'!BO149) ->  | N194: =CONCATENATE('[1]جدول EMIS'!AW149) ->  | O194: =CONCATENATE('[1]جدول EMIS'!AQ149) ->  | P194: =IF(MATCH($B$143,{"السابع"},0)>6,"",CHOOSE((MATCH($B$143,$Q$5:$Q$14,0)<=6)+1,ROUND(AVERAGE(E194:M194),2),ROUND(AVERAGE(E194:M194),2))) -> 0 | R194: ='[1]جدول EMIS'!BA53 -> 0
D195: / / | E195: ='[1]جدول EMIS'!G150 -> 0 | F195: ='[1]جدول EMIS'!M150 ->  | G195: ='[1]جدول EMIS'!S150 -> 0 | H195: ='[1]جدول EMIS'!Y150 -> 0 | I195: ='[1]جدول EMIS'!AE150 -> 0 | J195: ='[1]جدول EMIS'!AK150 -> 0 | K195: =CONCATENATE('[1]جدول EMIS'!BC150) ->  | L195: =CONCATENATE('[1]جدول EMIS'!BI150) ->  | M195: =CONCATENATE('[1]جدول EMIS'!BO150) ->  | N195: =CONCATENATE('[1]جدول EMIS'!AW150) ->  | O195: =CONCATENATE('[1]جدول EMIS'!AQ150) ->  | P195: =IF(MATCH($B$143,{"السابع"},0)>6,"",CHOOSE((MATCH($B$143,$Q$5:$Q$14,0)<=6)+1,ROUND(AVERAGE(E195:M195),2),ROUND(AVERAGE(E195:M195),2))) -> 0 | R195: ='[1]جدول EMIS'!BA54 -> 0
D196: / / | E196: ='[1]جدول EMIS'!G151 -> 0 | F196: ='[1]جدول EMIS'!M151 ->  | G196: ='[1]جدول EMIS'!S151 -> 0 | H196: ='[1]جدول EMIS'!Y151 -> 0 | I196: ='[1]جدول EMIS'!AE151 -> 0 | J196: ='[1]جدول EMIS'!AK151 -> 0 | K196: =CONCATENATE('[1]جدول EMIS'!BC151) ->  | L196: =CONCATENATE('[1]جدول EMIS'!BI151) ->  | M196: =CONCATENATE('[1]جدول EMIS'!BO151) ->  | N196: =CONCATENATE('[1]جدول EMIS'!AW151) ->  | O196: =CONCATENATE('[1]جدول EMIS'!AQ151) ->  | P196: =IF(MATCH($B$143,{"السابع"},0)>6,"",CHOOSE((MATCH($B$143,$Q$5:$Q$14,0)<=6)+1,ROUND(AVERAGE(E196:M196),2),ROUND(AVERAGE(E196:M196),2))) -> 0 | R196: ='[1]جدول EMIS'!BA55 -> 0
D197: / / | E197: ='[1]جدول EMIS'!G152 -> 0 | F197: ='[1]جدول EMIS'!M152 ->  | G197: ='[1]جدول EMIS'!S152 -> 0 | H197: ='[1]جدول EMIS'!Y152 -> 0 | I197: ='[1]جدول EMIS'!AE152 -> 0 | J197: ='[1]جدول EMIS'!AK152 -> 0 | K197: =CONCATENATE('[1]جدول EMIS'!BC152) ->  | L197: =CONCATENATE('[1]جدول EMIS'!BI152) ->  | M197: =CONCATENATE('[1]جدول EMIS'!BO152) ->  | N197: =CONCATENATE('[1]جدول EMIS'!AW152) ->  | O197: =CONCATENATE('[1]جدول EMIS'!AQ152) ->  | P197: =IF(MATCH($B$143,{"السابع"},0)>6,"",CHOOSE((MATCH($B$143,$Q$5:$Q$14,0)<=6)+1,ROUND(AVERAGE(E197:M197),2),ROUND(AVERAGE(E197:M197),2))) -> 0 | R197: ='[1]جدول EMIS'!BA56 -> 0
D198: / / | E198: ='[1]جدول EMIS'!G153 -> 0 | F198: ='[1]جدول EMIS'!M153 ->  | G198: ='[1]جدول EMIS'!S153 -> 0 | H198: ='[1]جدول EMIS'!Y153 -> 0 | I198: ='[1]جدول EMIS'!AE153 -> 0 | J198: ='[1]جدول EMIS'!AK153 -> 0 | K198: =CONCATENATE('[1]جدول EMIS'!BC153) ->  | L198: =CONCATENATE('[1]جدول EMIS'!BI153) ->  | M198: =CONCATENATE('[1]جدول EMIS'!BO153) ->  | N198: =CONCATENATE('[1]جدول EMIS'!AW153) ->  | O198: =CONCATENATE('[1]جدول EMIS'!AQ153) ->  | P198: =IF(MATCH($B$143,{"السابع"},0)>6,"",CHOOSE((MATCH($B$143,$Q$5:$Q$14,0)<=6)+1,ROUND(AVERAGE(E198:M198),2),ROUND(AVERAGE(E198:M198),2))) -> 0 | R198: ='[1]جدول EMIS'!BA57 -> 0
D199: / / | E199: ='[1]جدول EMIS'!G154 -> 0 | F199: ='[1]جدول EMIS'!M154 ->  | G199: ='[1]جدول EMIS'!S154 -> 0 | H199: ='[1]جدول EMIS'!Y154 -> 0 | I199: ='[1]جدول EMIS'!AE154 -> 0 | J199: ='[1]جدول EMIS'!AK154 -> 0 | K199: =CONCATENATE('[1]جدول EMIS'!BC154) ->  | L199: =CONCATENATE('[1]جدول EMIS'!BI154) ->  | M199: =CONCATENATE('[1]جدول EMIS'!BO154) ->  | N199: =CONCATENATE('[1]جدول EMIS'!AW154) ->  | O199: =CONCATENATE('[1]جدول EMIS'!AQ154) ->  | P199: =IF(MATCH($B$143,{"السابع"},0)>6,"",CHOOSE((MATCH($B$143,$Q$5:$Q$14,0)<=6)+1,ROUND(AVERAGE(E199:M199),2),ROUND(AVERAGE(E199:M199),2))) -> 0 | R199: ='[1]جدول EMIS'!BA58 -> 0
D200: / / | E200: ='[1]جدول EMIS'!G155 -> 0 | F200: ='[1]جدول EMIS'!M155 ->  | G200: ='[1]جدول EMIS'!S155 -> 0 | H200: ='[1]جدول EMIS'!Y155 -> 0 | I200: ='[1]جدول EMIS'!AE155 -> 0 | J200: ='[1]جدول EMIS'!AK155 -> 0 | K200: =CONCATENATE('[1]جدول EMIS'!BC155) ->  | L200: =CONCATENATE('[1]جدول EMIS'!BI155) ->  | M200: =CONCATENATE('[1]جدول EMIS'!BO155) ->  | N200: =CONCATENATE('[1]جدول EMIS'!AW155) ->  | O200: =CONCATENATE('[1]جدول EMIS'!AQ155) ->  | P200: =IF(MATCH($B$143,{"السابع"},0)>6,"",CHOOSE((MATCH($B$143,$Q$5:$Q$14,0)<=6)+1,ROUND(AVERAGE(E200:M200),2),ROUND(AVERAGE(E200:M200),2))) -> 0 | R200: ='[1]جدول EMIS'!BA59 -> 0
D201: / / | E201: ='[1]جدول EMIS'!G156 -> 0 | F201: ='[1]جدول EMIS'!M156 ->  | G201: ='[1]جدول EMIS'!S156 -> 0 | H201: ='[1]جدول EMIS'!Y156 -> 0 | I201: ='[1]جدول EMIS'!AE156 -> 0 | J201: ='[1]جدول EMIS'!AK156 -> 0 | K201: =CONCATENATE('[1]جدول EMIS'!BC156) ->  | L201: =CONCATENATE('[1]جدول EMIS'!BI156) ->  | M201: =CONCATENATE('[1]جدول EMIS'!BO156) ->  | N201: =CONCATENATE('[1]جدول EMIS'!AW156) ->  | O201: =CONCATENATE('[1]جدول EMIS'!AQ156) ->  | P201: =IF(MATCH($B$143,{"السابع"},0)>6,"",CHOOSE((MATCH($B$143,$Q$5:$Q$14,0)<=6)+1,ROUND(AVERAGE(E201:M201),2),ROUND(AVERAGE(E201:M201),2))) -> 0 | R201: ='[1]جدول EMIS'!BA60 -> 0
D202: / / | E202: ='[1]جدول EMIS'!G157 -> 0 | F202: ='[1]جدول EMIS'!M157 ->  | G202: ='[1]جدول EMIS'!S157 -> 0 | H202: ='[1]جدول EMIS'!Y157 -> 0 | I202: ='[1]جدول EMIS'!AE157 -> 0 | J202: ='[1]جدول EMIS'!AK157 -> 0 | K202: =CONCATENATE('[1]جدول EMIS'!BC157) ->  | L202: =CONCATENATE('[1]جدول EMIS'!BI157) ->  | M202: =CONCATENATE('[1]جدول EMIS'!BO157) ->  | N202: =CONCATENATE('[1]جدول EMIS'!AW157) ->  | O202: =CONCATENATE('[1]جدول EMIS'!AQ157) ->  | P202: =IF(MATCH($B$143,{"السابع"},0)>6,"",CHOOSE((MATCH($B$143,$Q$5:$Q$14,0)<=6)+1,ROUND(AVERAGE(E202:M202),2),ROUND(AVERAGE(E202:M202),2))) -> 0 | R202: ='[1]جدول EMIS'!BA61 -> 0
D203: / / | E203: ='[1]جدول EMIS'!G158 -> 0 | F203: ='[1]جدول EMIS'!M158 ->  | G203: ='[1]جدول EMIS'!S158 -> 0 | H203: ='[1]جدول EMIS'!Y158 -> 0 | I203: ='[1]جدول EMIS'!AE158 -> 0 | J203: ='[1]جدول EMIS'!AK158 -> 0 | K203: =CONCATENATE('[1]جدول EMIS'!BC158) ->  | L203: =CONCATENATE('[1]جدول EMIS'!BI158) ->  | M203: =CONCATENATE('[1]جدول EMIS'!BO158) ->  | N203: =CONCATENATE('[1]جدول EMIS'!AW158) ->  | O203: =CONCATENATE('[1]جدول EMIS'!AQ158) ->  | P203: =IF(MATCH($B$143,{"السابع"},0)>6,"",CHOOSE((MATCH($B$143,$Q$5:$Q$14,0)<=6)+1,ROUND(AVERAGE(E203:M203),2),ROUND(AVERAGE(E203:M203),2))) -> 0 | R203: ='[1]جدول EMIS'!BA62 -> 0
... 145 more rows
